Workbook

Sheet Setup_Settings
B2: Version 1.0 | D2: Settings Caclulator | P2: 1 | Q2: =P2*360/256 -> 1.40625
B3: Green = Settings to change, Red = Values for the code, Yellow = Info/Calcs | K3: Target | L3: Actual | N3: Starting Settings | P3: Target | Q3: Actual
B4: Clock Speed | E4: 16-Bit Timer 1 | I4: Hall Sensor °BTDC | K4: 45 | L4: =L5*(360/256) -> 45 | N4: Est. Start RPM | P4: 200 | Q4: =(1/(((Q7/(L5-Q6))*256)/1000000))*60 -> 199.9969524
B5: 8 | C5: MHz Fosc | E5: =B7*G6 -> 1 | G5: Fcyc/Tick | I5: Sensor Digi° BTDC | K5: =K4*(256/360) -> 32 | L5: =ROUND(K5,0) -> 32 | N5: Start Advance ° | P5: =Advance_Curves!C5 -> 5 | Q5: =Q6*(360/256) -> 5.625
B6: =B5/4 -> 2 | C6: MHz Fcyc | E6: Prescaler = 1: | G6: 2 | I6: Low RPM Advance ° | K6: =Advance_Curves!D5 -> 10 | L6: =(L5-L7)*(360/256) -> 9.84375 | N6: Start Advance d° | P6: =P5*(256/360) -> 3.555555556 | Q6: =ROUND(P6,0) -> 4
B7: =1/B6 -> 0.5 | C7: uS Tcyc | E7: =E5*65536 -> 65536 | I7: LowRPM Delay d° | K7: =L5-(K6*256/360) -> 24.88888889 | L7: =ROUND(K7,0) -> 25 | N7: StartDelay = | P7: =(((1/(P4/60))*1000000)/256)*(L5-Q6) -> 32812.5 | Q7: =ROUND(P7,0) -> 32813
C9: Name your files "683.c" or "1840.c" for the command line to work properly. Assumes you are using XC8 compiler v1.11.
B10: User Settings for AdvanceTable 1
B11: SensorDigiDeg | E11: =K4 -> 45 | F11: =ROUND(E11,0) -> 45 | G11: Hall Sensor Digi° BTDC (Use the Settings Calculator)
B12: LowRPM_Delay | E12: =L5-(Advance_Curves!D5*256/360) -> 24.88888889 | F12: =ROUND((L5-(Advance_Curves!D5*256/360)),0) -> 25 | G12: LowRPM Delay Digi° (Taken from advance curve)
B13: Est. Start RPM | E13: 200 | F13: =ROUND(((((1/(E13/60))*1000000)/256)*(F11-ROUND((Advance_Curves!C5*(256/360)),0))),0) -> 48047 | G13: Start Delay in uS (Calculated from Est. Start RPM & Start Advance in the Curves)
B14: MSD_Start_Spark | E14: 2 | F14: =ROUND(E14,0) -> 2 | G14: Total number of sparks to fire on the first starting revolution.
B15: MSD_Low_Spark | E15: 3 | F15: =ROUND(E15,0) -> 3 | G15: Total number of sparks to fire when in LowRPM mode (120-915 RPM)
B16: Max_MSD_Rev | E16: 2300 | F16: =ROUND((((1/(E16/60))*1000000*$E$5)/256),0) -> 102 | G16: Maximum RPM to use MSD at (value is in terms of CurrentRev + 1)
B17: MSD_Spark | E17: 1 | F17: =ROUND(E17,0) -> 1 | G17: Total number of sparks per revolution when RPM is below Max_MSD_Rev (916-Max_MSD_Rev)
B18: MSD_Delay | E18: 3950 | F18: =ROUND(E18/100,0) -> 40 | G18: uS in between trigger pulses for MSD (Suggested = 4000)(100 uS increments)
B20: User Settings for AdvanceTable 2
B21: SensorDigiDeg | E21: 50 | F21: =ROUND(E21,0) -> 50 | G21: Hall Sensor Digi° BTDC (Use the Settings Calculator)
B22: LowRPM_Delay | E22: =L5-(Advance_Curves!D34*256/360) -> 24.88888889 | F22: =ROUND((L5-(Advance_Curves!D34*256/360)),0) -> 25 | G22: LowRPM Advance Digi° (Taken from advance curve)
B23: Est. Start RPM | E23: 200 | F23: =ROUND(((((1/(E23/60))*1000000)/256)*(F21-ROUND((Advance_Curves!C34*(256/360)),0))),0) -> 53906 | G23: Start Delay in uS (Calculated from Est. Start RPM & Start Advance in the Curves)
B24: MSD_Start_Spark | E24: 3 | F24: =ROUND(E24,0) -> 3 | G24: Total number of sparks to fire on the first starting revolution.
B25: MSD_Low_Spark | E25: 3 | F25: =ROUND(E25,0) -> 3 | G25: Total number of sparks to fire when in LowRPM mode (120-915 RPM)
B26: Max_MSD_Rev | E26: 2300 | F26: =ROUND((((1/(E26/60))*1000000*$E$5)/256),0) -> 102 | G26: Maximum RPM to use MSD at (value is in terms of CurrentRev + 1)
B27: MSD_Spark | E27: 1 | F27: =ROUND(E27,0) -> 1 | G27: Total number of sparks per revolution when RPM is below Max_MSD_Rev (916-Max_MSD_Rev)
B28: MSD_Delay | E28: 3950 | F28: =ROUND(E28/100,0) -> 40 | G28: uS in between trigger pulses for MSD (Suggested = 4000)

Sheet Advance_Curves
C2: LowRPM | I2: Advance Table Curve 1
C3: Start | D3: 120-915 | AH3: RPM Points | AI3: Curve-1 | AJ3: Curve-2
B4: RPM Point | C4: 0 | D4: 500 | E4: 1000 | F4: 1400 | G4: 2000 | H4: 2500 | I4: 3000 | J4: 3500 | K4: 4000 | L4: 4500 | M4: 5000 | N4: 5500 | O4: 6000 | P4: 6500 | Q4: 7000 | R4: 7500 | S4: 8000 | T4: 8500 | U4: 9000 | V4: 9500 | W4: 10000 | X4: 10500 | Y4: 11000 | Z4: 12000 | AA4: 13000 | AB4: 14000 | AC4: 15000 | AD4: 16000 | AH4: 915.5273438 | AI4: =(Table_Values!$E$3-((Table_Values!J261+Table_Values!$F$2)/Table_Values!E261))*360/256 -> 21.63208008 | AJ4: =(Table_Values!$E$3-((Table_Values!Q261+Table_Values!$M$2)/Table_Values!L261))*360/256 -> 24.12597656
B5: Advance° | C5: 5 | D5: 10 | E5: 24 | F5: 24 | G5: 24 | H5: 24 | I5: 24 | J5: 24 | K5: 24 | L5: 24 | M5: 24 | N5: 24 | O5: 24 | P5: 24 | Q5: 24 | R5: 24 | S5: 24 | T5: 24 | U5: 24 | V5: 24 | W5: 24 | X5: 24 | Y5: 24 | Z5: 24 | AA5: 24 | AB5: 24 | AC5: 24 | AD5: 24 | AH5: 919.1176471 | AI5: =(Table_Values!$E$3-((Table_Values!J260+Table_Values!$F$2)/Table_Values!E260))*360/256 -> 21.73345588 | AJ5: =(Table_Values!$E$3-((Table_Values!Q260+Table_Values!$M$2)/Table_Values!L260))*360/256 -> 24.24816176
AH6: 922.7362205 | AI6: =(Table_Values!$E$3-((Table_Values!J259+Table_Values!$F$2)/Table_Values!E259))*360/256 -> 21.83562992 | AJ6: =(Table_Values!$E$3-((Table_Values!Q259+Table_Values!$M$2)/Table_Values!L259))*360/256 -> 24.37130906
AH7: 926.3833992 | AI7: =(Table_Values!$E$3-((Table_Values!J258+Table_Values!$F$2)/Table_Values!E258))*360/256 -> 21.93861166 | AJ7: =(Table_Values!$E$3-((Table_Values!Q258+Table_Values!$M$2)/Table_Values!L258))*360/256 -> 24.49542984
AH8: 930.0595238 | AI8: =(Table_Values!$E$3-((Table_Values!J257+Table_Values!$F$2)/Table_Values!E257))*360/256 -> 22.04241071 | AJ8: =(Table_Values!$E$3-((Table_Values!Q257+Table_Values!$M$2)/Table_Values!L257))*360/256 -> 24.62053571
AH9: 933.7649402 | AI9: =(Table_Values!$E$3-((Table_Values!J256+Table_Values!$F$2)/Table_Values!E256))*360/256 -> 22.14703685 | AJ9: =(Table_Values!$E$3-((Table_Values!Q256+Table_Values!$M$2)/Table_Values!L256))*360/256 -> 24.74663845
AH10: 937.5 | AI10: =(Table_Values!$E$3-((Table_Values!J255+Table_Values!$F$2)/Table_Values!E255))*360/256 -> 22.2525 | AJ10: =(Table_Values!$E$3-((Table_Values!Q255+Table_Values!$M$2)/Table_Values!L255))*360/256 -> 24.87375
AH11: 941.2650602 | AI11: =(Table_Values!$E$3-((Table_Values!J254+Table_Values!$F$2)/Table_Values!E254))*360/256 -> 22.35316265 | AJ11: =(Table_Values!$E$3-((Table_Values!Q254+Table_Values!$M$2)/Table_Values!L254))*360/256 -> 25.00188253
AH12: 945.0604839 | AI12: =(Table_Values!$E$3-((Table_Values!J253+Table_Values!$F$2)/Table_Values!E253))*360/256 -> 22.46030746 | AJ12: =(Table_Values!$E$3-((Table_Values!Q253+Table_Values!$M$2)/Table_Values!L253))*360/256 -> 25.13104839
AH13: 948.8866397 | AI13: =(Table_Values!$E$3-((Table_Values!J252+Table_Values!$F$2)/Table_Values!E252))*360/256 -> 22.56831984 | AJ13: =(Table_Values!$E$3-((Table_Values!Q252+Table_Values!$M$2)/Table_Values!L252))*360/256 -> 25.26126012
AH14: 952.7439024 | AI14: =(Table_Values!$E$3-((Table_Values!J251+Table_Values!$F$2)/Table_Values!E251))*360/256 -> 22.67721037 | AJ14: =(Table_Values!$E$3-((Table_Values!Q251+Table_Values!$M$2)/Table_Values!L251))*360/256 -> 25.39253049
AH15: 956.6326531 | AI15: =(Table_Values!$E$3-((Table_Values!J250+Table_Values!$F$2)/Table_Values!E250))*360/256 -> 22.7869898 | AJ15: =(Table_Values!$E$3-((Table_Values!Q250+Table_Values!$M$2)/Table_Values!L250))*360/256 -> 25.52487245
AH16: 960.5532787 | AI16: =(Table_Values!$E$3-((Table_Values!J249+Table_Values!$F$2)/Table_Values!E249))*360/256 -> 22.89766906 | AJ16: =(Table_Values!$E$3-((Table_Values!Q249+Table_Values!$M$2)/Table_Values!L249))*360/256 -> 25.65829918
AH17: 964.5061728 | AI17: =(Table_Values!$E$3-((Table_Values!J248+Table_Values!$F$2)/Table_Values!E248))*360/256 -> 23.00347222 | AJ17: =(Table_Values!$E$3-((Table_Values!Q248+Table_Values!$M$2)/Table_Values!L248))*360/256 -> 25.79282407
AH18: 968.4917355 | AI18: =(Table_Values!$E$3-((Table_Values!J247+Table_Values!$F$2)/Table_Values!E247))*360/256 -> 23.11596074 | AJ18: =(Table_Values!$E$3-((Table_Values!Q247+Table_Values!$M$2)/Table_Values!L247))*360/256 -> 25.92846074
AH19: 972.5103734 | AI19: =(Table_Values!$E$3-((Table_Values!J246+Table_Values!$F$2)/Table_Values!E246))*360/256 -> 23.22938278 | AJ19: =(Table_Values!$E$3-((Table_Values!Q246+Table_Values!$M$2)/Table_Values!L246))*360/256 -> 26.06522303
AH20: 976.5625 | AI20: =(Table_Values!$E$3-((Table_Values!J245+Table_Values!$F$2)/Table_Values!E245))*360/256 -> 23.34375 | AJ20: =(Table_Values!$E$3-((Table_Values!Q245+Table_Values!$M$2)/Table_Values!L245))*360/256 -> 26.203125
AH21: 980.6485356 | AI21: =(Table_Values!$E$3-((Table_Values!J244+Table_Values!$F$2)/Table_Values!E244))*360/256 -> 23.45907427 | AJ21: =(Table_Values!$E$3-((Table_Values!Q244+Table_Values!$M$2)/Table_Values!L244))*360/256 -> 26.34218096
AH22: 984.7689076 | AI22: =(Table_Values!$E$3-((Table_Values!J243+Table_Values!$F$2)/Table_Values!E243))*360/256 -> 23.57536765 | AJ22: =(Table_Values!$E$3-((Table_Values!Q243+Table_Values!$M$2)/Table_Values!L243))*360/256 -> 26.48240546
AH23: 988.9240506 | AI23: =(Table_Values!$E$3-((Table_Values!J242+Table_Values!$F$2)/Table_Values!E242))*360/256 -> 23.69264241 | AJ23: =(Table_Values!$E$3-((Table_Values!Q242+Table_Values!$M$2)/Table_Values!L242))*360/256 -> 26.62381329
AH24: 993.1144068 | AI24: =(Table_Values!$E$3-((Table_Values!J241+Table_Values!$F$2)/Table_Values!E241))*360/256 -> 23.80495233 | AJ24: =(Table_Values!$E$3-((Table_Values!Q241+Table_Values!$M$2)/Table_Values!L241))*360/256 -> 26.76641949
AH25: 997.3404255 | AI25: =(Table_Values!$E$3-((Table_Values!J240+Table_Values!$F$2)/Table_Values!E240))*360/256 -> 23.92420213 | AJ25: =(Table_Values!$E$3-((Table_Values!Q240+Table_Values!$M$2)/Table_Values!L240))*360/256 -> 26.91023936
AH26: 1001.602564 | AI26: =(Table_Values!$E$3-((Table_Values!J239+Table_Values!$F$2)/Table_Values!E239))*360/256 -> 24.00240385 | AJ26: =(Table_Values!$E$3-((Table_Values!Q239+Table_Values!$M$2)/Table_Values!L239))*360/256 -> 27.00120192
AH27: 1005.901288 | AI27: =(Table_Values!$E$3-((Table_Values!J238+Table_Values!$F$2)/Table_Values!E238))*360/256 -> 24.00281652 | AJ27: =(Table_Values!$E$3-((Table_Values!Q238+Table_Values!$M$2)/Table_Values!L238))*360/256 -> 27.00241416
AH28: 1010.237069 | AI28: =(Table_Values!$E$3-((Table_Values!J237+Table_Values!$F$2)/Table_Values!E237))*360/256 -> 23.99717134 | AJ28: =(Table_Values!$E$3-((Table_Values!Q237+Table_Values!$M$2)/Table_Values!L237))*360/256 -> 26.99757543
AH29: 1014.61039 | AI29: =(Table_Values!$E$3-((Table_Values!J236+Table_Values!$F$2)/Table_Values!E236))*360/256 -> 23.99756494 | AJ29: =(Table_Values!$E$3-((Table_Values!Q236+Table_Values!$M$2)/Table_Values!L236))*360/256 -> 26.99878247
AH30: 1019.021739 | AI30: =(Table_Values!$E$3-((Table_Values!J235+Table_Values!$F$2)/Table_Values!E235))*360/256 -> 23.99796196 | AJ30: =(Table_Values!$E$3-((Table_Values!Q235+Table_Values!$M$2)/Table_Values!L235))*360/256 -> 27
C31: LowRPM | I31: Advance Table Curve 2 | AH31: 1023.471616 | AI31: =(Table_Values!$E$3-((Table_Values!J234+Table_Values!$F$2)/Table_Values!E234))*360/256 -> 23.99836245 | AJ31: =(Table_Values!$E$3-((Table_Values!Q234+Table_Values!$M$2)/Table_Values!L234))*360/256 -> 27.00122817
C32: Start | D32: 120-915 | AH32: 1027.960526 | AI32: =(Table_Values!$E$3-((Table_Values!J233+Table_Values!$F$2)/Table_Values!E233))*360/256 -> 23.99876645 | AJ32: =(Table_Values!$E$3-((Table_Values!Q233+Table_Values!$M$2)/Table_Values!L233))*360/256 -> 27.00246711
B33: RPM Point | C33: 0 | D33: 500 | E33: 1000 | F33: 1400 | G33: 2000 | H33: 2500 | I33: 3000 | J33: 3500 | K33: 4000 | L33: 4500 | M33: 5000 | N33: 5500 | O33: 6000 | P33: 6500 | Q33: 7000 | R33: 7500 | S33: 8000 | T33: 8500 | U33: 9000 | V33: 9500 | W33: 10000 | X33: 10500 | Y33: 11000 | Z33: 12000 | AA33: 13000 | AB33: 14000 | AC33: 15000 | AD33: 16000 | AH33: 1032.488987 | AI33: =(Table_Values!$E$3-((Table_Values!J232+Table_Values!$F$2)/Table_Values!E232))*360/256 -> 23.99917401 | AJ33: =(Table_Values!$E$3-((Table_Values!Q232+Table_Values!$M$2)/Table_Values!L232))*360/256 -> 26.99752203
B34: Advance° | C34: 5 | D34: 10 | E34: 27 | F34: 27 | G34: 27 | H34: 27 | I34: 27 | J34: 27 | K34: 27 | L34: 27 | M34: 27 | N34: 27 | O34: 27 | P34: 27 | Q34: 27 | R34: 27 | S34: 27 | T34: 27 | U34: 27 | V34: 27 | W34: 27 | X34: 27 | Y34: 27 | Z34: 27 | AA34: 27 | AB34: 27 | AC34: 27 | AD34: 27 | AH34: 1037.057522 | AI34: =(Table_Values!$E$3-((Table_Values!J231+Table_Values!$F$2)/Table_Values!E231))*360/256 -> 23.99958518 | AJ34: =(Table_Values!$E$3-((Table_Values!Q231+Table_Values!$M$2)/Table_Values!L231))*360/256 -> 26.99875553
C35: 0 | D35: 0 | E35: 0 | F35: 0 | G35: 0 | H35: 0 | I35: 0 | J35: 0 | K35: 0 | L35: 0 | M35: 0 | N35: 0 | O35: 0 | P35: 0 | Q35: 0 | R35: 0 | S35: 0 | T35: 0 | U35: 0 | V35: 0 | W35: 0 | X35: 0 | Y35: 0 | Z35: 0 | AA35: 0 | AB35: 0 | AC35: 0 | AD35: 0 | AH35: 1041.666667 | AI35: =(Table_Values!$E$3-((Table_Values!J230+Table_Values!$F$2)/Table_Values!E230))*360/256 -> 24 | AJ35: =(Table_Values!$E$3-((Table_Values!Q230+Table_Values!$M$2)/Table_Values!L230))*360/256 -> 27
AH36: 1046.316964 | AI36: =(Table_Values!$E$3-((Table_Values!J229+Table_Values!$F$2)/Table_Values!E229))*360/256 -> 24.00041853 | AJ36: =(Table_Values!$E$3-((Table_Values!Q229+Table_Values!$M$2)/Table_Values!L229))*360/256 -> 27.00125558
AH37: 1051.008969 | AI37: =(Table_Values!$E$3-((Table_Values!J228+Table_Values!$F$2)/Table_Values!E228))*360/256 -> 24.00084081 | AJ37: =(Table_Values!$E$3-((Table_Values!Q228+Table_Values!$M$2)/Table_Values!L228))*360/256 -> 27.00252242
AH38: 1055.743243 | AI38: =(Table_Values!$E$3-((Table_Values!J227+Table_Values!$F$2)/Table_Values!E227))*360/256 -> 24.00126689 | AJ38: =(Table_Values!$E$3-((Table_Values!Q227+Table_Values!$M$2)/Table_Values!L227))*360/256 -> 26.99746622
AH39: 1060.520362 | AI39: =(Table_Values!$E$3-((Table_Values!J226+Table_Values!$F$2)/Table_Values!E226))*360/256 -> 24.00169683 | AJ39: =(Table_Values!$E$3-((Table_Values!Q226+Table_Values!$M$2)/Table_Values!L226))*360/256 -> 26.99872738
AH40: 1065.340909 | AI40: =(Table_Values!$E$3-((Table_Values!J225+Table_Values!$F$2)/Table_Values!E225))*360/256 -> 24.00213068 | AJ40: =(Table_Values!$E$3-((Table_Values!Q225+Table_Values!$M$2)/Table_Values!L225))*360/256 -> 27
AH41: 1070.205479 | AI41: =(Table_Values!$E$3-((Table_Values!J224+Table_Values!$F$2)/Table_Values!E224))*360/256 -> 24.00256849 | AJ41: =(Table_Values!$E$3-((Table_Values!Q224+Table_Values!$M$2)/Table_Values!L224))*360/256 -> 27.00128425
AH42: 1075.114679 | AI42: =(Table_Values!$E$3-((Table_Values!J223+Table_Values!$F$2)/Table_Values!E223))*360/256 -> 24.00301032 | AJ42: =(Table_Values!$E$3-((Table_Values!Q223+Table_Values!$M$2)/Table_Values!L223))*360/256 -> 27.00258028
AH43: 1080.069124 | AI43: =(Table_Values!$E$3-((Table_Values!J222+Table_Values!$F$2)/Table_Values!E222))*360/256 -> 23.99697581 | AJ43: =(Table_Values!$E$3-((Table_Values!Q222+Table_Values!$M$2)/Table_Values!L222))*360/256 -> 26.99740783
AH44: 1085.069444 | AI44: =(Table_Values!$E$3-((Table_Values!J221+Table_Values!$F$2)/Table_Values!E221))*360/256 -> 23.99739583 | AJ44: =(Table_Values!$E$3-((Table_Values!Q221+Table_Values!$M$2)/Table_Values!L221))*360/256 -> 26.99869792
AH45: 1090.116279 | AI45: =(Table_Values!$E$3-((Table_Values!J220+Table_Values!$F$2)/Table_Values!E220))*360/256 -> 23.99781977 | AJ45: =(Table_Values!$E$3-((Table_Values!Q220+Table_Values!$M$2)/Table_Values!L220))*360/256 -> 27
AH46: 1095.21028 | AI46: =(Table_Values!$E$3-((Table_Values!J219+Table_Values!$F$2)/Table_Values!E219))*360/256 -> 23.99824766 | AJ46: =(Table_Values!$E$3-((Table_Values!Q219+Table_Values!$M$2)/Table_Values!L219))*360/256 -> 27.00131425
AH47: 1100.352113 | AI47: =(Table_Values!$E$3-((Table_Values!J218+Table_Values!$F$2)/Table_Values!E218))*360/256 -> 23.99867958 | AJ47: =(Table_Values!$E$3-((Table_Values!Q218+Table_Values!$M$2)/Table_Values!L218))*360/256 -> 27.00264085
AH48: 1105.542453 | AI48: =(Table_Values!$E$3-((Table_Values!J217+Table_Values!$F$2)/Table_Values!E217))*360/256 -> 23.99911557 | AJ48: =(Table_Values!$E$3-((Table_Values!Q217+Table_Values!$M$2)/Table_Values!L217))*360/256 -> 26.9973467
AH49: 1110.781991 | AI49: =(Table_Values!$E$3-((Table_Values!J216+Table_Values!$F$2)/Table_Values!E216))*360/256 -> 23.99955569 | AJ49: =(Table_Values!$E$3-((Table_Values!Q216+Table_Values!$M$2)/Table_Values!L216))*360/256 -> 26.99866706
AH50: 1116.071429 | AI50: =(Table_Values!$E$3-((Table_Values!J215+Table_Values!$F$2)/Table_Values!E215))*360/256 -> 24 | AJ50: =(Table_Values!$E$3-((Table_Values!Q215+Table_Values!$M$2)/Table_Values!L215))*360/256 -> 27
AH51: 1121.411483 | AI51: =(Table_Values!$E$3-((Table_Values!J214+Table_Values!$F$2)/Table_Values!E214))*360/256 -> 24.00044856 | AJ51: =(Table_Values!$E$3-((Table_Values!Q214+Table_Values!$M$2)/Table_Values!L214))*360/256 -> 27.00134569
AH52: 1126.802885 | AI52: =(Table_Values!$E$3-((Table_Values!J213+Table_Values!$F$2)/Table_Values!E213))*360/256 -> 24.00090144 | AJ52: =(Table_Values!$E$3-((Table_Values!Q213+Table_Values!$M$2)/Table_Values!L213))*360/256 -> 27.00270433
AH53: 1132.246377 | AI53: =(Table_Values!$E$3-((Table_Values!J212+Table_Values!$F$2)/Table_Values!E212))*360/256 -> 24.0013587 | AJ53: =(Table_Values!$E$3-((Table_Values!Q212+Table_Values!$M$2)/Table_Values!L212))*360/256 -> 26.99728261
AH54: 1137.742718 | AI54: =(Table_Values!$E$3-((Table_Values!J211+Table_Values!$F$2)/Table_Values!E211))*360/256 -> 24.00182039 | AJ54: =(Table_Values!$E$3-((Table_Values!Q211+Table_Values!$M$2)/Table_Values!L211))*360/256 -> 26.99863471
AH55: 1143.292683 | AI55: =(Table_Values!$E$3-((Table_Values!J210+Table_Values!$F$2)/Table_Values!E210))*360/256 -> 24.00228659 | AJ55: =(Table_Values!$E$3-((Table_Values!Q210+Table_Values!$M$2)/Table_Values!L210))*360/256 -> 27
AH56: 1148.897059 | AI56: =(Table_Values!$E$3-((Table_Values!J209+Table_Values!$F$2)/Table_Values!E209))*360/256 -> 24.00275735 | AJ56: =(Table_Values!$E$3-((Table_Values!Q209+Table_Values!$M$2)/Table_Values!L209))*360/256 -> 27.00137868
AH57: 1154.55665 | AI57: =(Table_Values!$E$3-((Table_Values!J208+Table_Values!$F$2)/Table_Values!E208))*360/256 -> 24.00323276 | AJ57: =(Table_Values!$E$3-((Table_Values!Q208+Table_Values!$M$2)/Table_Values!L208))*360/256 -> 27.00277094
AH58: 1160.272277 | AI58: =(Table_Values!$E$3-((Table_Values!J207+Table_Values!$F$2)/Table_Values!E207))*360/256 -> 23.99675124 | AJ58: =(Table_Values!$E$3-((Table_Values!Q207+Table_Values!$M$2)/Table_Values!L207))*360/256 -> 26.99721535
AH59: 1166.044776 | AI59: =(Table_Values!$E$3-((Table_Values!J206+Table_Values!$F$2)/Table_Values!E206))*360/256 -> 23.99720149 | AJ59: =(Table_Values!$E$3-((Table_Values!Q206+Table_Values!$M$2)/Table_Values!L206))*360/256 -> 26.99860075
AH60: 1171.875 | AI60: =(Table_Values!$E$3-((Table_Values!J205+Table_Values!$F$2)/Table_Values!E205))*360/256 -> 23.99765625 | AJ60: =(Table_Values!$E$3-((Table_Values!Q205+Table_Values!$M$2)/Table_Values!L205))*360/256 -> 27
AH61: 1177.763819 | AI61: =(Table_Values!$E$3-((Table_Values!J204+Table_Values!$F$2)/Table_Values!E204))*360/256 -> 23.99811558 | AJ61: =(Table_Values!$E$3-((Table_Values!Q204+Table_Values!$M$2)/Table_Values!L204))*360/256 -> 27.00141332
AH62: 1183.712121 | AI62: =(Table_Values!$E$3-((Table_Values!J203+Table_Values!$F$2)/Table_Values!E203))*360/256 -> 23.99857955 | AJ62: =(Table_Values!$E$3-((Table_Values!Q203+Table_Values!$M$2)/Table_Values!L203))*360/256 -> 27.00284091
AH63: 1189.720812 | AI63: =(Table_Values!$E$3-((Table_Values!J202+Table_Values!$F$2)/Table_Values!E202))*360/256 -> 23.99904822 | AJ63: =(Table_Values!$E$3-((Table_Values!Q202+Table_Values!$M$2)/Table_Values!L202))*360/256 -> 26.99714467
AH64: 1195.790816 | AI64: =(Table_Values!$E$3-((Table_Values!J201+Table_Values!$F$2)/Table_Values!E201))*360/256 -> 23.99952168 | AJ64: =(Table_Values!$E$3-((Table_Values!Q201+Table_Values!$M$2)/Table_Values!L201))*360/256 -> 26.99856505
AH65: 1201.923077 | AI65: =(Table_Values!$E$3-((Table_Values!J200+Table_Values!$F$2)/Table_Values!E200))*360/256 -> 24 | AJ65: =(Table_Values!$E$3-((Table_Values!Q200+Table_Values!$M$2)/Table_Values!L200))*360/256 -> 27
AH66: 1208.118557 | AI66: =(Table_Values!$E$3-((Table_Values!J199+Table_Values!$F$2)/Table_Values!E199))*360/256 -> 24.00048325 | AJ66: =(Table_Values!$E$3-((Table_Values!Q199+Table_Values!$M$2)/Table_Values!L199))*360/256 -> 27.00144974
AH67: 1214.378238 | AI67: =(Table_Values!$E$3-((Table_Values!J198+Table_Values!$F$2)/Table_Values!E198))*360/256 -> 24.0009715 | AJ67: =(Table_Values!$E$3-((Table_Values!Q198+Table_Values!$M$2)/Table_Values!L198))*360/256 -> 27.00291451
AH68: 1220.703125 | AI68: =(Table_Values!$E$3-((Table_Values!J197+Table_Values!$F$2)/Table_Values!E197))*360/256 -> 24.00146484 | AJ68: =(Table_Values!$E$3-((Table_Values!Q197+Table_Values!$M$2)/Table_Values!L197))*360/256 -> 26.99707031
AH69: 1227.094241 | AI69: =(Table_Values!$E$3-((Table_Values!J196+Table_Values!$F$2)/Table_Values!E196))*360/256 -> 24.00196335 | AJ69: =(Table_Values!$E$3-((Table_Values!Q196+Table_Values!$M$2)/Table_Values!L196))*360/256 -> 26.99852749
AH70: 1233.552632 | AI70: =(Table_Values!$E$3-((Table_Values!J195+Table_Values!$F$2)/Table_Values!E195))*360/256 -> 24.00246711 | AJ70: =(Table_Values!$E$3-((Table_Values!Q195+Table_Values!$M$2)/Table_Values!L195))*360/256 -> 27
AH71: 1240.079365 | AI71: =(Table_Values!$E$3-((Table_Values!J194+Table_Values!$F$2)/Table_Values!E194))*360/256 -> 24.00297619 | AJ71: =(Table_Values!$E$3-((Table_Values!Q194+Table_Values!$M$2)/Table_Values!L194))*360/256 -> 27.0014881
AH72: 1246.675532 | AI72: =(Table_Values!$E$3-((Table_Values!J193+Table_Values!$F$2)/Table_Values!E193))*360/256 -> 24.00349069 | AJ72: =(Table_Values!$E$3-((Table_Values!Q193+Table_Values!$M$2)/Table_Values!L193))*360/256 -> 27.00299202
AH73: 1253.342246 | AI73: =(Table_Values!$E$3-((Table_Values!J192+Table_Values!$F$2)/Table_Values!E192))*360/256 -> 23.99649064 | AJ73: =(Table_Values!$E$3-((Table_Values!Q192+Table_Values!$M$2)/Table_Values!L192))*360/256 -> 26.99699198
AH74: 1260.080645 | AI74: =(Table_Values!$E$3-((Table_Values!J191+Table_Values!$F$2)/Table_Values!E191))*360/256 -> 23.99697581 | AJ74: =(Table_Values!$E$3-((Table_Values!Q191+Table_Values!$M$2)/Table_Values!L191))*360/256 -> 26.9984879
AH75: 1266.891892 | AI75: =(Table_Values!$E$3-((Table_Values!J190+Table_Values!$F$2)/Table_Values!E190))*360/256 -> 23.99746622 | AJ75: =(Table_Values!$E$3-((Table_Values!Q190+Table_Values!$M$2)/Table_Values!L190))*360/256 -> 27
AH76: 1273.777174 | AI76: =(Table_Values!$E$3-((Table_Values!J189+Table_Values!$F$2)/Table_Values!E189))*360/256 -> 23.99796196 | AJ76: =(Table_Values!$E$3-((Table_Values!Q189+Table_Values!$M$2)/Table_Values!L189))*360/256 -> 27.00152853
AH77: 1280.737705 | AI77: =(Table_Values!$E$3-((Table_Values!J188+Table_Values!$F$2)/Table_Values!E188))*360/256 -> 23.99846311 | AJ77: =(Table_Values!$E$3-((Table_Values!Q188+Table_Values!$M$2)/Table_Values!L188))*360/256 -> 27.00307377
AH78: 1287.774725 | AI78: =(Table_Values!$E$3-((Table_Values!J187+Table_Values!$F$2)/Table_Values!E187))*360/256 -> 23.99896978 | AJ78: =(Table_Values!$E$3-((Table_Values!Q187+Table_Values!$M$2)/Table_Values!L187))*360/256 -> 26.99690934
AH79: 1294.889503 | AI79: =(Table_Values!$E$3-((Table_Values!J186+Table_Values!$F$2)/Table_Values!E186))*360/256 -> 23.99948204 | AJ79: =(Table_Values!$E$3-((Table_Values!Q186+Table_Values!$M$2)/Table_Values!L186))*360/256 -> 26.99844613
AH80: 1302.083333 | AI80: =(Table_Values!$E$3-((Table_Values!J185+Table_Values!$F$2)/Table_Values!E185))*360/256 -> 24 | AJ80: =(Table_Values!$E$3-((Table_Values!Q185+Table_Values!$M$2)/Table_Values!L185))*360/256 -> 27
AH81: 1309.357542 | AI81: =(Table_Values!$E$3-((Table_Values!J184+Table_Values!$F$2)/Table_Values!E184))*360/256 -> 24.00052374 | AJ81: =(Table_Values!$E$3-((Table_Values!Q184+Table_Values!$M$2)/Table_Values!L184))*360/256 -> 27.00157123
AH82: 1316.713483 | AI82: =(Table_Values!$E$3-((Table_Values!J183+Table_Values!$F$2)/Table_Values!E183))*360/256 -> 24.00105337 | AJ82: =(Table_Values!$E$3-((Table_Values!Q183+Table_Values!$M$2)/Table_Values!L183))*360/256 -> 27.00316011
AH83: 1324.152542 | AI83: =(Table_Values!$E$3-((Table_Values!J182+Table_Values!$F$2)/Table_Values!E182))*360/256 -> 24.00158898 | AJ83: =(Table_Values!$E$3-((Table_Values!Q182+Table_Values!$M$2)/Table_Values!L182))*360/256 -> 26.99682203
AH84: 1331.676136 | AI84: =(Table_Values!$E$3-((Table_Values!J181+Table_Values!$F$2)/Table_Values!E181))*360/256 -> 24.00213068 | AJ84: =(Table_Values!$E$3-((Table_Values!Q181+Table_Values!$M$2)/Table_Values!L181))*360/256 -> 26.99840199
AH85: 1339.285714 | AI85: =(Table_Values!$E$3-((Table_Values!J180+Table_Values!$F$2)/Table_Values!E180))*360/256 -> 24.00267857 | AJ85: =(Table_Values!$E$3-((Table_Values!Q180+Table_Values!$M$2)/Table_Values!L180))*360/256 -> 27
AH86: 1346.982759 | AI86: =(Table_Values!$E$3-((Table_Values!J179+Table_Values!$F$2)/Table_Values!E179))*360/256 -> 24.00323276 | AJ86: =(Table_Values!$E$3-((Table_Values!Q179+Table_Values!$M$2)/Table_Values!L179))*360/256 -> 27.00161638
AH87: 1354.768786 | AI87: =(Table_Values!$E$3-((Table_Values!J178+Table_Values!$F$2)/Table_Values!E178))*360/256 -> 24.00379335 | AJ87: =(Table_Values!$E$3-((Table_Values!Q178+Table_Values!$M$2)/Table_Values!L178))*360/256 -> 27.00325145
AH88: 1362.645349 | AI88: =(Table_Values!$E$3-((Table_Values!J177+Table_Values!$F$2)/Table_Values!E177))*360/256 -> 23.99618459 | AJ88: =(Table_Values!$E$3-((Table_Values!Q177+Table_Values!$M$2)/Table_Values!L177))*360/256 -> 26.99672965
AH89: 1370.614035 | AI89: =(Table_Values!$E$3-((Table_Values!J176+Table_Values!$F$2)/Table_Values!E176))*360/256 -> 23.99671053 | AJ89: =(Table_Values!$E$3-((Table_Values!Q176+Table_Values!$M$2)/Table_Values!L176))*360/256 -> 26.99835526
AH90: 1378.676471 | AI90: =(Table_Values!$E$3-((Table_Values!J175+Table_Values!$F$2)/Table_Values!E175))*360/256 -> 23.99724265 | AJ90: =(Table_Values!$E$3-((Table_Values!Q175+Table_Values!$M$2)/Table_Values!L175))*360/256 -> 27
AH91: 1386.83432 | AI91: =(Table_Values!$E$3-((Table_Values!J174+Table_Values!$F$2)/Table_Values!E174))*360/256 -> 23.99778107 | AJ91: =(Table_Values!$E$3-((Table_Values!Q174+Table_Values!$M$2)/Table_Values!L174))*360/256 -> 27.0016642
AH92: 1395.089286 | AI92: =(Table_Values!$E$3-((Table_Values!J173+Table_Values!$F$2)/Table_Values!E173))*360/256 -> 23.99832589 | AJ92: =(Table_Values!$E$3-((Table_Values!Q173+Table_Values!$M$2)/Table_Values!L173))*360/256 -> 27.00334821
AH93: 1403.443114 | AI93: =(Table_Values!$E$3-((Table_Values!J172+Table_Values!$F$2)/Table_Values!E172))*360/256 -> 23.99887725 | AJ93: =(Table_Values!$E$3-((Table_Values!Q172+Table_Values!$M$2)/Table_Values!L172))*360/256 -> 26.99663174
AH94: 1411.89759 | AI94: =(Table_Values!$E$3-((Table_Values!J171+Table_Values!$F$2)/Table_Values!E171))*360/256 -> 23.99943524 | AJ94: =(Table_Values!$E$3-((Table_Values!Q171+Table_Values!$M$2)/Table_Values!L171))*360/256 -> 26.99830572
AH95: 1420.454545 | AI95: =(Table_Values!$E$3-((Table_Values!J170+Table_Values!$F$2)/Table_Values!E170))*360/256 -> 24 | AJ95: =(Table_Values!$E$3-((Table_Values!Q170+Table_Values!$M$2)/Table_Values!L170))*360/256 -> 27
AH96: 1429.115854 | AI96: =(Table_Values!$E$3-((Table_Values!J169+Table_Values!$F$2)/Table_Values!E169))*360/256 -> 24.00057165 | AJ96: =(Table_Values!$E$3-((Table_Values!Q169+Table_Values!$M$2)/Table_Values!L169))*360/256 -> 27.00171494
AH97: 1437.883436 | AI97: =(Table_Values!$E$3-((Table_Values!J168+Table_Values!$F$2)/Table_Values!E168))*360/256 -> 24.00115031 | AJ97: =(Table_Values!$E$3-((Table_Values!Q168+Table_Values!$M$2)/Table_Values!L168))*360/256 -> 27.00345092
AH98: 1446.759259 | AI98: =(Table_Values!$E$3-((Table_Values!J167+Table_Values!$F$2)/Table_Values!E167))*360/256 -> 24.00173611 | AJ98: =(Table_Values!$E$3-((Table_Values!Q167+Table_Values!$M$2)/Table_Values!L167))*360/256 -> 26.99652778
AH99: 1455.745342 | AI99: =(Table_Values!$E$3-((Table_Values!J166+Table_Values!$F$2)/Table_Values!E166))*360/256 -> 24.00232919 | AJ99: =(Table_Values!$E$3-((Table_Values!Q166+Table_Values!$M$2)/Table_Values!L166))*360/256 -> 26.99825311
AH100: 1464.84375 | AI100: =(Table_Values!$E$3-((Table_Values!J165+Table_Values!$F$2)/Table_Values!E165))*360/256 -> 24.00292969 | AJ100: =(Table_Values!$E$3-((Table_Values!Q165+Table_Values!$M$2)/Table_Values!L165))*360/256 -> 27
AH101: 1474.056604 | AI101: =(Table_Values!$E$3-((Table_Values!J164+Table_Values!$F$2)/Table_Values!E164))*360/256 -> 24.00353774 | AJ101: =(Table_Values!$E$3-((Table_Values!Q164+Table_Values!$M$2)/Table_Values!L164))*360/256 -> 27.00176887
AH102: 1483.386076 | AI102: =(Table_Values!$E$3-((Table_Values!J163+Table_Values!$F$2)/Table_Values!E163))*360/256 -> 24.00415348 | AJ102: =(Table_Values!$E$3-((Table_Values!Q163+Table_Values!$M$2)/Table_Values!L163))*360/256 -> 27.00356013
AH103: 1492.834395 | AI103: =(Table_Values!$E$3-((Table_Values!J162+Table_Values!$F$2)/Table_Values!E162))*360/256 -> 23.99582006 | AJ103: =(Table_Values!$E$3-((Table_Values!Q162+Table_Values!$M$2)/Table_Values!L162))*360/256 -> 26.9964172
AH104: 1502.403846 | AI104: =(Table_Values!$E$3-((Table_Values!J161+Table_Values!$F$2)/Table_Values!E161))*360/256 -> 23.99639423 | AJ104: =(Table_Values!$E$3-((Table_Values!Q161+Table_Values!$M$2)/Table_Values!L161))*360/256 -> 26.99819712
AH105: 1512.096774 | AI105: =(Table_Values!$E$3-((Table_Values!J160+Table_Values!$F$2)/Table_Values!E160))*360/256 -> 23.99697581 | AJ105: =(Table_Values!$E$3-((Table_Values!Q160+Table_Values!$M$2)/Table_Values!L160))*360/256 -> 27
AH106: 1521.915584 | AI106: =(Table_Values!$E$3-((Table_Values!J159+Table_Values!$F$2)/Table_Values!E159))*360/256 -> 23.99756494 | AJ106: =(Table_Values!$E$3-((Table_Values!Q159+Table_Values!$M$2)/Table_Values!L159))*360/256 -> 27.0018263
AH107: 1531.862745 | AI107: =(Table_Values!$E$3-((Table_Values!J158+Table_Values!$F$2)/Table_Values!E158))*360/256 -> 23.99816176 | AJ107: =(Table_Values!$E$3-((Table_Values!Q158+Table_Values!$M$2)/Table_Values!L158))*360/256 -> 27.00367647
AH108: 1541.940789 | AI108: =(Table_Values!$E$3-((Table_Values!J157+Table_Values!$F$2)/Table_Values!E157))*360/256 -> 23.99876645 | AJ108: =(Table_Values!$E$3-((Table_Values!Q157+Table_Values!$M$2)/Table_Values!L157))*360/256 -> 26.99629934
AH109: 1552.152318 | AI109: =(Table_Values!$E$3-((Table_Values!J156+Table_Values!$F$2)/Table_Values!E156))*360/256 -> 23.99937914 | AJ109: =(Table_Values!$E$3-((Table_Values!Q156+Table_Values!$M$2)/Table_Values!L156))*360/256 -> 26.99813742
AH110: 1562.5 | AI110: =(Table_Values!$E$3-((Table_Values!J155+Table_Values!$F$2)/Table_Values!E155))*360/256 -> 24 | AJ110: =(Table_Values!$E$3-((Table_Values!Q155+Table_Values!$M$2)/Table_Values!L155))*360/256 -> 27
AH111: 1572.986577 | AI111: =(Table_Values!$E$3-((Table_Values!J154+Table_Values!$F$2)/Table_Values!E154))*360/256 -> 24.00062919 | AJ111: =(Table_Values!$E$3-((Table_Values!Q154+Table_Values!$M$2)/Table_Values!L154))*360/256 -> 27.00188758
AH112: 1583.614865 | AI112: =(Table_Values!$E$3-((Table_Values!J153+Table_Values!$F$2)/Table_Values!E153))*360/256 -> 24.00126689 | AJ112: =(Table_Values!$E$3-((Table_Values!Q153+Table_Values!$M$2)/Table_Values!L153))*360/256 -> 27.00380068
AH113: 1594.387755 | AI113: =(Table_Values!$E$3-((Table_Values!J152+Table_Values!$F$2)/Table_Values!E152))*360/256 -> 24.00191327 | AJ113: =(Table_Values!$E$3-((Table_Values!Q152+Table_Values!$M$2)/Table_Values!L152))*360/256 -> 26.99617347
AH114: 1605.308219 | AI114: =(Table_Values!$E$3-((Table_Values!J151+Table_Values!$F$2)/Table_Values!E151))*360/256 -> 24.00256849 | AJ114: =(Table_Values!$E$3-((Table_Values!Q151+Table_Values!$M$2)/Table_Values!L151))*360/256 -> 26.99807363
AH115: 1616.37931 | AI115: =(Table_Values!$E$3-((Table_Values!J150+Table_Values!$F$2)/Table_Values!E150))*360/256 -> 24.00323276 | AJ115: =(Table_Values!$E$3-((Table_Values!Q150+Table_Values!$M$2)/Table_Values!L150))*360/256 -> 27
AH116: 1627.604167 | AI116: =(Table_Values!$E$3-((Table_Values!J149+Table_Values!$F$2)/Table_Values!E149))*360/256 -> 24.00390625 | AJ116: =(Table_Values!$E$3-((Table_Values!Q149+Table_Values!$M$2)/Table_Values!L149))*360/256 -> 27.00195312
AH117: 1638.986014 | AI117: =(Table_Values!$E$3-((Table_Values!J148+Table_Values!$F$2)/Table_Values!E148))*360/256 -> 24.00458916 | AJ117: =(Table_Values!$E$3-((Table_Values!Q148+Table_Values!$M$2)/Table_Values!L148))*360/256 -> 27.00393357
AH118: 1650.528169 | AI118: =(Table_Values!$E$3-((Table_Values!J147+Table_Values!$F$2)/Table_Values!E147))*360/256 -> 23.99537852 | AJ118: =(Table_Values!$E$3-((Table_Values!Q147+Table_Values!$M$2)/Table_Values!L147))*360/256 -> 26.99603873
AH119: 1662.234043 | AI119: =(Table_Values!$E$3-((Table_Values!J146+Table_Values!$F$2)/Table_Values!E146))*360/256 -> 23.99601064 | AJ119: =(Table_Values!$E$3-((Table_Values!Q146+Table_Values!$M$2)/Table_Values!L146))*360/256 -> 26.99800532
AH120: 1674.107143 | AI120: =(Table_Values!$E$3-((Table_Values!J145+Table_Values!$F$2)/Table_Values!E145))*360/256 -> 23.99665179 | AJ120: =(Table_Values!$E$3-((Table_Values!Q145+Table_Values!$M$2)/Table_Values!L145))*360/256 -> 27
AH121: 1686.151079 | AI121: =(Table_Values!$E$3-((Table_Values!J144+Table_Values!$F$2)/Table_Values!E144))*360/256 -> 23.99730216 | AJ121: =(Table_Values!$E$3-((Table_Values!Q144+Table_Values!$M$2)/Table_Values!L144))*360/256 -> 27.00202338
AH122: 1698.369565 | AI122: =(Table_Values!$E$3-((Table_Values!J143+Table_Values!$F$2)/Table_Values!E143))*360/256 -> 23.99796196 | AJ122: =(Table_Values!$E$3-((Table_Values!Q143+Table_Values!$M$2)/Table_Values!L143))*360/256 -> 27.00407609
AH123: 1710.766423 | AI123: =(Table_Values!$E$3-((Table_Values!J142+Table_Values!$F$2)/Table_Values!E142))*360/256 -> 23.99863139 | AJ123: =(Table_Values!$E$3-((Table_Values!Q142+Table_Values!$M$2)/Table_Values!L142))*360/256 -> 26.99589416
AH124: 1723.345588 | AI124: =(Table_Values!$E$3-((Table_Values!J141+Table_Values!$F$2)/Table_Values!E141))*360/256 -> 23.99931066 | AJ124: =(Table_Values!$E$3-((Table_Values!Q141+Table_Values!$M$2)/Table_Values!L141))*360/256 -> 26.99793199
AH125: 1736.111111 | AI125: =(Table_Values!$E$3-((Table_Values!J140+Table_Values!$F$2)/Table_Values!E140))*360/256 -> 24 | AJ125: =(Table_Values!$E$3-((Table_Values!Q140+Table_Values!$M$2)/Table_Values!L140))*360/256 -> 27
AH126: 1749.067164 | AI126: =(Table_Values!$E$3-((Table_Values!J139+Table_Values!$F$2)/Table_Values!E139))*360/256 -> 24.00069963 | AJ126: =(Table_Values!$E$3-((Table_Values!Q139+Table_Values!$M$2)/Table_Values!L139))*360/256 -> 27.00209888
AH127: 1762.218045 | AI127: =(Table_Values!$E$3-((Table_Values!J138+Table_Values!$F$2)/Table_Values!E138))*360/256 -> 24.00140977 | AJ127: =(Table_Values!$E$3-((Table_Values!Q138+Table_Values!$M$2)/Table_Values!L138))*360/256 -> 27.00422932
AH128: 1775.568182 | AI128: =(Table_Values!$E$3-((Table_Values!J137+Table_Values!$F$2)/Table_Values!E137))*360/256 -> 24.00213068 | AJ128: =(Table_Values!$E$3-((Table_Values!Q137+Table_Values!$M$2)/Table_Values!L137))*360/256 -> 26.99573864
AH129: 1789.122137 | AI129: =(Table_Values!$E$3-((Table_Values!J136+Table_Values!$F$2)/Table_Values!E136))*360/256 -> 24.0028626 | AJ129: =(Table_Values!$E$3-((Table_Values!Q136+Table_Values!$M$2)/Table_Values!L136))*360/256 -> 26.99785305
AH130: 1802.884615 | AI130: =(Table_Values!$E$3-((Table_Values!J135+Table_Values!$F$2)/Table_Values!E135))*360/256 -> 24.00360577 | AJ130: =(Table_Values!$E$3-((Table_Values!Q135+Table_Values!$M$2)/Table_Values!L135))*360/256 -> 27
AH131: 1816.860465 | AI131: =(Table_Values!$E$3-((Table_Values!J134+Table_Values!$F$2)/Table_Values!E134))*360/256 -> 24.00436047 | AJ131: =(Table_Values!$E$3-((Table_Values!Q134+Table_Values!$M$2)/Table_Values!L134))*360/256 -> 27.00218023
AH132: 1831.054688 | AI132: =(Table_Values!$E$3-((Table_Values!J133+Table_Values!$F$2)/Table_Values!E133))*360/256 -> 24.00512695 | AJ132: =(Table_Values!$E$3-((Table_Values!Q133+Table_Values!$M$2)/Table_Values!L133))*360/256 -> 27.00439453
AH133: 1845.472441 | AI133: =(Table_Values!$E$3-((Table_Values!J132+Table_Values!$F$2)/Table_Values!E132))*360/256 -> 23.99483268 | AJ133: =(Table_Values!$E$3-((Table_Values!Q132+Table_Values!$M$2)/Table_Values!L132))*360/256 -> 26.99557087
AH134: 1860.119048 | AI134: =(Table_Values!$E$3-((Table_Values!J131+Table_Values!$F$2)/Table_Values!E131))*360/256 -> 23.99553571 | AJ134: =(Table_Values!$E$3-((Table_Values!Q131+Table_Values!$M$2)/Table_Values!L131))*360/256 -> 26.99776786
AH135: 1875 | AI135: =(Table_Values!$E$3-((Table_Values!J130+Table_Values!$F$2)/Table_Values!E130))*360/256 -> 23.99625 | AJ135: =(Table_Values!$E$3-((Table_Values!Q130+Table_Values!$M$2)/Table_Values!L130))*360/256 -> 27
AH136: 1890.120968 | AI136: =(Table_Values!$E$3-((Table_Values!J129+Table_Values!$F$2)/Table_Values!E129))*360/256 -> 23.99697581 | AJ136: =(Table_Values!$E$3-((Table_Values!Q129+Table_Values!$M$2)/Table_Values!L129))*360/256 -> 27.00226815
AH137: 1905.487805 | AI137: =(Table_Values!$E$3-((Table_Values!J128+Table_Values!$F$2)/Table_Values!E128))*360/256 -> 23.99771341 | AJ137: =(Table_Values!$E$3-((Table_Values!Q128+Table_Values!$M$2)/Table_Values!L128))*360/256 -> 27.00457317
AH138: 1921.106557 | AI138: =(Table_Values!$E$3-((Table_Values!J127+Table_Values!$F$2)/Table_Values!E127))*360/256 -> 23.99846311 | AJ138: =(Table_Values!$E$3-((Table_Values!Q127+Table_Values!$M$2)/Table_Values!L127))*360/256 -> 26.99538934
AH139: 1936.983471 | AI139: =(Table_Values!$E$3-((Table_Values!J126+Table_Values!$F$2)/Table_Values!E126))*360/256 -> 23.99922521 | AJ139: =(Table_Values!$E$3-((Table_Values!Q126+Table_Values!$M$2)/Table_Values!L126))*360/256 -> 26.99767562
AH140: 1953.125 | AI140: =(Table_Values!$E$3-((Table_Values!J125+Table_Values!$F$2)/Table_Values!E125))*360/256 -> 24 | AJ140: =(Table_Values!$E$3-((Table_Values!Q125+Table_Values!$M$2)/Table_Values!L125))*360/256 -> 27
AH141: 1969.537815 | AI141: =(Table_Values!$E$3-((Table_Values!J124+Table_Values!$F$2)/Table_Values!E124))*360/256 -> 24.00078782 | AJ141: =(Table_Values!$E$3-((Table_Values!Q124+Table_Values!$M$2)/Table_Values!L124))*360/256 -> 27.00236345
AH142: 1986.228814 | AI142: =(Table_Values!$E$3-((Table_Values!J123+Table_Values!$F$2)/Table_Values!E123))*360/256 -> 24.00158898 | AJ142: =(Table_Values!$E$3-((Table_Values!Q123+Table_Values!$M$2)/Table_Values!L123))*360/256 -> 27.00476695
AH143: 2003.205128 | AI143: =(Table_Values!$E$3-((Table_Values!J122+Table_Values!$F$2)/Table_Values!E122))*360/256 -> 24.00240385 | AJ143: =(Table_Values!$E$3-((Table_Values!Q122+Table_Values!$M$2)/Table_Values!L122))*360/256 -> 26.99519231
AH144: 2020.474138 | AI144: =(Table_Values!$E$3-((Table_Values!J121+Table_Values!$F$2)/Table_Values!E121))*360/256 -> 24.00323276 | AJ144: =(Table_Values!$E$3-((Table_Values!Q121+Table_Values!$M$2)/Table_Values!L121))*360/256 -> 26.99757543
AH145: 2038.043478 | AI145: =(Table_Values!$E$3-((Table_Values!J120+Table_Values!$F$2)/Table_Values!E120))*360/256 -> 24.00407609 | AJ145: =(Table_Values!$E$3-((Table_Values!Q120+Table_Values!$M$2)/Table_Values!L120))*360/256 -> 27
AH146: 2055.921053 | AI146: =(Table_Values!$E$3-((Table_Values!J119+Table_Values!$F$2)/Table_Values!E119))*360/256 -> 24.00493421 | AJ146: =(Table_Values!$E$3-((Table_Values!Q119+Table_Values!$M$2)/Table_Values!L119))*360/256 -> 27.00246711
AH147: 2074.115044 | AI147: =(Table_Values!$E$3-((Table_Values!J118+Table_Values!$F$2)/Table_Values!E118))*360/256 -> 24.00580752 | AJ147: =(Table_Values!$E$3-((Table_Values!Q118+Table_Values!$M$2)/Table_Values!L118))*360/256 -> 27.00497788
AH148: 2092.633929 | AI148: =(Table_Values!$E$3-((Table_Values!J117+Table_Values!$F$2)/Table_Values!E117))*360/256 -> 23.99414062 | AJ148: =(Table_Values!$E$3-((Table_Values!Q117+Table_Values!$M$2)/Table_Values!L117))*360/256 -> 26.99497768
AH149: 2111.486486 | AI149: =(Table_Values!$E$3-((Table_Values!J116+Table_Values!$F$2)/Table_Values!E116))*360/256 -> 23.99493243 | AJ149: =(Table_Values!$E$3-((Table_Values!Q116+Table_Values!$M$2)/Table_Values!L116))*360/256 -> 26.99746622
AH150: 2130.681818 | AI150: =(Table_Values!$E$3-((Table_Values!J115+Table_Values!$F$2)/Table_Values!E115))*360/256 -> 23.99573864 | AJ150: =(Table_Values!$E$3-((Table_Values!Q115+Table_Values!$M$2)/Table_Values!L115))*360/256 -> 27
AH151: 2150.229358 | AI151: =(Table_Values!$E$3-((Table_Values!J114+Table_Values!$F$2)/Table_Values!E114))*360/256 -> 23.99655963 | AJ151: =(Table_Values!$E$3-((Table_Values!Q114+Table_Values!$M$2)/Table_Values!L114))*360/256 -> 27.00258028
AH152: 2170.138889 | AI152: =(Table_Values!$E$3-((Table_Values!J113+Table_Values!$F$2)/Table_Values!E113))*360/256 -> 23.99739583 | AJ152: =(Table_Values!$E$3-((Table_Values!Q113+Table_Values!$M$2)/Table_Values!L113))*360/256 -> 27.00520833
AH153: 2190.420561 | AI153: =(Table_Values!$E$3-((Table_Values!J112+Table_Values!$F$2)/Table_Values!E112))*360/256 -> 23.99824766 | AJ153: =(Table_Values!$E$3-((Table_Values!Q112+Table_Values!$M$2)/Table_Values!L112))*360/256 -> 26.99474299
AH154: 2211.084906 | AI154: =(Table_Values!$E$3-((Table_Values!J111+Table_Values!$F$2)/Table_Values!E111))*360/256 -> 23.99911557 | AJ154: =(Table_Values!$E$3-((Table_Values!Q111+Table_Values!$M$2)/Table_Values!L111))*360/256 -> 26.9973467
AH155: 2232.142857 | AI155: =(Table_Values!$E$3-((Table_Values!J110+Table_Values!$F$2)/Table_Values!E110))*360/256 -> 24 | AJ155: =(Table_Values!$E$3-((Table_Values!Q110+Table_Values!$M$2)/Table_Values!L110))*360/256 -> 27
AH156: 2253.605769 | AI156: =(Table_Values!$E$3-((Table_Values!J109+Table_Values!$F$2)/Table_Values!E109))*360/256 -> 24.00090144 | AJ156: =(Table_Values!$E$3-((Table_Values!Q109+Table_Values!$M$2)/Table_Values!L109))*360/256 -> 27.00270433
AH157: 2275.485437 | AI157: =(Table_Values!$E$3-((Table_Values!J108+Table_Values!$F$2)/Table_Values!E108))*360/256 -> 24.00182039 | AJ157: =(Table_Values!$E$3-((Table_Values!Q108+Table_Values!$M$2)/Table_Values!L108))*360/256 -> 27.00546117
AH158: 2297.794118 | AI158: =(Table_Values!$E$3-((Table_Values!J107+Table_Values!$F$2)/Table_Values!E107))*360/256 -> 24.00275735 | AJ158: =(Table_Values!$E$3-((Table_Values!Q107+Table_Values!$M$2)/Table_Values!L107))*360/256 -> 26.99448529
AH159: 2320.544554 | AI159: =(Table_Values!$E$3-((Table_Values!J106+Table_Values!$F$2)/Table_Values!E106))*360/256 -> 24.00371287 | AJ159: =(Table_Values!$E$3-((Table_Values!Q106+Table_Values!$M$2)/Table_Values!L106))*360/256 -> 26.99721535
AH160: 2343.75 | AI160: =(Table_Values!$E$3-((Table_Values!J105+Table_Values!$F$2)/Table_Values!E105))*360/256 -> 24.0046875 | AJ160: =(Table_Values!$E$3-((Table_Values!Q105+Table_Values!$M$2)/Table_Values!L105))*360/256 -> 27
AH161: 2367.424242 | AI161: =(Table_Values!$E$3-((Table_Values!J104+Table_Values!$F$2)/Table_Values!E104))*360/256 -> 24.00568182 | AJ161: =(Table_Values!$E$3-((Table_Values!Q104+Table_Values!$M$2)/Table_Values!L104))*360/256 -> 27.00284091
AH162: 2391.581633 | AI162: =(Table_Values!$E$3-((Table_Values!J103+Table_Values!$F$2)/Table_Values!E103))*360/256 -> 24.00669643 | AJ162: =(Table_Values!$E$3-((Table_Values!Q103+Table_Values!$M$2)/Table_Values!L103))*360/256 -> 27.0057398
AH163: 2416.237113 | AI163: =(Table_Values!$E$3-((Table_Values!J102+Table_Values!$F$2)/Table_Values!E102))*360/256 -> 23.99323454 | AJ163: =(Table_Values!$E$3-((Table_Values!Q102+Table_Values!$M$2)/Table_Values!L102))*360/256 -> 26.99420103
AH164: 2441.40625 | AI164: =(Table_Values!$E$3-((Table_Values!J101+Table_Values!$F$2)/Table_Values!E101))*360/256 -> 23.99414062 | AJ164: =(Table_Values!$E$3-((Table_Values!Q101+Table_Values!$M$2)/Table_Values!L101))*360/256 -> 26.99707031
AH165: 2467.105263 | AI165: =(Table_Values!$E$3-((Table_Values!J100+Table_Values!$F$2)/Table_Values!E100))*360/256 -> 23.99506579 | AJ165: =(Table_Values!$E$3-((Table_Values!Q100+Table_Values!$M$2)/Table_Values!L100))*360/256 -> 27
AH166: 2493.351064 | AI166: =(Table_Values!$E$3-((Table_Values!J99+Table_Values!$F$2)/Table_Values!E99))*360/256 -> 23.99601064 | AJ166: =(Table_Values!$E$3-((Table_Values!Q99+Table_Values!$M$2)/Table_Values!L99))*360/256 -> 27.00299202
AH167: 2520.16129 | AI167: =(Table_Values!$E$3-((Table_Values!J98+Table_Values!$F$2)/Table_Values!E98))*360/256 -> 23.99697581 | AJ167: =(Table_Values!$E$3-((Table_Values!Q98+Table_Values!$M$2)/Table_Values!L98))*360/256 -> 27.00604839
AH168: 2547.554348 | AI168: =(Table_Values!$E$3-((Table_Values!J97+Table_Values!$F$2)/Table_Values!E97))*360/256 -> 23.99796196 | AJ168: =(Table_Values!$E$3-((Table_Values!Q97+Table_Values!$M$2)/Table_Values!L97))*360/256 -> 26.99388587
AH169: 2575.549451 | AI169: =(Table_Values!$E$3-((Table_Values!J96+Table_Values!$F$2)/Table_Values!E96))*360/256 -> 23.99896978 | AJ169: =(Table_Values!$E$3-((Table_Values!Q96+Table_Values!$M$2)/Table_Values!L96))*360/256 -> 26.99690934
AH170: 2604.166667 | AI170: =(Table_Values!$E$3-((Table_Values!J95+Table_Values!$F$2)/Table_Values!E95))*360/256 -> 24 | AJ170: =(Table_Values!$E$3-((Table_Values!Q95+Table_Values!$M$2)/Table_Values!L95))*360/256 -> 27
AH171: 2633.426966 | AI171: =(Table_Values!$E$3-((Table_Values!J94+Table_Values!$F$2)/Table_Values!E94))*360/256 -> 24.00105337 | AJ171: =(Table_Values!$E$3-((Table_Values!Q94+Table_Values!$M$2)/Table_Values!L94))*360/256 -> 27.00316011
AH172: 2663.352273 | AI172: =(Table_Values!$E$3-((Table_Values!J93+Table_Values!$F$2)/Table_Values!E93))*360/256 -> 24.00213068 | AJ172: =(Table_Values!$E$3-((Table_Values!Q93+Table_Values!$M$2)/Table_Values!L93))*360/256 -> 27.00639205
AH173: 2693.965517 | AI173: =(Table_Values!$E$3-((Table_Values!J92+Table_Values!$F$2)/Table_Values!E92))*360/256 -> 24.00323276 | AJ173: =(Table_Values!$E$3-((Table_Values!Q92+Table_Values!$M$2)/Table_Values!L92))*360/256 -> 26.99353448
AH174: 2725.290698 | AI174: =(Table_Values!$E$3-((Table_Values!J91+Table_Values!$F$2)/Table_Values!E91))*360/256 -> 24.00436047 | AJ174: =(Table_Values!$E$3-((Table_Values!Q91+Table_Values!$M$2)/Table_Values!L91))*360/256 -> 26.99672965
AH175: 2757.352941 | AI175: =(Table_Values!$E$3-((Table_Values!J90+Table_Values!$F$2)/Table_Values!E90))*360/256 -> 24.00551471 | AJ175: =(Table_Values!$E$3-((Table_Values!Q90+Table_Values!$M$2)/Table_Values!L90))*360/256 -> 27
AH176: 2790.178571 | AI176: =(Table_Values!$E$3-((Table_Values!J89+Table_Values!$F$2)/Table_Values!E89))*360/256 -> 24.00669643 | AJ176: =(Table_Values!$E$3-((Table_Values!Q89+Table_Values!$M$2)/Table_Values!L89))*360/256 -> 27.00334821
AH177: 2823.795181 | AI177: =(Table_Values!$E$3-((Table_Values!J88+Table_Values!$F$2)/Table_Values!E88))*360/256 -> 24.00790663 | AJ177: =(Table_Values!$E$3-((Table_Values!Q88+Table_Values!$M$2)/Table_Values!L88))*360/256 -> 27.00677711
AH178: 2858.231707 | AI178: =(Table_Values!$E$3-((Table_Values!J87+Table_Values!$F$2)/Table_Values!E87))*360/256 -> 23.99199695 | AJ178: =(Table_Values!$E$3-((Table_Values!Q87+Table_Values!$M$2)/Table_Values!L87))*360/256 -> 26.99314024
AH179: 2893.518519 | AI179: =(Table_Values!$E$3-((Table_Values!J86+Table_Values!$F$2)/Table_Values!E86))*360/256 -> 23.99305556 | AJ179: =(Table_Values!$E$3-((Table_Values!Q86+Table_Values!$M$2)/Table_Values!L86))*360/256 -> 26.99652778
AH180: 2929.6875 | AI180: =(Table_Values!$E$3-((Table_Values!J85+Table_Values!$F$2)/Table_Values!E85))*360/256 -> 23.99414062 | AJ180: =(Table_Values!$E$3-((Table_Values!Q85+Table_Values!$M$2)/Table_Values!L85))*360/256 -> 27
AH181: 2966.772152 | AI181: =(Table_Values!$E$3-((Table_Values!J84+Table_Values!$F$2)/Table_Values!E84))*360/256 -> 23.99525316 | AJ181: =(Table_Values!$E$3-((Table_Values!Q84+Table_Values!$M$2)/Table_Values!L84))*360/256 -> 27.00356013
AH182: 3004.807692 | AI182: =(Table_Values!$E$3-((Table_Values!J83+Table_Values!$F$2)/Table_Values!E83))*360/256 -> 23.99639423 | AJ182: =(Table_Values!$E$3-((Table_Values!Q83+Table_Values!$M$2)/Table_Values!L83))*360/256 -> 27.00721154
AH183: 3043.831169 | AI183: =(Table_Values!$E$3-((Table_Values!J82+Table_Values!$F$2)/Table_Values!E82))*360/256 -> 23.99756494 | AJ183: =(Table_Values!$E$3-((Table_Values!Q82+Table_Values!$M$2)/Table_Values!L82))*360/256 -> 26.99269481
AH184: 3083.881579 | AI184: =(Table_Values!$E$3-((Table_Values!J81+Table_Values!$F$2)/Table_Values!E81))*360/256 -> 23.99876645 | AJ184: =(Table_Values!$E$3-((Table_Values!Q81+Table_Values!$M$2)/Table_Values!L81))*360/256 -> 26.99629934
AH185: 3125 | AI185: =(Table_Values!$E$3-((Table_Values!J80+Table_Values!$F$2)/Table_Values!E80))*360/256 -> 24 | AJ185: =(Table_Values!$E$3-((Table_Values!Q80+Table_Values!$M$2)/Table_Values!L80))*360/256 -> 27
AH186: 3167.22973 | AI186: =(Table_Values!$E$3-((Table_Values!J79+Table_Values!$F$2)/Table_Values!E79))*360/256 -> 24.00126689 | AJ186: =(Table_Values!$E$3-((Table_Values!Q79+Table_Values!$M$2)/Table_Values!L79))*360/256 -> 27.00380068
AH187: 3210.616438 | AI187: =(Table_Values!$E$3-((Table_Values!J78+Table_Values!$F$2)/Table_Values!E78))*360/256 -> 24.00256849 | AJ187: =(Table_Values!$E$3-((Table_Values!Q78+Table_Values!$M$2)/Table_Values!L78))*360/256 -> 27.00770548
AH188: 3255.208333 | AI188: =(Table_Values!$E$3-((Table_Values!J77+Table_Values!$F$2)/Table_Values!E77))*360/256 -> 24.00390625 | AJ188: =(Table_Values!$E$3-((Table_Values!Q77+Table_Values!$M$2)/Table_Values!L77))*360/256 -> 26.9921875
AH189: 3301.056338 | AI189: =(Table_Values!$E$3-((Table_Values!J76+Table_Values!$F$2)/Table_Values!E76))*360/256 -> 24.00528169 | AJ189: =(Table_Values!$E$3-((Table_Values!Q76+Table_Values!$M$2)/Table_Values!L76))*360/256 -> 26.99603873
AH190: 3348.214286 | AI190: =(Table_Values!$E$3-((Table_Values!J75+Table_Values!$F$2)/Table_Values!E75))*360/256 -> 24.00669643 | AJ190: =(Table_Values!$E$3-((Table_Values!Q75+Table_Values!$M$2)/Table_Values!L75))*360/256 -> 27
AH191: 3396.73913 | AI191: =(Table_Values!$E$3-((Table_Values!J74+Table_Values!$F$2)/Table_Values!E74))*360/256 -> 24.00815217 | AJ191: =(Table_Values!$E$3-((Table_Values!Q74+Table_Values!$M$2)/Table_Values!L74))*360/256 -> 27.00407609
AH192: 3446.691176 | AI192: =(Table_Values!$E$3-((Table_Values!J73+Table_Values!$F$2)/Table_Values!E73))*360/256 -> 24.00965074 | AJ192: =(Table_Values!$E$3-((Table_Values!Q73+Table_Values!$M$2)/Table_Values!L73))*360/256 -> 27.00827206
AH193: 3498.134328 | AI193: =(Table_Values!$E$3-((Table_Values!J72+Table_Values!$F$2)/Table_Values!E72))*360/256 -> 23.99020522 | AJ193: =(Table_Values!$E$3-((Table_Values!Q72+Table_Values!$M$2)/Table_Values!L72))*360/256 -> 26.99160448
AH194: 3551.136364 | AI194: =(Table_Values!$E$3-((Table_Values!J71+Table_Values!$F$2)/Table_Values!E71))*360/256 -> 23.99147727 | AJ194: =(Table_Values!$E$3-((Table_Values!Q71+Table_Values!$M$2)/Table_Values!L71))*360/256 -> 26.99573864
AH195: 3605.769231 | AI195: =(Table_Values!$E$3-((Table_Values!J70+Table_Values!$F$2)/Table_Values!E70))*360/256 -> 23.99278846 | AJ195: =(Table_Values!$E$3-((Table_Values!Q70+Table_Values!$M$2)/Table_Values!L70))*360/256 -> 27
AH196: 3662.109375 | AI196: =(Table_Values!$E$3-((Table_Values!J69+Table_Values!$F$2)/Table_Values!E69))*360/256 -> 23.99414062 | AJ196: =(Table_Values!$E$3-((Table_Values!Q69+Table_Values!$M$2)/Table_Values!L69))*360/256 -> 27.00439453
AH197: 3720.238095 | AI197: =(Table_Values!$E$3-((Table_Values!J68+Table_Values!$F$2)/Table_Values!E68))*360/256 -> 23.99553571 | AJ197: =(Table_Values!$E$3-((Table_Values!Q68+Table_Values!$M$2)/Table_Values!L68))*360/256 -> 27.00892857
AH198: 3780.241935 | AI198: =(Table_Values!$E$3-((Table_Values!J67+Table_Values!$F$2)/Table_Values!E67))*360/256 -> 23.99697581 | AJ198: =(Table_Values!$E$3-((Table_Values!Q67+Table_Values!$M$2)/Table_Values!L67))*360/256 -> 26.99092742
AH199: 3842.213115 | AI199: =(Table_Values!$E$3-((Table_Values!J66+Table_Values!$F$2)/Table_Values!E66))*360/256 -> 23.99846311 | AJ199: =(Table_Values!$E$3-((Table_Values!Q66+Table_Values!$M$2)/Table_Values!L66))*360/256 -> 26.99538934
AH200: 3906.25 | AI200: =(Table_Values!$E$3-((Table_Values!J65+Table_Values!$F$2)/Table_Values!E65))*360/256 -> 24 | AJ200: =(Table_Values!$E$3-((Table_Values!Q65+Table_Values!$M$2)/Table_Values!L65))*360/256 -> 27
AH201: 3972.457627 | AI201: =(Table_Values!$E$3-((Table_Values!J64+Table_Values!$F$2)/Table_Values!E64))*360/256 -> 24.00158898 | AJ201: =(Table_Values!$E$3-((Table_Values!Q64+Table_Values!$M$2)/Table_Values!L64))*360/256 -> 27.00476695
... 44 more rows

Sheet Saved_Curves
B2: Saved Curves
B3: Saved Curve 1 | E3: Name: | F3: test9-version 9.6 (John's Curve) | O3: Save Time: | Q3: 2012-10-06T23:04:40
B4: RPM Data | C4: 0,500,1000,1400,2000,2500,3000,3500,4000,4500,5000,5500,6000,6500,7000,7500,8000,8500,9000,9500,10000,10500,11000,12000,13000,14000,15000,16000
B5: Adv. Data | C5: 4,4,4,5,7.5,9.5,12,14,16,18,20,22,28,28,28,28,28,27,26,26,26,25,25,24,24,24,24,24
B7: Saved Curve 2 | E7: Name: | F7: test10-version 9.6 (John's Curve) | O7: Save Time: | Q7: 2012-10-06T23:05:26
B8: RPM Data | C8: 0,500,1000,1400,2000,2500,3000,3500,4000,4500,5000,5500,6000,6500,7000,7500,8000,8500,9000,9500,10000,10500,11000,12000,13000,14000,15000,16000
B9: Adv. Data | C9: 4,4,4,5,7.5,9.5,12,14,16,18,20,22,28,28,28,28,28,27,26,26,26,25,25,24,24,24,24,24
B11: Saved Curve 3 | E11: Name: | F11: Easy start, Newer model Homelite 25cc factory 24 deg. advance | O11: Save Time: | Q11: 2012-11-15T13:56:42
B12: RPM Data | C12: 0,500,1000,1400,2000,2500,3000,3500,4000,4500,5000,5500,6000,6500,7000,7500,8000,8500,9000,9500,10000,10500,11000,12000,13000,14000,15000,16000
B13: Adv. Data | C13: 5,10,24,24,24,24,24,24,24,24,24,24,24,24,24,24,24,24,24,24,24,24,24,24,24,24,24,24
B15: Saved Curve 4 | E15: Name: | F15: Easy start, Fixed 15 deg. advance | O15: Save Time: | Q15: 2012-10-21T16:29:40
B16: RPM Data | C16: 0,500,1000,1400,2000,2500,3000,3500,4000,4500,5000,5500,6000,6500,7000,7500,8000,8500,9000,9500,10000,10500,11000,12000,13000,14000,15000,16000
B17: Adv. Data | C17: 5,10,15,15,15,15,15,15,15,15,15,15,15,15,15,15,15,15,15,15,15,15,15,15,15,15,15,15
B19: Saved Curve 5 | E19: Name: | F19: Easy start, Fixed 20 deg. Advance | O19: Save Time: | Q19: 2012-10-21T16:30:06
B20: RPM Data | C20: 0,500,1000,1400,2000,2500,3000,3500,4000,4500,5000,5500,6000,6500,7000,7500,8000,8500,9000,9500,10000,10500,11000,12000,13000,14000,15000,16000
B21: Adv. Data | C21: 5,10,20,20,20,20,20,20,20,20,20,20,20,20,20,20,20,20,20,20,20,20,20,20,20,20,20,20
B23: Saved Curve 6 | E23: Name: | F23: Easy start, Fixed 25 deg. advance | O23: Save Time: | Q23: 2012-10-06T14:08:49
B24: RPM Data | C24: 0,500,1000,1400,2000,2500,3000,3500,4000,4500,5000,5500,6000,6500,7000,7500,8000,8500,9000,9500,10000,10500,11000,12000,13000,14000,15000,16000
B25: Adv. Data | C25: 5,12,25,25,25,25,25,25,25,25,25,25,25,25,25,25,25,25,25,25,25,25,25,25,25,25,25,25
C27: Preview | D27: 0 | E27: 500 | F27: 1000 | G27: 1400 | H27: 2000 | I27: 2500 | J27: 3000 | K27: 3500 | L27: 4000 | M27: 4500 | N27: 5000 | O27: 5500 | P27: 6000 | Q27: 6500 | R27: 7000 | S27: 7500 | T27: 8000 | U27: 8500 | V27: 9000 | W27: 9500 | X27: 10000 | Y27: 10500 | Z27: 11000 | AA27: 12000 | AB27: 13000 | AC27: 14000 | AD27: 15000 | AE27: 16000
C28: Data | D28: 5 | E28: 10 | F28: 24 | G28: 24 | H28: 24 | I28: 24 | J28: 24 | K28: 24 | L28: 24 | M28: 24 | N28: 24 | O28: 24 | P28: 24 | Q28: 24 | R28: 24 | S28: 24 | T28: 24 | U28: 24 | V28: 24 | W28: 24 | X28: 24 | Y28: 24 | Z28: 24 | AA28: 24 | AB28: 24 | AC28: 24 | AD28: 24 | AE28: 24

Sheet Table_Values
E2: Correction = | F2: 51 | G2: Curve-1 | L2: Correction = | M2: 51 | N2: Curve-2
B3: Curve-1 Values | E3: =Setup_Settings!$L$5 -> 32 | F3: Table = | G3: 4203,45,25,48047,2,3,102,1,40,0,0,0,0,0,0,173,188,203,218,233,248,263,278,292,307,322,337,352,367,382,397,412,427,442,457,472,487,502,516,531,546,561,576,591,606,621,636,651,666,681,696,711,726,740,755,770,785,800,815,830,845,860,875,890,905,920,935,950,964,979,994,1009,1024,1039,1054,1069,1084,1099,1114,1129,1144,1159,1174,1188,1203,1218,1233,1248,1263,1278,1293,1308,1323,1338,1353,1368,1383,1398,1412,1427,1442,1457,1472,1487,1502,1517,1532,1547,1562,1577,1592,1607,1622,1636,1651,1666,1681,1696,1711,1726,1741,1756,1771,1786,1801,1816,1831,1846,1860,1875,1890,1905,1920,1935,1950,1965,1980,1995,2010,2025,2040,2055,2070,2084,2099,2114,2129,2144,2159,2174,2189,2204,2219,2234,2249,2264,2279,2294,2308,2323,2338,2353,2368,2383,2398,2413,2428,2443,2458,2473,2488,2503,2518,2532,2547,2562,2577,2592,2607,2622,2637,2652,2667,2682,2697,2712,2727,2742,2756,2771,2786,2801,2816,2831,2846,2861,2876,2891,2906,2921,2936,2951,2966,2980,2995,3010,3025,3040,3055,3070,3085,3100,3115,3130,3145,3160,3175,3190,3204,3219,3234,3249,3264,3279,3294,3309,3324,3339,3354,3369,3384,3399,3414,3428,3443,3471,3506,3540,3575,3610,3645,3680,3715,3750,3784,3819,3854,3889,3924,3959,3993,4028,4063,4098,4133,4168 | L3: =Setup_Settings!$L$5 -> 32 | M3: Table = | N3: 3749,50,25,53906,3,3,102,1,40,0,0,0,0,0,0,141,154,167,179,192,205,218,231,243,256,269,282,295,307,320,333,346,359,371,384,397,410,423,435,448,461,474,487,499,512,525,538,551,563,576,589,602,615,627,640,653,666,679,691,704,717,730,743,755,768,781,794,807,819,832,845,858,871,883,896,909,922,935,947,960,973,986,999,1011,1024,1037,1050,1063,1075,1088,1101,1114,1127,1139,1152,1165,1178,1191,1203,1216,1229,1242,1255,1267,1280,1293,1306,1319,1331,1344,1357,1370,1383,1395,1408,1421,1434,1447,1459,1472,1485,1498,1511,1523,1536,1549,1562,1575,1587,1600,1613,1626,1639,1651,1664,1677,1690,1703,1715,1728,1741,1754,1767,1779,1792,1805,1818,1831,1843,1856,1869,1882,1895,1907,1920,1933,1946,1959,1971,1984,1997,2010,2023,2035,2048,2061,2074,2087,2099,2112,2125,2138,2151,2163,2176,2189,2202,2215,2227,2240,2253,2266,2279,2291,2304,2317,2330,2343,2355,2368,2381,2394,2407,2419,2432,2445,2458,2471,2483,2496,2509,2522,2535,2547,2560,2573,2586,2599,2611,2624,2637,2650,2663,2675,2688,2701,2714,2727,2739,2752,2765,2778,2791,2803,2816,2829,2842,2855,2867,2880,2893,2906,2919,2931,2944,2972,3009,3046,3083,3120,3157,3194,3231,3268,3305,3342,3379,3416,3453,3490,3527,3564,3601,3638,3675,3712 | U3: Curve-2 Values
B4: RPM | C4: Adv.° | E4: CurrentRev | F4: RPM | G4: Advance d° | H4: Delay d° | I4: Calc. Load | J4: Timer1 Load | L4: CurrentRev | M4: RPM | N4: Advance d° | O4: Delay d° | P4: Calc. Load | Q4: Timer1 Load | U4: RPM | V4: Adv.°
B5: =Advance_Curves!$C$4 -> 0 | C5: =Advance_Curves!$C$5 -> 5 | E5: 0 (256) | F5: =F261 -> 915.5273438 | G5: =G261 -> 15.38472222 | H5: =H261 -> 16.61527778 | I5: =I261 -> 4202.511111 | J5: =J261 -> 4203 | L5: 0 (256) | M5: =M261 -> 915.5273438 | N5: =N261 -> 17.15763889 | O5: =O261 -> 14.84236111 | P5: =P261 -> 3748.644444 | Q5: =Q261 -> 3749 | U5: =Advance_Curves!$C$33 -> 0 | V5: =Advance_Curves!$C$34 -> 5
B6: =Advance_Curves!$D$4 -> 500 | C6: =Advance_Curves!$D$5 -> 10 | E6: 1 | F6: =(1/(E6*256))*Setup_Settings!$E$5*60000000 -> 234375 | G6: X | H6: SensorDigiDeg | J6: =Setup_Settings!F11 -> 45 | L6: 1 | M6: =(1/(L6*256))*Setup_Settings!$E$5*60000000 -> 234375 | N6: X | O6: SensorDigiDeg | Q6: =Setup_Settings!F21 -> 50 | U6: =Advance_Curves!$D$33 -> 500 | V6: =Advance_Curves!$D$34 -> 10
B7: =Advance_Curves!$E$4 -> 1000 | C7: =Advance_Curves!$E$5 -> 24 | E7: 2 | F7: =(1/(E7*256))*Setup_Settings!$E$5*60000000 -> 117187.5 | G7: X | H7: LowRPMAdvance | J7: =Setup_Settings!F12 -> 25 | L7: 2 | M7: =(1/(L7*256))*Setup_Settings!$E$5*60000000 -> 117187.5 | N7: X | O7: LowRPMAdvance | Q7: =Setup_Settings!F22 -> 25 | U7: =Advance_Curves!$E$33 -> 1000 | V7: =Advance_Curves!$E$34 -> 27
B8: =Advance_Curves!$F$4 -> 1400 | C8: =Advance_Curves!$F$5 -> 24 | E8: 3 | F8: =(1/(E8*256))*Setup_Settings!$E$5*60000000 -> 78125 | G8: X | H8: StartDelay | J8: =Setup_Settings!F13 -> 48047 | L8: 3 | M8: =(1/(L8*256))*Setup_Settings!$E$5*60000000 -> 78125 | N8: X | O8: StartDelay | Q8: =Setup_Settings!F23 -> 53906 | U8: =Advance_Curves!$F$33 -> 1400 | V8: =Advance_Curves!$F$34 -> 27
B9: =Advance_Curves!$G$4 -> 2000 | C9: =Advance_Curves!$G$5 -> 24 | E9: 4 | F9: =(1/(E9*256))*Setup_Settings!$E$5*60000000 -> 58593.75 | G9: X | H9: MSD_Start_Spark | J9: =Setup_Settings!F14 -> 2 | L9: 4 | M9: =(1/(L9*256))*Setup_Settings!$E$5*60000000 -> 58593.75 | N9: X | O9: MSD_Start_Spark | Q9: =Setup_Settings!F24 -> 3 | U9: =Advance_Curves!$G$33 -> 2000 | V9: =Advance_Curves!$G$34 -> 27
B10: =Advance_Curves!$H$4 -> 2500 | C10: =Advance_Curves!$H$5 -> 24 | E10: 5 | F10: =(1/(E10*256))*Setup_Settings!$E$5*60000000 -> 46875 | G10: X | H10: MSD_Low_Spark | J10: =Setup_Settings!F15 -> 3 | L10: 5 | M10: =(1/(L10*256))*Setup_Settings!$E$5*60000000 -> 46875 | N10: X | O10: MSD_Low_Spark | Q10: =Setup_Settings!F25 -> 3 | U10: =Advance_Curves!$H$33 -> 2500 | V10: =Advance_Curves!$H$34 -> 27
B11: =Advance_Curves!$I$4 -> 3000 | C11: =Advance_Curves!$I$5 -> 24 | E11: 6 | F11: =(1/(E11*256))*Setup_Settings!$E$5*60000000 -> 39062.5 | G11: X | H11: Max_MSD_Rev | J11: =Setup_Settings!F16 -> 102 | L11: 6 | M11: =(1/(L11*256))*Setup_Settings!$E$5*60000000 -> 39062.5 | N11: X | O11: Max_MSD_Rev | Q11: =Setup_Settings!F26 -> 102 | U11: =Advance_Curves!$I$33 -> 3000 | V11: =Advance_Curves!$I$34 -> 27
B12: =Advance_Curves!$J$4 -> 3500 | C12: =Advance_Curves!$J$5 -> 24 | E12: 7 | F12: =(1/(E12*256))*Setup_Settings!$E$5*60000000 -> 33482.14286 | G12: X | H12: MSD_Spark | J12: =Setup_Settings!F17 -> 1 | L12: 7 | M12: =(1/(L12*256))*Setup_Settings!$E$5*60000000 -> 33482.14286 | N12: X | O12: MSD_Spark | Q12: =Setup_Settings!F27 -> 1 | U12: =Advance_Curves!$J$33 -> 3500 | V12: =Advance_Curves!$J$34 -> 27
B13: =Advance_Curves!$K$4 -> 4000 | C13: =Advance_Curves!$K$5 -> 24 | E13: 8 | F13: =(1/(E13*256))*Setup_Settings!$E$5*60000000 -> 29296.875 | G13: X | H13: MSD_Delay | J13: =Setup_Settings!F18 -> 40 | L13: 8 | M13: =(1/(L13*256))*Setup_Settings!$E$5*60000000 -> 29296.875 | N13: X | O13: MSD_Delay | Q13: =Setup_Settings!F28 -> 40 | U13: =Advance_Curves!$K$33 -> 4000 | V13: =Advance_Curves!$K$34 -> 27
B14: =Advance_Curves!$L$4 -> 4500 | C14: =Advance_Curves!$L$5 -> 24 | E14: 9 | F14: =(1/(E14*256))*Setup_Settings!$E$5*60000000 -> 26041.66667 | G14: X | H14: x | I14: X | J14: 0 | L14: 9 | M14: =(1/(L14*256))*Setup_Settings!$E$5*60000000 -> 26041.66667 | N14: X | O14: X | P14: X | Q14: 0 | U14: =Advance_Curves!$L$33 -> 4500 | V14: =Advance_Curves!$L$34 -> 27
B15: =Advance_Curves!$M$4 -> 5000 | C15: =Advance_Curves!$M$5 -> 24 | E15: 10 | F15: =(1/(E15*256))*Setup_Settings!$E$5*60000000 -> 23437.5 | G15: X | H15: X | I15: X | J15: 0 | L15: 10 | M15: =(1/(L15*256))*Setup_Settings!$E$5*60000000 -> 23437.5 | N15: X | O15: X | P15: X | Q15: 0 | U15: =Advance_Curves!$M$33 -> 5000 | V15: =Advance_Curves!$M$34 -> 27
B16: =Advance_Curves!$N$4 -> 5500 | C16: =Advance_Curves!$N$5 -> 24 | E16: 11 | F16: =(1/(E16*256))*Setup_Settings!$E$5*60000000 -> 21306.81818 | G16: X | H16: X | I16: X | J16: 0 | L16: 11 | M16: =(1/(L16*256))*Setup_Settings!$E$5*60000000 -> 21306.81818 | N16: X | O16: X | P16: X | Q16: 0 | U16: =Advance_Curves!$N$33 -> 5500 | V16: =Advance_Curves!$N$34 -> 27
B17: =Advance_Curves!$O$4 -> 6000 | C17: =Advance_Curves!$O$5 -> 24 | E17: 12 | F17: =(1/(E17*256))*Setup_Settings!$E$5*60000000 -> 19531.25 | G17: X | H17: X | I17: X | J17: 0 | L17: 12 | M17: =(1/(L17*256))*Setup_Settings!$E$5*60000000 -> 19531.25 | N17: X | O17: X | P17: X | Q17: 0 | U17: =Advance_Curves!$O$33 -> 6000 | V17: =Advance_Curves!$O$34 -> 27
B18: =Advance_Curves!$P$4 -> 6500 | C18: =Advance_Curves!$P$5 -> 24 | E18: 13 | F18: =(1/(E18*256))*Setup_Settings!$E$5*60000000 -> 18028.84615 | G18: X | H18: X | I18: X | J18: 0 | L18: 13 | M18: =(1/(L18*256))*Setup_Settings!$E$5*60000000 -> 18028.84615 | N18: X | O18: X | P18: X | Q18: 0 | U18: =Advance_Curves!$P$33 -> 6500 | V18: =Advance_Curves!$P$34 -> 27
B19: =Advance_Curves!$Q$4 -> 7000 | C19: =Advance_Curves!$Q$5 -> 24 | E19: 14 | F19: =(1/(E19*256))*Setup_Settings!$E$5*60000000 -> 16741.07143 | G19: X | H19: X | I19: X | J19: 0 | L19: 14 | M19: =(1/(L19*256))*Setup_Settings!$E$5*60000000 -> 16741.07143 | N19: X | O19: X | P19: X | Q19: 0 | U19: =Advance_Curves!$Q$33 -> 7000 | V19: =Advance_Curves!$Q$34 -> 27
B20: =Advance_Curves!$R$4 -> 7500 | C20: =Advance_Curves!$R$5 -> 24 | E20: 15 | F20: =(1/(E20*256))*Setup_Settings!$E$5*60000000 -> 15625 | G20: =(TREND(INDEX($C$5:$C$32,MATCH(F20,$B$5:$B$32)):INDEX($C$5:$C$32,MATCH(F20,$B$5:$B$32)+1),INDEX($B$5:$B$32,MATCH(F20,$B$5:$B$32)):INDEX($B$5:$B$32,MATCH(F20,$B$5:$B$32)+1),F20))*256/360 -> 17.06666667 | H20: =$E$3-G20 -> 14.93333333 | I20: =(E20*H20)-$F$2 -> 173 | J20: =IF((ROUND(E20*H20,0)-$F$2)>0,(ROUND(E20*H20,0)-$F$2),1) -> 173 | L20: 15 | M20: =(1/(L20*256))*Setup_Settings!$E$5*60000000 -> 15625 | N20: =(TREND(INDEX($V$5:$V$32,MATCH(F20,$U$5:$U$32)):INDEX($V$5:$V$32,MATCH(F20,$U$5:$U$32)+1),INDEX($U$5:$U$32,MATCH(F20,$U$5:$U$32)):INDEX($U$5:$U$32,MATCH(F20,$U$5:$U$32)+1),F20))*256/360 -> 19.2 | O20: =$L$3-N20 -> 12.8 | P20: =(L20*O20)-$F$2 -> 141 | Q20: =IF((ROUND(L20*O20,0)-$F$2)>1,(ROUND(L20*O20,0)-$M$2),1) -> 141 | U20: =Advance_Curves!$R$33 -> 7500 | V20: =Advance_Curves!$R$34 -> 27
B21: =Advance_Curves!$S$4 -> 8000 | C21: =Advance_Curves!$S$5 -> 24 | E21: 16 | F21: =(1/(E21*256))*Setup_Settings!$E$5*60000000 -> 14648.4375 | G21: =(TREND(INDEX($C$5:$C$32,MATCH(F21,$B$5:$B$32)):INDEX($C$5:$C$32,MATCH(F21,$B$5:$B$32)+1),INDEX($B$5:$B$32,MATCH(F21,$B$5:$B$32)):INDEX($B$5:$B$32,MATCH(F21,$B$5:$B$32)+1),F21))*256/360 -> 17.06666667 | H21: =$E$3-G21 -> 14.93333333 | I21: =(E21*H21)-$F$2 -> 187.9333333 | J21: =IF((ROUND(E21*H21,0)-$F$2)>0,(ROUND(E21*H21,0)-$F$2),1) -> 188 | L21: 16 | M21: =(1/(L21*256))*Setup_Settings!$E$5*60000000 -> 14648.4375 | N21: =(TREND(INDEX($V$5:$V$32,MATCH(F21,$U$5:$U$32)):INDEX($V$5:$V$32,MATCH(F21,$U$5:$U$32)+1),INDEX($U$5:$U$32,MATCH(F21,$U$5:$U$32)):INDEX($U$5:$U$32,MATCH(F21,$U$5:$U$32)+1),F21))*256/360 -> 19.2 | O21: =$L$3-N21 -> 12.8 | P21: =(L21*O21)-$F$2 -> 153.8 | Q21: =IF((ROUND(L21*O21,0)-$F$2)>1,(ROUND(L21*O21,0)-$M$2),1) -> 154 | U21: =Advance_Curves!$S$33 -> 8000 | V21: =Advance_Curves!$S$34 -> 27
B22: =Advance_Curves!$T$4 -> 8500 | C22: =Advance_Curves!$T$5 -> 24 | E22: 17 | F22: =(1/(E22*256))*Setup_Settings!$E$5*60000000 -> 13786.76471 | G22: =(TREND(INDEX($C$5:$C$32,MATCH(F22,$B$5:$B$32)):INDEX($C$5:$C$32,MATCH(F22,$B$5:$B$32)+1),INDEX($B$5:$B$32,MATCH(F22,$B$5:$B$32)):INDEX($B$5:$B$32,MATCH(F22,$B$5:$B$32)+1),F22))*256/360 -> 17.06666667 | H22: =$E$3-G22 -> 14.93333333 | I22: =(E22*H22)-$F$2 -> 202.8666667 | J22: =IF((ROUND(E22*H22,0)-$F$2)>0,(ROUND(E22*H22,0)-$F$2),1) -> 203 | L22: 17 | M22: =(1/(L22*256))*Setup_Settings!$E$5*60000000 -> 13786.76471 | N22: =(TREND(INDEX($V$5:$V$32,MATCH(F22,$U$5:$U$32)):INDEX($V$5:$V$32,MATCH(F22,$U$5:$U$32)+1),INDEX($U$5:$U$32,MATCH(F22,$U$5:$U$32)):INDEX($U$5:$U$32,MATCH(F22,$U$5:$U$32)+1),F22))*256/360 -> 19.2 | O22: =$L$3-N22 -> 12.8 | P22: =(L22*O22)-$F$2 -> 166.6 | Q22: =IF((ROUND(L22*O22,0)-$F$2)>1,(ROUND(L22*O22,0)-$M$2),1) -> 167 | U22: =Advance_Curves!$T$33 -> 8500 | V22: =Advance_Curves!$T$34 -> 27
B23: =Advance_Curves!$U$4 -> 9000 | C23: =Advance_Curves!$U$5 -> 24 | E23: 18 | F23: =(1/(E23*256))*Setup_Settings!$E$5*60000000 -> 13020.83333 | G23: =(TREND(INDEX($C$5:$C$32,MATCH(F23,$B$5:$B$32)):INDEX($C$5:$C$32,MATCH(F23,$B$5:$B$32)+1),INDEX($B$5:$B$32,MATCH(F23,$B$5:$B$32)):INDEX($B$5:$B$32,MATCH(F23,$B$5:$B$32)+1),F23))*256/360 -> 17.06666667 | H23: 14.93333333 | I23: 217.8 | J23: 218 | L23: 18 | M23: =(1/(L23*256))*Setup_Settings!$E$5*60000000 -> 13020.83333 | N23: =(TREND(INDEX($V$5:$V$32,MATCH(F23,$U$5:$U$32)):INDEX($V$5:$V$32,MATCH(F23,$U$5:$U$32)+1),INDEX($U$5:$U$32,MATCH(F23,$U$5:$U$32)):INDEX($U$5:$U$32,MATCH(F23,$U$5:$U$32)+1),F23))*256/360 -> 19.2 | O23: 12.8 | P23: =(L23*O23)-$F$2 -> 179.4 | Q23: 179 | U23: =Advance_Curves!$U$33 -> 9000 | V23: =Advance_Curves!$U$34 -> 27
B24: =Advance_Curves!$V$4 -> 9500 | C24: =Advance_Curves!$V$5 -> 24 | E24: 19 | F24: =(1/(E24*256))*Setup_Settings!$E$5*60000000 -> 12335.52632 | G24: =(TREND(INDEX($C$5:$C$32,MATCH(F24,$B$5:$B$32)):INDEX($C$5:$C$32,MATCH(F24,$B$5:$B$32)+1),INDEX($B$5:$B$32,MATCH(F24,$B$5:$B$32)):INDEX($B$5:$B$32,MATCH(F24,$B$5:$B$32)+1),F24))*256/360 -> 17.06666667 | H24: =$E$3-G24 -> 14.93333333 | I24: 232.7333333 | J24: 233 | L24: 19 | M24: =(1/(L24*256))*Setup_Settings!$E$5*60000000 -> 12335.52632 | N24: =(TREND(INDEX($V$5:$V$32,MATCH(F24,$U$5:$U$32)):INDEX($V$5:$V$32,MATCH(F24,$U$5:$U$32)+1),INDEX($U$5:$U$32,MATCH(F24,$U$5:$U$32)):INDEX($U$5:$U$32,MATCH(F24,$U$5:$U$32)+1),F24))*256/360 -> 19.2 | O24: 12.8 | P24: 192.2 | Q24: 192 | U24: =Advance_Curves!$V$33 -> 9500 | V24: =Advance_Curves!$V$34 -> 27
B25: =Advance_Curves!$W$4 -> 10000 | C25: =Advance_Curves!$W$5 -> 24 | E25: 20 | F25: =(1/(E25*256))*Setup_Settings!$E$5*60000000 -> 11718.75 | G25: =(TREND(INDEX($C$5:$C$32,MATCH(F25,$B$5:$B$32)):INDEX($C$5:$C$32,MATCH(F25,$B$5:$B$32)+1),INDEX($B$5:$B$32,MATCH(F25,$B$5:$B$32)):INDEX($B$5:$B$32,MATCH(F25,$B$5:$B$32)+1),F25))*256/360 -> 17.06666667 | H25: 14.93333333 | I25: 247.6666667 | J25: 248 | L25: 20 | M25: =(1/(L25*256))*Setup_Settings!$E$5*60000000 -> 11718.75 | N25: =(TREND(INDEX($V$5:$V$32,MATCH(F25,$U$5:$U$32)):INDEX($V$5:$V$32,MATCH(F25,$U$5:$U$32)+1),INDEX($U$5:$U$32,MATCH(F25,$U$5:$U$32)):INDEX($U$5:$U$32,MATCH(F25,$U$5:$U$32)+1),F25))*256/360 -> 19.2 | O25: 12.8 | P25: 205 | Q25: 205 | U25: =Advance_Curves!$W$33 -> 10000 | V25: =Advance_Curves!$W$34 -> 27
B26: =Advance_Curves!$X$4 -> 10500 | C26: =Advance_Curves!$X$5 -> 24 | E26: 21 | F26: =(1/(E26*256))*Setup_Settings!$E$5*60000000 -> 11160.71429 | G26: =(TREND(INDEX($C$5:$C$32,MATCH(F26,$B$5:$B$32)):INDEX($C$5:$C$32,MATCH(F26,$B$5:$B$32)+1),INDEX($B$5:$B$32,MATCH(F26,$B$5:$B$32)):INDEX($B$5:$B$32,MATCH(F26,$B$5:$B$32)+1),F26))*256/360 -> 17.06666667 | H26: 14.93333333 | I26: =(E26*H26)-$F$2 -> 262.6 | J26: 263 | L26: 21 | M26: =(1/(L26*256))*Setup_Settings!$E$5*60000000 -> 11160.71429 | N26: =(TREND(INDEX($V$5:$V$32,MATCH(F26,$U$5:$U$32)):INDEX($V$5:$V$32,MATCH(F26,$U$5:$U$32)+1),INDEX($U$5:$U$32,MATCH(F26,$U$5:$U$32)):INDEX($U$5:$U$32,MATCH(F26,$U$5:$U$32)+1),F26))*256/360 -> 19.2 | O26: 12.8 | P26: =(L26*O26)-$F$2 -> 217.8 | Q26: 218 | U26: =Advance_Curves!$X$33 -> 10500 | V26: =Advance_Curves!$X$34 -> 27
B27: =Advance_Curves!$Y$4 -> 11000 | C27: =Advance_Curves!$Y$5 -> 24 | E27: 22 | F27: =(1/(E27*256))*Setup_Settings!$E$5*60000000 -> 10653.40909 | G27: =(TREND(INDEX($C$5:$C$32,MATCH(F27,$B$5:$B$32)):INDEX($C$5:$C$32,MATCH(F27,$B$5:$B$32)+1),INDEX($B$5:$B$32,MATCH(F27,$B$5:$B$32)):INDEX($B$5:$B$32,MATCH(F27,$B$5:$B$32)+1),F27))*256/360 -> 17.06666667 | H27: 14.93333333 | I27: 277.5333333 | J27: 278 | L27: 22 | M27: =(1/(L27*256))*Setup_Settings!$E$5*60000000 -> 10653.40909 | N27: =(TREND(INDEX($V$5:$V$32,MATCH(F27,$U$5:$U$32)):INDEX($V$5:$V$32,MATCH(F27,$U$5:$U$32)+1),INDEX($U$5:$U$32,MATCH(F27,$U$5:$U$32)):INDEX($U$5:$U$32,MATCH(F27,$U$5:$U$32)+1),F27))*256/360 -> 19.2 | O27: 12.8 | P27: =(L27*O27)-$F$2 -> 230.6 | Q27: 231 | U27: =Advance_Curves!$Y$33 -> 11000 | V27: =Advance_Curves!$Y$34 -> 27
B28: =Advance_Curves!$Z$4 -> 12000 | C28: =Advance_Curves!$Z$5 -> 24 | E28: 23 | F28: =(1/(E28*256))*Setup_Settings!$E$5*60000000 -> 10190.21739 | G28: =(TREND(INDEX($C$5:$C$32,MATCH(F28,$B$5:$B$32)):INDEX($C$5:$C$32,MATCH(F28,$B$5:$B$32)+1),INDEX($B$5:$B$32,MATCH(F28,$B$5:$B$32)):INDEX($B$5:$B$32,MATCH(F28,$B$5:$B$32)+1),F28))*256/360 -> 17.06666667 | H28: 14.93333333 | I28: 292.4666667 | J28: 292 | L28: 23 | M28: =(1/(L28*256))*Setup_Settings!$E$5*60000000 -> 10190.21739 | N28: =(TREND(INDEX($V$5:$V$32,MATCH(F28,$U$5:$U$32)):INDEX($V$5:$V$32,MATCH(F28,$U$5:$U$32)+1),INDEX($U$5:$U$32,MATCH(F28,$U$5:$U$32)):INDEX($U$5:$U$32,MATCH(F28,$U$5:$U$32)+1),F28))*256/360 -> 19.2 | O28: 12.8 | P28: 243.4 | Q28: 243 | U28: =Advance_Curves!$Z$33 -> 12000 | V28: =Advance_Curves!$Z$34 -> 27
B29: =Advance_Curves!$AA$4 -> 13000 | C29: =Advance_Curves!$AA$5 -> 24 | E29: 24 | F29: =(1/(E29*256))*Setup_Settings!$E$5*60000000 -> 9765.625 | G29: =(TREND(INDEX($C$5:$C$32,MATCH(F29,$B$5:$B$32)):INDEX($C$5:$C$32,MATCH(F29,$B$5:$B$32)+1),INDEX($B$5:$B$32,MATCH(F29,$B$5:$B$32)):INDEX($B$5:$B$32,MATCH(F29,$B$5:$B$32)+1),F29))*256/360 -> 17.06666667 | H29: 14.93333333 | I29: 307.4 | J29: 307 | L29: 24 | M29: =(1/(L29*256))*Setup_Settings!$E$5*60000000 -> 9765.625 | N29: =(TREND(INDEX($V$5:$V$32,MATCH(F29,$U$5:$U$32)):INDEX($V$5:$V$32,MATCH(F29,$U$5:$U$32)+1),INDEX($U$5:$U$32,MATCH(F29,$U$5:$U$32)):INDEX($U$5:$U$32,MATCH(F29,$U$5:$U$32)+1),F29))*256/360 -> 19.2 | O29: 12.8 | P29: 256.2 | Q29: 256 | U29: =Advance_Curves!$AA$33 -> 13000 | V29: =Advance_Curves!$AA$34 -> 27
B30: =Advance_Curves!$AB$4 -> 14000 | C30: =Advance_Curves!$AB$5 -> 24 | E30: 25 | F30: =(1/(E30*256))*Setup_Settings!$E$5*60000000 -> 9375 | G30: =(TREND(INDEX($C$5:$C$32,MATCH(F30,$B$5:$B$32)):INDEX($C$5:$C$32,MATCH(F30,$B$5:$B$32)+1),INDEX($B$5:$B$32,MATCH(F30,$B$5:$B$32)):INDEX($B$5:$B$32,MATCH(F30,$B$5:$B$32)+1),F30))*256/360 -> 17.06666667 | H30: 14.93333333 | I30: 322.3333333 | J30: 322 | L30: 25 | M30: =(1/(L30*256))*Setup_Settings!$E$5*60000000 -> 9375 | N30: =(TREND(INDEX($V$5:$V$32,MATCH(F30,$U$5:$U$32)):INDEX($V$5:$V$32,MATCH(F30,$U$5:$U$32)+1),INDEX($U$5:$U$32,MATCH(F30,$U$5:$U$32)):INDEX($U$5:$U$32,MATCH(F30,$U$5:$U$32)+1),F30))*256/360 -> 19.2 | O30: 12.8 | P30: 269 | Q30: 269 | U30: =Advance_Curves!$AB$33 -> 14000 | V30: =Advance_Curves!$AB$34 -> 27
B31: =Advance_Curves!$AC$4 -> 15000 | C31: =Advance_Curves!$AC$5 -> 24 | E31: 26 | F31: =(1/(E31*256))*Setup_Settings!$E$5*60000000 -> 9014.423077 | G31: =(TREND(INDEX($C$5:$C$32,MATCH(F31,$B$5:$B$32)):INDEX($C$5:$C$32,MATCH(F31,$B$5:$B$32)+1),INDEX($B$5:$B$32,MATCH(F31,$B$5:$B$32)):INDEX($B$5:$B$32,MATCH(F31,$B$5:$B$32)+1),F31))*256/360 -> 17.06666667 | H31: 14.93333333 | I31: 337.2666667 | J31: 337 | L31: 26 | M31: =(1/(L31*256))*Setup_Settings!$E$5*60000000 -> 9014.423077 | N31: =(TREND(INDEX($V$5:$V$32,MATCH(F31,$U$5:$U$32)):INDEX($V$5:$V$32,MATCH(F31,$U$5:$U$32)+1),INDEX($U$5:$U$32,MATCH(F31,$U$5:$U$32)):INDEX($U$5:$U$32,MATCH(F31,$U$5:$U$32)+1),F31))*256/360 -> 19.2 | O31: 12.8 | P31: 281.8 | Q31: 282 | U31: =Advance_Curves!$AC$33 -> 15000 | V31: =Advance_Curves!$AC$34 -> 27
B32: =Advance_Curves!$AD$4 -> 16000 | C32: =Advance_Curves!$AD$5 -> 24 | E32: 27 | F32: =(1/(E32*256))*Setup_Settings!$E$5*60000000 -> 8680.555556 | G32: =(TREND(INDEX($C$5:$C$32,MATCH(F32,$B$5:$B$32)):INDEX($C$5:$C$32,MATCH(F32,$B$5:$B$32)+1),INDEX($B$5:$B$32,MATCH(F32,$B$5:$B$32)):INDEX($B$5:$B$32,MATCH(F32,$B$5:$B$32)+1),F32))*256/360 -> 17.06666667 | H32: 14.93333333 | I32: 352.2 | J32: 352 | L32: 27 | M32: =(1/(L32*256))*Setup_Settings!$E$5*60000000 -> 8680.555556 | N32: =(TREND(INDEX($V$5:$V$32,MATCH(F32,$U$5:$U$32)):INDEX($V$5:$V$32,MATCH(F32,$U$5:$U$32)+1),INDEX($U$5:$U$32,MATCH(F32,$U$5:$U$32)):INDEX($U$5:$U$32,MATCH(F32,$U$5:$U$32)+1),F32))*256/360 -> 19.2 | O32: 12.8 | P32: 294.6 | Q32: 295 | U32: =Advance_Curves!$AD$33 -> 16000 | V32: =Advance_Curves!$AD$34 -> 27
E33: 28 | F33: =(1/(E33*256))*Setup_Settings!$E$5*60000000 -> 8370.535714 | G33: =(TREND(INDEX($C$5:$C$32,MATCH(F33,$B$5:$B$32)):INDEX($C$5:$C$32,MATCH(F33,$B$5:$B$32)+1),INDEX($B$5:$B$32,MATCH(F33,$B$5:$B$32)):INDEX($B$5:$B$32,MATCH(F33,$B$5:$B$32)+1),F33))*256/360 -> 17.06666667 | H33: 14.93333333 | I33: 367.1333333 | J33: 367 | L33: 28 | M33: =(1/(L33*256))*Setup_Settings!$E$5*60000000 -> 8370.535714 | N33: =(TREND(INDEX($V$5:$V$32,MATCH(F33,$U$5:$U$32)):INDEX($V$5:$V$32,MATCH(F33,$U$5:$U$32)+1),INDEX($U$5:$U$32,MATCH(F33,$U$5:$U$32)):INDEX($U$5:$U$32,MATCH(F33,$U$5:$U$32)+1),F33))*256/360 -> 19.2 | O33: 12.8 | P33: 307.4 | Q33: 307
E34: 29 | F34: =(1/(E34*256))*Setup_Settings!$E$5*60000000 -> 8081.896552 | G34: =(TREND(INDEX($C$5:$C$32,MATCH(F34,$B$5:$B$32)):INDEX($C$5:$C$32,MATCH(F34,$B$5:$B$32)+1),INDEX($B$5:$B$32,MATCH(F34,$B$5:$B$32)):INDEX($B$5:$B$32,MATCH(F34,$B$5:$B$32)+1),F34))*256/360 -> 17.06666667 | H34: 14.93333333 | I34: 382.0666667 | J34: 382 | L34: 29 | M34: =(1/(L34*256))*Setup_Settings!$E$5*60000000 -> 8081.896552 | N34: =(TREND(INDEX($V$5:$V$32,MATCH(F34,$U$5:$U$32)):INDEX($V$5:$V$32,MATCH(F34,$U$5:$U$32)+1),INDEX($U$5:$U$32,MATCH(F34,$U$5:$U$32)):INDEX($U$5:$U$32,MATCH(F34,$U$5:$U$32)+1),F34))*256/360 -> 19.2 | O34: 12.8 | P34: 320.2 | Q34: 320
E35: 30 | F35: =(1/(E35*256))*Setup_Settings!$E$5*60000000 -> 7812.5 | G35: =(TREND(INDEX($C$5:$C$32,MATCH(F35,$B$5:$B$32)):INDEX($C$5:$C$32,MATCH(F35,$B$5:$B$32)+1),INDEX($B$5:$B$32,MATCH(F35,$B$5:$B$32)):INDEX($B$5:$B$32,MATCH(F35,$B$5:$B$32)+1),F35))*256/360 -> 17.06666667 | H35: 14.93333333 | I35: 397 | J35: 397 | L35: 30 | M35: =(1/(L35*256))*Setup_Settings!$E$5*60000000 -> 7812.5 | N35: =(TREND(INDEX($V$5:$V$32,MATCH(F35,$U$5:$U$32)):INDEX($V$5:$V$32,MATCH(F35,$U$5:$U$32)+1),INDEX($U$5:$U$32,MATCH(F35,$U$5:$U$32)):INDEX($U$5:$U$32,MATCH(F35,$U$5:$U$32)+1),F35))*256/360 -> 19.2 | O35: 12.8 | P35: 333 | Q35: 333
E36: 31 | F36: =(1/(E36*256))*Setup_Settings!$E$5*60000000 -> 7560.483871 | G36: =(TREND(INDEX($C$5:$C$32,MATCH(F36,$B$5:$B$32)):INDEX($C$5:$C$32,MATCH(F36,$B$5:$B$32)+1),INDEX($B$5:$B$32,MATCH(F36,$B$5:$B$32)):INDEX($B$5:$B$32,MATCH(F36,$B$5:$B$32)+1),F36))*256/360 -> 17.06666667 | H36: 14.93333333 | I36: 411.9333333 | J36: 412 | L36: 31 | M36: =(1/(L36*256))*Setup_Settings!$E$5*60000000 -> 7560.483871 | N36: =(TREND(INDEX($V$5:$V$32,MATCH(F36,$U$5:$U$32)):INDEX($V$5:$V$32,MATCH(F36,$U$5:$U$32)+1),INDEX($U$5:$U$32,MATCH(F36,$U$5:$U$32)):INDEX($U$5:$U$32,MATCH(F36,$U$5:$U$32)+1),F36))*256/360 -> 19.2 | O36: 12.8 | P36: 345.8 | Q36: 346
E37: 32 | F37: =(1/(E37*256))*Setup_Settings!$E$5*60000000 -> 7324.21875 | G37: =(TREND(INDEX($C$5:$C$32,MATCH(F37,$B$5:$B$32)):INDEX($C$5:$C$32,MATCH(F37,$B$5:$B$32)+1),INDEX($B$5:$B$32,MATCH(F37,$B$5:$B$32)):INDEX($B$5:$B$32,MATCH(F37,$B$5:$B$32)+1),F37))*256/360 -> 17.06666667 | H37: 14.93333333 | I37: 426.8666667 | J37: 427 | L37: 32 | M37: =(1/(L37*256))*Setup_Settings!$E$5*60000000 -> 7324.21875 | N37: =(TREND(INDEX($V$5:$V$32,MATCH(F37,$U$5:$U$32)):INDEX($V$5:$V$32,MATCH(F37,$U$5:$U$32)+1),INDEX($U$5:$U$32,MATCH(F37,$U$5:$U$32)):INDEX($U$5:$U$32,MATCH(F37,$U$5:$U$32)+1),F37))*256/360 -> 19.2 | O37: 12.8 | P37: 358.6 | Q37: 359
E38: 33 | F38: =(1/(E38*256))*Setup_Settings!$E$5*60000000 -> 7102.272727 | G38: =(TREND(INDEX($C$5:$C$32,MATCH(F38,$B$5:$B$32)):INDEX($C$5:$C$32,MATCH(F38,$B$5:$B$32)+1),INDEX($B$5:$B$32,MATCH(F38,$B$5:$B$32)):INDEX($B$5:$B$32,MATCH(F38,$B$5:$B$32)+1),F38))*256/360 -> 17.06666667 | H38: 14.93333333 | I38: 441.8 | J38: 442 | L38: 33 | M38: =(1/(L38*256))*Setup_Settings!$E$5*60000000 -> 7102.272727 | N38: =(TREND(INDEX($V$5:$V$32,MATCH(F38,$U$5:$U$32)):INDEX($V$5:$V$32,MATCH(F38,$U$5:$U$32)+1),INDEX($U$5:$U$32,MATCH(F38,$U$5:$U$32)):INDEX($U$5:$U$32,MATCH(F38,$U$5:$U$32)+1),F38))*256/360 -> 19.2 | O38: 12.8 | P38: 371.4 | Q38: 371
E39: 34 | F39: =(1/(E39*256))*Setup_Settings!$E$5*60000000 -> 6893.382353 | G39: =(TREND(INDEX($C$5:$C$32,MATCH(F39,$B$5:$B$32)):INDEX($C$5:$C$32,MATCH(F39,$B$5:$B$32)+1),INDEX($B$5:$B$32,MATCH(F39,$B$5:$B$32)):INDEX($B$5:$B$32,MATCH(F39,$B$5:$B$32)+1),F39))*256/360 -> 17.06666667 | H39: 14.93333333 | I39: 456.7333333 | J39: 457 | L39: 34 | M39: =(1/(L39*256))*Setup_Settings!$E$5*60000000 -> 6893.382353 | N39: =(TREND(INDEX($V$5:$V$32,MATCH(F39,$U$5:$U$32)):INDEX($V$5:$V$32,MATCH(F39,$U$5:$U$32)+1),INDEX($U$5:$U$32,MATCH(F39,$U$5:$U$32)):INDEX($U$5:$U$32,MATCH(F39,$U$5:$U$32)+1),F39))*256/360 -> 19.2 | O39: 12.8 | P39: 384.2 | Q39: 384
E40: 35 | F40: =(1/(E40*256))*Setup_Settings!$E$5*60000000 -> 6696.428571 | G40: =(TREND(INDEX($C$5:$C$32,MATCH(F40,$B$5:$B$32)):INDEX($C$5:$C$32,MATCH(F40,$B$5:$B$32)+1),INDEX($B$5:$B$32,MATCH(F40,$B$5:$B$32)):INDEX($B$5:$B$32,MATCH(F40,$B$5:$B$32)+1),F40))*256/360 -> 17.06666667 | H40: 14.93333333 | I40: 471.6666667 | J40: 472 | L40: 35 | M40: =(1/(L40*256))*Setup_Settings!$E$5*60000000 -> 6696.428571 | N40: =(TREND(INDEX($V$5:$V$32,MATCH(F40,$U$5:$U$32)):INDEX($V$5:$V$32,MATCH(F40,$U$5:$U$32)+1),INDEX($U$5:$U$32,MATCH(F40,$U$5:$U$32)):INDEX($U$5:$U$32,MATCH(F40,$U$5:$U$32)+1),F40))*256/360 -> 19.2 | O40: 12.8 | P40: 397 | Q40: 397
E41: 36 | F41: =(1/(E41*256))*Setup_Settings!$E$5*60000000 -> 6510.416667 | G41: =(TREND(INDEX($C$5:$C$32,MATCH(F41,$B$5:$B$32)):INDEX($C$5:$C$32,MATCH(F41,$B$5:$B$32)+1),INDEX($B$5:$B$32,MATCH(F41,$B$5:$B$32)):INDEX($B$5:$B$32,MATCH(F41,$B$5:$B$32)+1),F41))*256/360 -> 17.06666667 | H41: 14.93333333 | I41: 486.6 | J41: 487 | L41: 36 | M41: =(1/(L41*256))*Setup_Settings!$E$5*60000000 -> 6510.416667 | N41: =(TREND(INDEX($V$5:$V$32,MATCH(F41,$U$5:$U$32)):INDEX($V$5:$V$32,MATCH(F41,$U$5:$U$32)+1),INDEX($U$5:$U$32,MATCH(F41,$U$5:$U$32)):INDEX($U$5:$U$32,MATCH(F41,$U$5:$U$32)+1),F41))*256/360 -> 19.2 | O41: 12.8 | P41: 409.8 | Q41: 410
E42: 37 | F42: =(1/(E42*256))*Setup_Settings!$E$5*60000000 -> 6334.459459 | G42: =(TREND(INDEX($C$5:$C$32,MATCH(F42,$B$5:$B$32)):INDEX($C$5:$C$32,MATCH(F42,$B$5:$B$32)+1),INDEX($B$5:$B$32,MATCH(F42,$B$5:$B$32)):INDEX($B$5:$B$32,MATCH(F42,$B$5:$B$32)+1),F42))*256/360 -> 17.06666667 | H42: 14.93333333 | I42: 501.5333333 | J42: 502 | L42: 37 | M42: =(1/(L42*256))*Setup_Settings!$E$5*60000000 -> 6334.459459 | N42: =(TREND(INDEX($V$5:$V$32,MATCH(F42,$U$5:$U$32)):INDEX($V$5:$V$32,MATCH(F42,$U$5:$U$32)+1),INDEX($U$5:$U$32,MATCH(F42,$U$5:$U$32)):INDEX($U$5:$U$32,MATCH(F42,$U$5:$U$32)+1),F42))*256/360 -> 19.2 | O42: 12.8 | P42: 422.6 | Q42: 423
E43: 38 | F43: =(1/(E43*256))*Setup_Settings!$E$5*60000000 -> 6167.763158 | G43: =(TREND(INDEX($C$5:$C$32,MATCH(F43,$B$5:$B$32)):INDEX($C$5:$C$32,MATCH(F43,$B$5:$B$32)+1),INDEX($B$5:$B$32,MATCH(F43,$B$5:$B$32)):INDEX($B$5:$B$32,MATCH(F43,$B$5:$B$32)+1),F43))*256/360 -> 17.06666667 | H43: 14.93333333 | I43: 516.4666667 | J43: 516 | L43: 38 | M43: =(1/(L43*256))*Setup_Settings!$E$5*60000000 -> 6167.763158 | N43: =(TREND(INDEX($V$5:$V$32,MATCH(F43,$U$5:$U$32)):INDEX($V$5:$V$32,MATCH(F43,$U$5:$U$32)+1),INDEX($U$5:$U$32,MATCH(F43,$U$5:$U$32)):INDEX($U$5:$U$32,MATCH(F43,$U$5:$U$32)+1),F43))*256/360 -> 19.2 | O43: 12.8 | P43: 435.4 | Q43: 435
E44: 39 | F44: =(1/(E44*256))*Setup_Settings!$E$5*60000000 -> 6009.615385 | G44: =(TREND(INDEX($C$5:$C$32,MATCH(F44,$B$5:$B$32)):INDEX($C$5:$C$32,MATCH(F44,$B$5:$B$32)+1),INDEX($B$5:$B$32,MATCH(F44,$B$5:$B$32)):INDEX($B$5:$B$32,MATCH(F44,$B$5:$B$32)+1),F44))*256/360 -> 17.06666667 | H44: 14.93333333 | I44: 531.4 | J44: 531 | L44: 39 | M44: =(1/(L44*256))*Setup_Settings!$E$5*60000000 -> 6009.615385 | N44: =(TREND(INDEX($V$5:$V$32,MATCH(F44,$U$5:$U$32)):INDEX($V$5:$V$32,MATCH(F44,$U$5:$U$32)+1),INDEX($U$5:$U$32,MATCH(F44,$U$5:$U$32)):INDEX($U$5:$U$32,MATCH(F44,$U$5:$U$32)+1),F44))*256/360 -> 19.2 | O44: 12.8 | P44: 448.2 | Q44: 448
E45: 40 | F45: =(1/(E45*256))*Setup_Settings!$E$5*60000000 -> 5859.375 | G45: =(TREND(INDEX($C$5:$C$32,MATCH(F45,$B$5:$B$32)):INDEX($C$5:$C$32,MATCH(F45,$B$5:$B$32)+1),INDEX($B$5:$B$32,MATCH(F45,$B$5:$B$32)):INDEX($B$5:$B$32,MATCH(F45,$B$5:$B$32)+1),F45))*256/360 -> 17.06666667 | H45: 14.93333333 | I45: 546.3333333 | J45: 546 | L45: 40 | M45: =(1/(L45*256))*Setup_Settings!$E$5*60000000 -> 5859.375 | N45: =(TREND(INDEX($V$5:$V$32,MATCH(F45,$U$5:$U$32)):INDEX($V$5:$V$32,MATCH(F45,$U$5:$U$32)+1),INDEX($U$5:$U$32,MATCH(F45,$U$5:$U$32)):INDEX($U$5:$U$32,MATCH(F45,$U$5:$U$32)+1),F45))*256/360 -> 19.2 | O45: 12.8 | P45: 461 | Q45: 461
E46: 41 | F46: =(1/(E46*256))*Setup_Settings!$E$5*60000000 -> 5716.463415 | G46: =(TREND(INDEX($C$5:$C$32,MATCH(F46,$B$5:$B$32)):INDEX($C$5:$C$32,MATCH(F46,$B$5:$B$32)+1),INDEX($B$5:$B$32,MATCH(F46,$B$5:$B$32)):INDEX($B$5:$B$32,MATCH(F46,$B$5:$B$32)+1),F46))*256/360 -> 17.06666667 | H46: 14.93333333 | I46: 561.2666667 | J46: 561 | L46: 41 | M46: =(1/(L46*256))*Setup_Settings!$E$5*60000000 -> 5716.463415 | N46: =(TREND(INDEX($V$5:$V$32,MATCH(F46,$U$5:$U$32)):INDEX($V$5:$V$32,MATCH(F46,$U$5:$U$32)+1),INDEX($U$5:$U$32,MATCH(F46,$U$5:$U$32)):INDEX($U$5:$U$32,MATCH(F46,$U$5:$U$32)+1),F46))*256/360 -> 19.2 | O46: 12.8 | P46: 473.8 | Q46: 474
E47: 42 | F47: =(1/(E47*256))*Setup_Settings!$E$5*60000000 -> 5580.357143 | G47: =(TREND(INDEX($C$5:$C$32,MATCH(F47,$B$5:$B$32)):INDEX($C$5:$C$32,MATCH(F47,$B$5:$B$32)+1),INDEX($B$5:$B$32,MATCH(F47,$B$5:$B$32)):INDEX($B$5:$B$32,MATCH(F47,$B$5:$B$32)+1),F47))*256/360 -> 17.06666667 | H47: 14.93333333 | I47: 576.2 | J47: 576 | L47: 42 | M47: =(1/(L47*256))*Setup_Settings!$E$5*60000000 -> 5580.357143 | N47: =(TREND(INDEX($V$5:$V$32,MATCH(F47,$U$5:$U$32)):INDEX($V$5:$V$32,MATCH(F47,$U$5:$U$32)+1),INDEX($U$5:$U$32,MATCH(F47,$U$5:$U$32)):INDEX($U$5:$U$32,MATCH(F47,$U$5:$U$32)+1),F47))*256/360 -> 19.2 | O47: 12.8 | P47: 486.6 | Q47: 487
E48: 43 | F48: =(1/(E48*256))*Setup_Settings!$E$5*60000000 -> 5450.581395 | G48: =(TREND(INDEX($C$5:$C$32,MATCH(F48,$B$5:$B$32)):INDEX($C$5:$C$32,MATCH(F48,$B$5:$B$32)+1),INDEX($B$5:$B$32,MATCH(F48,$B$5:$B$32)):INDEX($B$5:$B$32,MATCH(F48,$B$5:$B$32)+1),F48))*256/360 -> 17.06666667 | H48: 14.93333333 | I48: 591.1333333 | J48: 591 | L48: 43 | M48: =(1/(L48*256))*Setup_Settings!$E$5*60000000 -> 5450.581395 | N48: =(TREND(INDEX($V$5:$V$32,MATCH(F48,$U$5:$U$32)):INDEX($V$5:$V$32,MATCH(F48,$U$5:$U$32)+1),INDEX($U$5:$U$32,MATCH(F48,$U$5:$U$32)):INDEX($U$5:$U$32,MATCH(F48,$U$5:$U$32)+1),F48))*256/360 -> 19.2 | O48: 12.8 | P48: 499.4 | Q48: 499
E49: 44 | F49: =(1/(E49*256))*Setup_Settings!$E$5*60000000 -> 5326.704545 | G49: =(TREND(INDEX($C$5:$C$32,MATCH(F49,$B$5:$B$32)):INDEX($C$5:$C$32,MATCH(F49,$B$5:$B$32)+1),INDEX($B$5:$B$32,MATCH(F49,$B$5:$B$32)):INDEX($B$5:$B$32,MATCH(F49,$B$5:$B$32)+1),F49))*256/360 -> 17.06666667 | H49: 14.93333333 | I49: 606.0666667 | J49: 606 | L49: 44 | M49: =(1/(L49*256))*Setup_Settings!$E$5*60000000 -> 5326.704545 | N49: =(TREND(INDEX($V$5:$V$32,MATCH(F49,$U$5:$U$32)):INDEX($V$5:$V$32,MATCH(F49,$U$5:$U$32)+1),INDEX($U$5:$U$32,MATCH(F49,$U$5:$U$32)):INDEX($U$5:$U$32,MATCH(F49,$U$5:$U$32)+1),F49))*256/360 -> 19.2 | O49: 12.8 | P49: 512.2 | Q49: 512
E50: 45 | F50: =(1/(E50*256))*Setup_Settings!$E$5*60000000 -> 5208.333333 | G50: =(TREND(INDEX($C$5:$C$32,MATCH(F50,$B$5:$B$32)):INDEX($C$5:$C$32,MATCH(F50,$B$5:$B$32)+1),INDEX($B$5:$B$32,MATCH(F50,$B$5:$B$32)):INDEX($B$5:$B$32,MATCH(F50,$B$5:$B$32)+1),F50))*256/360 -> 17.06666667 | H50: 14.93333333 | I50: 621 | J50: 621 | L50: 45 | M50: =(1/(L50*256))*Setup_Settings!$E$5*60000000 -> 5208.333333 | N50: =(TREND(INDEX($V$5:$V$32,MATCH(F50,$U$5:$U$32)):INDEX($V$5:$V$32,MATCH(F50,$U$5:$U$32)+1),INDEX($U$5:$U$32,MATCH(F50,$U$5:$U$32)):INDEX($U$5:$U$32,MATCH(F50,$U$5:$U$32)+1),F50))*256/360 -> 19.2 | O50: 12.8 | P50: 525 | Q50: 525
E51: 46 | F51: =(1/(E51*256))*Setup_Settings!$E$5*60000000 -> 5095.108696 | G51: =(TREND(INDEX($C$5:$C$32,MATCH(F51,$B$5:$B$32)):INDEX($C$5:$C$32,MATCH(F51,$B$5:$B$32)+1),INDEX($B$5:$B$32,MATCH(F51,$B$5:$B$32)):INDEX($B$5:$B$32,MATCH(F51,$B$5:$B$32)+1),F51))*256/360 -> 17.06666667 | H51: 14.93333333 | I51: 635.9333333 | J51: 636 | L51: 46 | M51: =(1/(L51*256))*Setup_Settings!$E$5*60000000 -> 5095.108696 | N51: =(TREND(INDEX($V$5:$V$32,MATCH(F51,$U$5:$U$32)):INDEX($V$5:$V$32,MATCH(F51,$U$5:$U$32)+1),INDEX($U$5:$U$32,MATCH(F51,$U$5:$U$32)):INDEX($U$5:$U$32,MATCH(F51,$U$5:$U$32)+1),F51))*256/360 -> 19.2 | O51: 12.8 | P51: 537.8 | Q51: 538
E52: 47 | F52: =(1/(E52*256))*Setup_Settings!$E$5*60000000 -> 4986.702128 | G52: =(TREND(INDEX($C$5:$C$32,MATCH(F52,$B$5:$B$32)):INDEX($C$5:$C$32,MATCH(F52,$B$5:$B$32)+1),INDEX($B$5:$B$32,MATCH(F52,$B$5:$B$32)):INDEX($B$5:$B$32,MATCH(F52,$B$5:$B$32)+1),F52))*256/360 -> 17.06666667 | H52: 14.93333333 | I52: 650.8666667 | J52: 651 | L52: 47 | M52: =(1/(L52*256))*Setup_Settings!$E$5*60000000 -> 4986.702128 | N52: =(TREND(INDEX($V$5:$V$32,MATCH(F52,$U$5:$U$32)):INDEX($V$5:$V$32,MATCH(F52,$U$5:$U$32)+1),INDEX($U$5:$U$32,MATCH(F52,$U$5:$U$32)):INDEX($U$5:$U$32,MATCH(F52,$U$5:$U$32)+1),F52))*256/360 -> 19.2 | O52: 12.8 | P52: 550.6 | Q52: 551
E53: 48 | F53: =(1/(E53*256))*Setup_Settings!$E$5*60000000 -> 4882.8125 | G53: =(TREND(INDEX($C$5:$C$32,MATCH(F53,$B$5:$B$32)):INDEX($C$5:$C$32,MATCH(F53,$B$5:$B$32)+1),INDEX($B$5:$B$32,MATCH(F53,$B$5:$B$32)):INDEX($B$5:$B$32,MATCH(F53,$B$5:$B$32)+1),F53))*256/360 -> 17.06666667 | H53: 14.93333333 | I53: 665.8 | J53: 666 | L53: 48 | M53: =(1/(L53*256))*Setup_Settings!$E$5*60000000 -> 4882.8125 | N53: =(TREND(INDEX($V$5:$V$32,MATCH(F53,$U$5:$U$32)):INDEX($V$5:$V$32,MATCH(F53,$U$5:$U$32)+1),INDEX($U$5:$U$32,MATCH(F53,$U$5:$U$32)):INDEX($U$5:$U$32,MATCH(F53,$U$5:$U$32)+1),F53))*256/360 -> 19.2 | O53: 12.8 | P53: 563.4 | Q53: 563
E54: 49 | F54: =(1/(E54*256))*Setup_Settings!$E$5*60000000 -> 4783.163265 | G54: =(TREND(INDEX($C$5:$C$32,MATCH(F54,$B$5:$B$32)):INDEX($C$5:$C$32,MATCH(F54,$B$5:$B$32)+1),INDEX($B$5:$B$32,MATCH(F54,$B$5:$B$32)):INDEX($B$5:$B$32,MATCH(F54,$B$5:$B$32)+1),F54))*256/360 -> 17.06666667 | H54: 14.93333333 | I54: 680.7333333 | J54: 681 | L54: 49 | M54: =(1/(L54*256))*Setup_Settings!$E$5*60000000 -> 4783.163265 | N54: =(TREND(INDEX($V$5:$V$32,MATCH(F54,$U$5:$U$32)):INDEX($V$5:$V$32,MATCH(F54,$U$5:$U$32)+1),INDEX($U$5:$U$32,MATCH(F54,$U$5:$U$32)):INDEX($U$5:$U$32,MATCH(F54,$U$5:$U$32)+1),F54))*256/360 -> 19.2 | O54: 12.8 | P54: 576.2 | Q54: 576
E55: 50 | F55: =(1/(E55*256))*Setup_Settings!$E$5*60000000 -> 4687.5 | G55: =(TREND(INDEX($C$5:$C$32,MATCH(F55,$B$5:$B$32)):INDEX($C$5:$C$32,MATCH(F55,$B$5:$B$32)+1),INDEX($B$5:$B$32,MATCH(F55,$B$5:$B$32)):INDEX($B$5:$B$32,MATCH(F55,$B$5:$B$32)+1),F55))*256/360 -> 17.06666667 | H55: 14.93333333 | I55: 695.6666667 | J55: 696 | L55: 50 | M55: =(1/(L55*256))*Setup_Settings!$E$5*60000000 -> 4687.5 | N55: =(TREND(INDEX($V$5:$V$32,MATCH(F55,$U$5:$U$32)):INDEX($V$5:$V$32,MATCH(F55,$U$5:$U$32)+1),INDEX($U$5:$U$32,MATCH(F55,$U$5:$U$32)):INDEX($U$5:$U$32,MATCH(F55,$U$5:$U$32)+1),F55))*256/360 -> 19.2 | O55: 12.8 | P55: 589 | Q55: 589
E56: 51 | F56: =(1/(E56*256))*Setup_Settings!$E$5*60000000 -> 4595.588235 | G56: =(TREND(INDEX($C$5:$C$32,MATCH(F56,$B$5:$B$32)):INDEX($C$5:$C$32,MATCH(F56,$B$5:$B$32)+1),INDEX($B$5:$B$32,MATCH(F56,$B$5:$B$32)):INDEX($B$5:$B$32,MATCH(F56,$B$5:$B$32)+1),F56))*256/360 -> 17.06666667 | H56: 14.93333333 | I56: 710.6 | J56: 711 | L56: 51 | M56: =(1/(L56*256))*Setup_Settings!$E$5*60000000 -> 4595.588235 | N56: =(TREND(INDEX($V$5:$V$32,MATCH(F56,$U$5:$U$32)):INDEX($V$5:$V$32,MATCH(F56,$U$5:$U$32)+1),INDEX($U$5:$U$32,MATCH(F56,$U$5:$U$32)):INDEX($U$5:$U$32,MATCH(F56,$U$5:$U$32)+1),F56))*256/360 -> 19.2 | O56: 12.8 | P56: 601.8 | Q56: 602
E57: 52 | F57: =(1/(E57*256))*Setup_Settings!$E$5*60000000 -> 4507.211538 | G57: =(TREND(INDEX($C$5:$C$32,MATCH(F57,$B$5:$B$32)):INDEX($C$5:$C$32,MATCH(F57,$B$5:$B$32)+1),INDEX($B$5:$B$32,MATCH(F57,$B$5:$B$32)):INDEX($B$5:$B$32,MATCH(F57,$B$5:$B$32)+1),F57))*256/360 -> 17.06666667 | H57: 14.93333333 | I57: 725.5333333 | J57: 726 | L57: 52 | M57: =(1/(L57*256))*Setup_Settings!$E$5*60000000 -> 4507.211538 | N57: =(TREND(INDEX($V$5:$V$32,MATCH(F57,$U$5:$U$32)):INDEX($V$5:$V$32,MATCH(F57,$U$5:$U$32)+1),INDEX($U$5:$U$32,MATCH(F57,$U$5:$U$32)):INDEX($U$5:$U$32,MATCH(F57,$U$5:$U$32)+1),F57))*256/360 -> 19.2 | O57: 12.8 | P57: 614.6 | Q57: 615
E58: 53 | F58: =(1/(E58*256))*Setup_Settings!$E$5*60000000 -> 4422.169811 | G58: =(TREND(INDEX($C$5:$C$32,MATCH(F58,$B$5:$B$32)):INDEX($C$5:$C$32,MATCH(F58,$B$5:$B$32)+1),INDEX($B$5:$B$32,MATCH(F58,$B$5:$B$32)):INDEX($B$5:$B$32,MATCH(F58,$B$5:$B$32)+1),F58))*256/360 -> 17.06666667 | H58: 14.93333333 | I58: 740.4666667 | J58: 740 | L58: 53 | M58: =(1/(L58*256))*Setup_Settings!$E$5*60000000 -> 4422.169811 | N58: =(TREND(INDEX($V$5:$V$32,MATCH(F58,$U$5:$U$32)):INDEX($V$5:$V$32,MATCH(F58,$U$5:$U$32)+1),INDEX($U$5:$U$32,MATCH(F58,$U$5:$U$32)):INDEX($U$5:$U$32,MATCH(F58,$U$5:$U$32)+1),F58))*256/360 -> 19.2 | O58: 12.8 | P58: 627.4 | Q58: 627
E59: 54 | F59: =(1/(E59*256))*Setup_Settings!$E$5*60000000 -> 4340.277778 | G59: =(TREND(INDEX($C$5:$C$32,MATCH(F59,$B$5:$B$32)):INDEX($C$5:$C$32,MATCH(F59,$B$5:$B$32)+1),INDEX($B$5:$B$32,MATCH(F59,$B$5:$B$32)):INDEX($B$5:$B$32,MATCH(F59,$B$5:$B$32)+1),F59))*256/360 -> 17.06666667 | H59: 14.93333333 | I59: 755.4 | J59: 755 | L59: 54 | M59: =(1/(L59*256))*Setup_Settings!$E$5*60000000 -> 4340.277778 | N59: =(TREND(INDEX($V$5:$V$32,MATCH(F59,$U$5:$U$32)):INDEX($V$5:$V$32,MATCH(F59,$U$5:$U$32)+1),INDEX($U$5:$U$32,MATCH(F59,$U$5:$U$32)):INDEX($U$5:$U$32,MATCH(F59,$U$5:$U$32)+1),F59))*256/360 -> 19.2 | O59: 12.8 | P59: 640.2 | Q59: 640
E60: 55 | F60: =(1/(E60*256))*Setup_Settings!$E$5*60000000 -> 4261.363636 | G60: =(TREND(INDEX($C$5:$C$32,MATCH(F60,$B$5:$B$32)):INDEX($C$5:$C$32,MATCH(F60,$B$5:$B$32)+1),INDEX($B$5:$B$32,MATCH(F60,$B$5:$B$32)):INDEX($B$5:$B$32,MATCH(F60,$B$5:$B$32)+1),F60))*256/360 -> 17.06666667 | H60: 14.93333333 | I60: 770.3333333 | J60: 770 | L60: 55 | M60: =(1/(L60*256))*Setup_Settings!$E$5*60000000 -> 4261.363636 | N60: =(TREND(INDEX($V$5:$V$32,MATCH(F60,$U$5:$U$32)):INDEX($V$5:$V$32,MATCH(F60,$U$5:$U$32)+1),INDEX($U$5:$U$32,MATCH(F60,$U$5:$U$32)):INDEX($U$5:$U$32,MATCH(F60,$U$5:$U$32)+1),F60))*256/360 -> 19.2 | O60: 12.8 | P60: 653 | Q60: 653
E61: 56 | F61: =(1/(E61*256))*Setup_Settings!$E$5*60000000 -> 4185.267857 | G61: =(TREND(INDEX($C$5:$C$32,MATCH(F61,$B$5:$B$32)):INDEX($C$5:$C$32,MATCH(F61,$B$5:$B$32)+1),INDEX($B$5:$B$32,MATCH(F61,$B$5:$B$32)):INDEX($B$5:$B$32,MATCH(F61,$B$5:$B$32)+1),F61))*256/360 -> 17.06666667 | H61: 14.93333333 | I61: 785.2666667 | J61: 785 | L61: 56 | M61: =(1/(L61*256))*Setup_Settings!$E$5*60000000 -> 4185.267857 | N61: =(TREND(INDEX($V$5:$V$32,MATCH(F61,$U$5:$U$32)):INDEX($V$5:$V$32,MATCH(F61,$U$5:$U$32)+1),INDEX($U$5:$U$32,MATCH(F61,$U$5:$U$32)):INDEX($U$5:$U$32,MATCH(F61,$U$5:$U$32)+1),F61))*256/360 -> 19.2 | O61: 12.8 | P61: 665.8 | Q61: 666
E62: 57 | F62: =(1/(E62*256))*Setup_Settings!$E$5*60000000 -> 4111.842105 | G62: =(TREND(INDEX($C$5:$C$32,MATCH(F62,$B$5:$B$32)):INDEX($C$5:$C$32,MATCH(F62,$B$5:$B$32)+1),INDEX($B$5:$B$32,MATCH(F62,$B$5:$B$32)):INDEX($B$5:$B$32,MATCH(F62,$B$5:$B$32)+1),F62))*256/360 -> 17.06666667 | H62: 14.93333333 | I62: 800.2 | J62: 800 | L62: 57 | M62: =(1/(L62*256))*Setup_Settings!$E$5*60000000 -> 4111.842105 | N62: =(TREND(INDEX($V$5:$V$32,MATCH(F62,$U$5:$U$32)):INDEX($V$5:$V$32,MATCH(F62,$U$5:$U$32)+1),INDEX($U$5:$U$32,MATCH(F62,$U$5:$U$32)):INDEX($U$5:$U$32,MATCH(F62,$U$5:$U$32)+1),F62))*256/360 -> 19.2 | O62: 12.8 | P62: 678.6 | Q62: 679
E63: 58 | F63: =(1/(E63*256))*Setup_Settings!$E$5*60000000 -> 4040.948276 | G63: =(TREND(INDEX($C$5:$C$32,MATCH(F63,$B$5:$B$32)):INDEX($C$5:$C$32,MATCH(F63,$B$5:$B$32)+1),INDEX($B$5:$B$32,MATCH(F63,$B$5:$B$32)):INDEX($B$5:$B$32,MATCH(F63,$B$5:$B$32)+1),F63))*256/360 -> 17.06666667 | H63: 14.93333333 | I63: 815.1333333 | J63: 815 | L63: 58 | M63: =(1/(L63*256))*Setup_Settings!$E$5*60000000 -> 4040.948276 | N63: =(TREND(INDEX($V$5:$V$32,MATCH(F63,$U$5:$U$32)):INDEX($V$5:$V$32,MATCH(F63,$U$5:$U$32)+1),INDEX($U$5:$U$32,MATCH(F63,$U$5:$U$32)):INDEX($U$5:$U$32,MATCH(F63,$U$5:$U$32)+1),F63))*256/360 -> 19.2 | O63: 12.8 | P63: 691.4 | Q63: 691
E64: 59 | F64: =(1/(E64*256))*Setup_Settings!$E$5*60000000 -> 3972.457627 | G64: =(TREND(INDEX($C$5:$C$32,MATCH(F64,$B$5:$B$32)):INDEX($C$5:$C$32,MATCH(F64,$B$5:$B$32)+1),INDEX($B$5:$B$32,MATCH(F64,$B$5:$B$32)):INDEX($B$5:$B$32,MATCH(F64,$B$5:$B$32)+1),F64))*256/360 -> 17.06666667 | H64: 14.93333333 | I64: 830.0666667 | J64: 830 | L64: 59 | M64: =(1/(L64*256))*Setup_Settings!$E$5*60000000 -> 3972.457627 | N64: =(TREND(INDEX($V$5:$V$32,MATCH(F64,$U$5:$U$32)):INDEX($V$5:$V$32,MATCH(F64,$U$5:$U$32)+1),INDEX($U$5:$U$32,MATCH(F64,$U$5:$U$32)):INDEX($U$5:$U$32,MATCH(F64,$U$5:$U$32)+1),F64))*256/360 -> 19.2 | O64: 12.8 | P64: 704.2 | Q64: 704
E65: 60 | F65: =(1/(E65*256))*Setup_Settings!$E$5*60000000 -> 3906.25 | G65: =(TREND(INDEX($C$5:$C$32,MATCH(F65,$B$5:$B$32)):INDEX($C$5:$C$32,MATCH(F65,$B$5:$B$32)+1),INDEX($B$5:$B$32,MATCH(F65,$B$5:$B$32)):INDEX($B$5:$B$32,MATCH(F65,$B$5:$B$32)+1),F65))*256/360 -> 17.06666667 | H65: 14.93333333 | I65: 845 | J65: 845 | L65: 60 | M65: =(1/(L65*256))*Setup_Settings!$E$5*60000000 -> 3906.25 | N65: =(TREND(INDEX($V$5:$V$32,MATCH(F65,$U$5:$U$32)):INDEX($V$5:$V$32,MATCH(F65,$U$5:$U$32)+1),INDEX($U$5:$U$32,MATCH(F65,$U$5:$U$32)):INDEX($U$5:$U$32,MATCH(F65,$U$5:$U$32)+1),F65))*256/360 -> 19.2 | O65: 12.8 | P65: 717 | Q65: 717
E66: 61 | F66: =(1/(E66*256))*Setup_Settings!$E$5*60000000 -> 3842.213115 | G66: =(TREND(INDEX($C$5:$C$32,MATCH(F66,$B$5:$B$32)):INDEX($C$5:$C$32,MATCH(F66,$B$5:$B$32)+1),INDEX($B$5:$B$32,MATCH(F66,$B$5:$B$32)):INDEX($B$5:$B$32,MATCH(F66,$B$5:$B$32)+1),F66))*256/360 -> 17.06666667 | H66: 14.93333333 | I66: 859.9333333 | J66: 860 | L66: 61 | M66: =(1/(L66*256))*Setup_Settings!$E$5*60000000 -> 3842.213115 | N66: =(TREND(INDEX($V$5:$V$32,MATCH(F66,$U$5:$U$32)):INDEX($V$5:$V$32,MATCH(F66,$U$5:$U$32)+1),INDEX($U$5:$U$32,MATCH(F66,$U$5:$U$32)):INDEX($U$5:$U$32,MATCH(F66,$U$5:$U$32)+1),F66))*256/360 -> 19.2 | O66: 12.8 | P66: 729.8 | Q66: 730
E67: 62 | F67: =(1/(E67*256))*Setup_Settings!$E$5*60000000 -> 3780.241935 | G67: =(TREND(INDEX($C$5:$C$32,MATCH(F67,$B$5:$B$32)):INDEX($C$5:$C$32,MATCH(F67,$B$5:$B$32)+1),INDEX($B$5:$B$32,MATCH(F67,$B$5:$B$32)):INDEX($B$5:$B$32,MATCH(F67,$B$5:$B$32)+1),F67))*256/360 -> 17.06666667 | H67: 14.93333333 | I67: 874.8666667 | J67: 875 | L67: 62 | M67: =(1/(L67*256))*Setup_Settings!$E$5*60000000 -> 3780.241935 | N67: =(TREND(INDEX($V$5:$V$32,MATCH(F67,$U$5:$U$32)):INDEX($V$5:$V$32,MATCH(F67,$U$5:$U$32)+1),INDEX($U$5:$U$32,MATCH(F67,$U$5:$U$32)):INDEX($U$5:$U$32,MATCH(F67,$U$5:$U$32)+1),F67))*256/360 -> 19.2 | O67: 12.8 | P67: 742.6 | Q67: 743
E68: 63 | F68: =(1/(E68*256))*Setup_Settings!$E$5*60000000 -> 3720.238095 | G68: =(TREND(INDEX($C$5:$C$32,MATCH(F68,$B$5:$B$32)):INDEX($C$5:$C$32,MATCH(F68,$B$5:$B$32)+1),INDEX($B$5:$B$32,MATCH(F68,$B$5:$B$32)):INDEX($B$5:$B$32,MATCH(F68,$B$5:$B$32)+1),F68))*256/360 -> 17.06666667 | H68: 14.93333333 | I68: 889.8 | J68: 890 | L68: 63 | M68: =(1/(L68*256))*Setup_Settings!$E$5*60000000 -> 3720.238095 | N68: =(TREND(INDEX($V$5:$V$32,MATCH(F68,$U$5:$U$32)):INDEX($V$5:$V$32,MATCH(F68,$U$5:$U$32)+1),INDEX($U$5:$U$32,MATCH(F68,$U$5:$U$32)):INDEX($U$5:$U$32,MATCH(F68,$U$5:$U$32)+1),F68))*256/360 -> 19.2 | O68: 12.8 | P68: 755.4 | Q68: 755
E69: 64 | F69: =(1/(E69*256))*Setup_Settings!$E$5*60000000 -> 3662.109375 | G69: =(TREND(INDEX($C$5:$C$32,MATCH(F69,$B$5:$B$32)):INDEX($C$5:$C$32,MATCH(F69,$B$5:$B$32)+1),INDEX($B$5:$B$32,MATCH(F69,$B$5:$B$32)):INDEX($B$5:$B$32,MATCH(F69,$B$5:$B$32)+1),F69))*256/360 -> 17.06666667 | H69: 14.93333333 | I69: 904.7333333 | J69: 905 | L69: 64 | M69: =(1/(L69*256))*Setup_Settings!$E$5*60000000 -> 3662.109375 | N69: =(TREND(INDEX($V$5:$V$32,MATCH(F69,$U$5:$U$32)):INDEX($V$5:$V$32,MATCH(F69,$U$5:$U$32)+1),INDEX($U$5:$U$32,MATCH(F69,$U$5:$U$32)):INDEX($U$5:$U$32,MATCH(F69,$U$5:$U$32)+1),F69))*256/360 -> 19.2 | O69: 12.8 | P69: 768.2 | Q69: 768
E70: 65 | F70: =(1/(E70*256))*Setup_Settings!$E$5*60000000 -> 3605.769231 | G70: =(TREND(INDEX($C$5:$C$32,MATCH(F70,$B$5:$B$32)):INDEX($C$5:$C$32,MATCH(F70,$B$5:$B$32)+1),INDEX($B$5:$B$32,MATCH(F70,$B$5:$B$32)):INDEX($B$5:$B$32,MATCH(F70,$B$5:$B$32)+1),F70))*256/360 -> 17.06666667 | H70: 14.93333333 | I70: 919.6666667 | J70: 920 | L70: 65 | M70: =(1/(L70*256))*Setup_Settings!$E$5*60000000 -> 3605.769231 | N70: =(TREND(INDEX($V$5:$V$32,MATCH(F70,$U$5:$U$32)):INDEX($V$5:$V$32,MATCH(F70,$U$5:$U$32)+1),INDEX($U$5:$U$32,MATCH(F70,$U$5:$U$32)):INDEX($U$5:$U$32,MATCH(F70,$U$5:$U$32)+1),F70))*256/360 -> 19.2 | O70: 12.8 | P70: 781 | Q70: 781
E71: 66 | F71: =(1/(E71*256))*Setup_Settings!$E$5*60000000 -> 3551.136364 | G71: =(TREND(INDEX($C$5:$C$32,MATCH(F71,$B$5:$B$32)):INDEX($C$5:$C$32,MATCH(F71,$B$5:$B$32)+1),INDEX($B$5:$B$32,MATCH(F71,$B$5:$B$32)):INDEX($B$5:$B$32,MATCH(F71,$B$5:$B$32)+1),F71))*256/360 -> 17.06666667 | H71: 14.93333333 | I71: 934.6 | J71: 935 | L71: 66 | M71: =(1/(L71*256))*Setup_Settings!$E$5*60000000 -> 3551.136364 | N71: =(TREND(INDEX($V$5:$V$32,MATCH(F71,$U$5:$U$32)):INDEX($V$5:$V$32,MATCH(F71,$U$5:$U$32)+1),INDEX($U$5:$U$32,MATCH(F71,$U$5:$U$32)):INDEX($U$5:$U$32,MATCH(F71,$U$5:$U$32)+1),F71))*256/360 -> 19.2 | O71: 12.8 | P71: 793.8 | Q71: 794
E72: 67 | F72: =(1/(E72*256))*Setup_Settings!$E$5*60000000 -> 3498.134328 | G72: =(TREND(INDEX($C$5:$C$32,MATCH(F72,$B$5:$B$32)):INDEX($C$5:$C$32,MATCH(F72,$B$5:$B$32)+1),INDEX($B$5:$B$32,MATCH(F72,$B$5:$B$32)):INDEX($B$5:$B$32,MATCH(F72,$B$5:$B$32)+1),F72))*256/360 -> 17.06666667 | H72: 14.93333333 | I72: 949.5333333 | J72: 950 | L72: 67 | M72: =(1/(L72*256))*Setup_Settings!$E$5*60000000 -> 3498.134328 | N72: =(TREND(INDEX($V$5:$V$32,MATCH(F72,$U$5:$U$32)):INDEX($V$5:$V$32,MATCH(F72,$U$5:$U$32)+1),INDEX($U$5:$U$32,MATCH(F72,$U$5:$U$32)):INDEX($U$5:$U$32,MATCH(F72,$U$5:$U$32)+1),F72))*256/360 -> 19.2 | O72: 12.8 | P72: 806.6 | Q72: 807
E73: 68 | F73: =(1/(E73*256))*Setup_Settings!$E$5*60000000 -> 3446.691176 | G73: =(TREND(INDEX($C$5:$C$32,MATCH(F73,$B$5:$B$32)):INDEX($C$5:$C$32,MATCH(F73,$B$5:$B$32)+1),INDEX($B$5:$B$32,MATCH(F73,$B$5:$B$32)):INDEX($B$5:$B$32,MATCH(F73,$B$5:$B$32)+1),F73))*256/360 -> 17.06666667 | H73: 14.93333333 | I73: 964.4666667 | J73: 964 | L73: 68 | M73: =(1/(L73*256))*Setup_Settings!$E$5*60000000 -> 3446.691176 | N73: =(TREND(INDEX($V$5:$V$32,MATCH(F73,$U$5:$U$32)):INDEX($V$5:$V$32,MATCH(F73,$U$5:$U$32)+1),INDEX($U$5:$U$32,MATCH(F73,$U$5:$U$32)):INDEX($U$5:$U$32,MATCH(F73,$U$5:$U$32)+1),F73))*256/360 -> 19.2 | O73: 12.8 | P73: 819.4 | Q73: 819
E74: 69 | F74: =(1/(E74*256))*Setup_Settings!$E$5*60000000 -> 3396.73913 | G74: =(TREND(INDEX($C$5:$C$32,MATCH(F74,$B$5:$B$32)):INDEX($C$5:$C$32,MATCH(F74,$B$5:$B$32)+1),INDEX($B$5:$B$32,MATCH(F74,$B$5:$B$32)):INDEX($B$5:$B$32,MATCH(F74,$B$5:$B$32)+1),F74))*256/360 -> 17.06666667 | H74: 14.93333333 | I74: 979.4 | J74: 979 | L74: 69 | M74: =(1/(L74*256))*Setup_Settings!$E$5*60000000 -> 3396.73913 | N74: =(TREND(INDEX($V$5:$V$32,MATCH(F74,$U$5:$U$32)):INDEX($V$5:$V$32,MATCH(F74,$U$5:$U$32)+1),INDEX($U$5:$U$32,MATCH(F74,$U$5:$U$32)):INDEX($U$5:$U$32,MATCH(F74,$U$5:$U$32)+1),F74))*256/360 -> 19.2 | O74: 12.8 | P74: 832.2 | Q74: 832
E75: 70 | F75: =(1/(E75*256))*Setup_Settings!$E$5*60000000 -> 3348.214286 | G75: =(TREND(INDEX($C$5:$C$32,MATCH(F75,$B$5:$B$32)):INDEX($C$5:$C$32,MATCH(F75,$B$5:$B$32)+1),INDEX($B$5:$B$32,MATCH(F75,$B$5:$B$32)):INDEX($B$5:$B$32,MATCH(F75,$B$5:$B$32)+1),F75))*256/360 -> 17.06666667 | H75: 14.93333333 | I75: 994.3333333 | J75: 994 | L75: 70 | M75: =(1/(L75*256))*Setup_Settings!$E$5*60000000 -> 3348.214286 | N75: =(TREND(INDEX($V$5:$V$32,MATCH(F75,$U$5:$U$32)):INDEX($V$5:$V$32,MATCH(F75,$U$5:$U$32)+1),INDEX($U$5:$U$32,MATCH(F75,$U$5:$U$32)):INDEX($U$5:$U$32,MATCH(F75,$U$5:$U$32)+1),F75))*256/360 -> 19.2 | O75: 12.8 | P75: 845 | Q75: 845
E76: 71 | F76: =(1/(E76*256))*Setup_Settings!$E$5*60000000 -> 3301.056338 | G76: =(TREND(INDEX($C$5:$C$32,MATCH(F76,$B$5:$B$32)):INDEX($C$5:$C$32,MATCH(F76,$B$5:$B$32)+1),INDEX($B$5:$B$32,MATCH(F76,$B$5:$B$32)):INDEX($B$5:$B$32,MATCH(F76,$B$5:$B$32)+1),F76))*256/360 -> 17.06666667 | H76: 14.93333333 | I76: 1009.266667 | J76: 1009 | L76: 71 | M76: =(1/(L76*256))*Setup_Settings!$E$5*60000000 -> 3301.056338 | N76: =(TREND(INDEX($V$5:$V$32,MATCH(F76,$U$5:$U$32)):INDEX($V$5:$V$32,MATCH(F76,$U$5:$U$32)+1),INDEX($U$5:$U$32,MATCH(F76,$U$5:$U$32)):INDEX($U$5:$U$32,MATCH(F76,$U$5:$U$32)+1),F76))*256/360 -> 19.2 | O76: 12.8 | P76: 857.8 | Q76: 858
E77: 72 | F77: =(1/(E77*256))*Setup_Settings!$E$5*60000000 -> 3255.208333 | G77: =(TREND(INDEX($C$5:$C$32,MATCH(F77,$B$5:$B$32)):INDEX($C$5:$C$32,MATCH(F77,$B$5:$B$32)+1),INDEX($B$5:$B$32,MATCH(F77,$B$5:$B$32)):INDEX($B$5:$B$32,MATCH(F77,$B$5:$B$32)+1),F77))*256/360 -> 17.06666667 | H77: 14.93333333 | I77: 1024.2 | J77: 1024 | L77: 72 | M77: =(1/(L77*256))*Setup_Settings!$E$5*60000000 -> 3255.208333 | N77: =(TREND(INDEX($V$5:$V$32,MATCH(F77,$U$5:$U$32)):INDEX($V$5:$V$32,MATCH(F77,$U$5:$U$32)+1),INDEX($U$5:$U$32,MATCH(F77,$U$5:$U$32)):INDEX($U$5:$U$32,MATCH(F77,$U$5:$U$32)+1),F77))*256/360 -> 19.2 | O77: 12.8 | P77: 870.6 | Q77: 871
E78: 73 | F78: =(1/(E78*256))*Setup_Settings!$E$5*60000000 -> 3210.616438 | G78: =(TREND(INDEX($C$5:$C$32,MATCH(F78,$B$5:$B$32)):INDEX($C$5:$C$32,MATCH(F78,$B$5:$B$32)+1),INDEX($B$5:$B$32,MATCH(F78,$B$5:$B$32)):INDEX($B$5:$B$32,MATCH(F78,$B$5:$B$32)+1),F78))*256/360 -> 17.06666667 | H78: 14.93333333 | I78: 1039.133333 | J78: 1039 | L78: 73 | M78: =(1/(L78*256))*Setup_Settings!$E$5*60000000 -> 3210.616438 | N78: =(TREND(INDEX($V$5:$V$32,MATCH(F78,$U$5:$U$32)):INDEX($V$5:$V$32,MATCH(F78,$U$5:$U$32)+1),INDEX($U$5:$U$32,MATCH(F78,$U$5:$U$32)):INDEX($U$5:$U$32,MATCH(F78,$U$5:$U$32)+1),F78))*256/360 -> 19.2 | O78: 12.8 | P78: 883.4 | Q78: 883
E79: 74 | F79: =(1/(E79*256))*Setup_Settings!$E$5*60000000 -> 3167.22973 | G79: =(TREND(INDEX($C$5:$C$32,MATCH(F79,$B$5:$B$32)):INDEX($C$5:$C$32,MATCH(F79,$B$5:$B$32)+1),INDEX($B$5:$B$32,MATCH(F79,$B$5:$B$32)):INDEX($B$5:$B$32,MATCH(F79,$B$5:$B$32)+1),F79))*256/360 -> 17.06666667 | H79: 14.93333333 | I79: 1054.066667 | J79: 1054 | L79: 74 | M79: =(1/(L79*256))*Setup_Settings!$E$5*60000000 -> 3167.22973 | N79: =(TREND(INDEX($V$5:$V$32,MATCH(F79,$U$5:$U$32)):INDEX($V$5:$V$32,MATCH(F79,$U$5:$U$32)+1),INDEX($U$5:$U$32,MATCH(F79,$U$5:$U$32)):INDEX($U$5:$U$32,MATCH(F79,$U$5:$U$32)+1),F79))*256/360 -> 19.2 | O79: 12.8 | P79: 896.2 | Q79: 896
E80: 75 | F80: =(1/(E80*256))*Setup_Settings!$E$5*60000000 -> 3125 | G80: =(TREND(INDEX($C$5:$C$32,MATCH(F80,$B$5:$B$32)):INDEX($C$5:$C$32,MATCH(F80,$B$5:$B$32)+1),INDEX($B$5:$B$32,MATCH(F80,$B$5:$B$32)):INDEX($B$5:$B$32,MATCH(F80,$B$5:$B$32)+1),F80))*256/360 -> 17.06666667 | H80: 14.93333333 | I80: 1069 | J80: 1069 | L80: 75 | M80: =(1/(L80*256))*Setup_Settings!$E$5*60000000 -> 3125 | N80: =(TREND(INDEX($V$5:$V$32,MATCH(F80,$U$5:$U$32)):INDEX($V$5:$V$32,MATCH(F80,$U$5:$U$32)+1),INDEX($U$5:$U$32,MATCH(F80,$U$5:$U$32)):INDEX($U$5:$U$32,MATCH(F80,$U$5:$U$32)+1),F80))*256/360 -> 19.2 | O80: 12.8 | P80: 909 | Q80: 909
E81: 76 | F81: =(1/(E81*256))*Setup_Settings!$E$5*60000000 -> 3083.881579 | G81: =(TREND(INDEX($C$5:$C$32,MATCH(F81,$B$5:$B$32)):INDEX($C$5:$C$32,MATCH(F81,$B$5:$B$32)+1),INDEX($B$5:$B$32,MATCH(F81,$B$5:$B$32)):INDEX($B$5:$B$32,MATCH(F81,$B$5:$B$32)+1),F81))*256/360 -> 17.06666667 | H81: 14.93333333 | I81: 1083.933333 | J81: 1084 | L81: 76 | M81: =(1/(L81*256))*Setup_Settings!$E$5*60000000 -> 3083.881579 | N81: =(TREND(INDEX($V$5:$V$32,MATCH(F81,$U$5:$U$32)):INDEX($V$5:$V$32,MATCH(F81,$U$5:$U$32)+1),INDEX($U$5:$U$32,MATCH(F81,$U$5:$U$32)):INDEX($U$5:$U$32,MATCH(F81,$U$5:$U$32)+1),F81))*256/360 -> 19.2 | O81: 12.8 | P81: 921.8 | Q81: 922
E82: 77 | F82: =(1/(E82*256))*Setup_Settings!$E$5*60000000 -> 3043.831169 | G82: =(TREND(INDEX($C$5:$C$32,MATCH(F82,$B$5:$B$32)):INDEX($C$5:$C$32,MATCH(F82,$B$5:$B$32)+1),INDEX($B$5:$B$32,MATCH(F82,$B$5:$B$32)):INDEX($B$5:$B$32,MATCH(F82,$B$5:$B$32)+1),F82))*256/360 -> 17.06666667 | H82: 14.93333333 | I82: 1098.866667 | J82: 1099 | L82: 77 | M82: =(1/(L82*256))*Setup_Settings!$E$5*60000000 -> 3043.831169 | N82: =(TREND(INDEX($V$5:$V$32,MATCH(F82,$U$5:$U$32)):INDEX($V$5:$V$32,MATCH(F82,$U$5:$U$32)+1),INDEX($U$5:$U$32,MATCH(F82,$U$5:$U$32)):INDEX($U$5:$U$32,MATCH(F82,$U$5:$U$32)+1),F82))*256/360 -> 19.2 | O82: 12.8 | P82: 934.6 | Q82: 935
E83: 78 | F83: =(1/(E83*256))*Setup_Settings!$E$5*60000000 -> 3004.807692 | G83: =(TREND(INDEX($C$5:$C$32,MATCH(F83,$B$5:$B$32)):INDEX($C$5:$C$32,MATCH(F83,$B$5:$B$32)+1),INDEX($B$5:$B$32,MATCH(F83,$B$5:$B$32)):INDEX($B$5:$B$32,MATCH(F83,$B$5:$B$32)+1),F83))*256/360 -> 17.06666667 | H83: 14.93333333 | I83: 1113.8 | J83: 1114 | L83: 78 | M83: =(1/(L83*256))*Setup_Settings!$E$5*60000000 -> 3004.807692 | N83: =(TREND(INDEX($V$5:$V$32,MATCH(F83,$U$5:$U$32)):INDEX($V$5:$V$32,MATCH(F83,$U$5:$U$32)+1),INDEX($U$5:$U$32,MATCH(F83,$U$5:$U$32)):INDEX($U$5:$U$32,MATCH(F83,$U$5:$U$32)+1),F83))*256/360 -> 19.2 | O83: 12.8 | P83: 947.4 | Q83: 947
E84: 79 | F84: =(1/(E84*256))*Setup_Settings!$E$5*60000000 -> 2966.772152 | G84: =(TREND(INDEX($C$5:$C$32,MATCH(F84,$B$5:$B$32)):INDEX($C$5:$C$32,MATCH(F84,$B$5:$B$32)+1),INDEX($B$5:$B$32,MATCH(F84,$B$5:$B$32)):INDEX($B$5:$B$32,MATCH(F84,$B$5:$B$32)+1),F84))*256/360 -> 17.06666667 | H84: 14.93333333 | I84: 1128.733333 | J84: 1129 | L84: 79 | M84: =(1/(L84*256))*Setup_Settings!$E$5*60000000 -> 2966.772152 | N84: =(TREND(INDEX($V$5:$V$32,MATCH(F84,$U$5:$U$32)):INDEX($V$5:$V$32,MATCH(F84,$U$5:$U$32)+1),INDEX($U$5:$U$32,MATCH(F84,$U$5:$U$32)):INDEX($U$5:$U$32,MATCH(F84,$U$5:$U$32)+1),F84))*256/360 -> 19.2 | O84: 12.8 | P84: 960.2 | Q84: 960
E85: 80 | F85: =(1/(E85*256))*Setup_Settings!$E$5*60000000 -> 2929.6875 | G85: =(TREND(INDEX($C$5:$C$32,MATCH(F85,$B$5:$B$32)):INDEX($C$5:$C$32,MATCH(F85,$B$5:$B$32)+1),INDEX($B$5:$B$32,MATCH(F85,$B$5:$B$32)):INDEX($B$5:$B$32,MATCH(F85,$B$5:$B$32)+1),F85))*256/360 -> 17.06666667 | H85: 14.93333333 | I85: =(E85*H85)-$F$2 -> 1143.666667 | J85: 1144 | L85: 80 | M85: =(1/(L85*256))*Setup_Settings!$E$5*60000000 -> 2929.6875 | N85: =(TREND(INDEX($V$5:$V$32,MATCH(F85,$U$5:$U$32)):INDEX($V$5:$V$32,MATCH(F85,$U$5:$U$32)+1),INDEX($U$5:$U$32,MATCH(F85,$U$5:$U$32)):INDEX($U$5:$U$32,MATCH(F85,$U$5:$U$32)+1),F85))*256/360 -> 19.2 | O85: =$L$3-N85 -> 12.8 | P85: 973 | Q85: 973
E86: 81 | F86: =(1/(E86*256))*Setup_Settings!$E$5*60000000 -> 2893.518519 | G86: =(TREND(INDEX($C$5:$C$32,MATCH(F86,$B$5:$B$32)):INDEX($C$5:$C$32,MATCH(F86,$B$5:$B$32)+1),INDEX($B$5:$B$32,MATCH(F86,$B$5:$B$32)):INDEX($B$5:$B$32,MATCH(F86,$B$5:$B$32)+1),F86))*256/360 -> 17.06666667 | H86: =$E$3-G86 -> 14.93333333 | I86: 1158.6 | J86: =IF((ROUND(E86*H86,0)-$F$2)>0,(ROUND(E86*H86,0)-$F$2),1) -> 1159 | L86: 81 | M86: =(1/(L86*256))*Setup_Settings!$E$5*60000000 -> 2893.518519 | N86: =(TREND(INDEX($V$5:$V$32,MATCH(F86,$U$5:$U$32)):INDEX($V$5:$V$32,MATCH(F86,$U$5:$U$32)+1),INDEX($U$5:$U$32,MATCH(F86,$U$5:$U$32)):INDEX($U$5:$U$32,MATCH(F86,$U$5:$U$32)+1),F86))*256/360 -> 19.2 | O86: 12.8 | P86: 985.8 | Q86: =IF((ROUND(L86*O86,0)-$F$2)>1,(ROUND(L86*O86,0)-$M$2),1) -> 986
E87: 82 | F87: =(1/(E87*256))*Setup_Settings!$E$5*60000000 -> 2858.231707 | G87: =(TREND(INDEX($C$5:$C$32,MATCH(F87,$B$5:$B$32)):INDEX($C$5:$C$32,MATCH(F87,$B$5:$B$32)+1),INDEX($B$5:$B$32,MATCH(F87,$B$5:$B$32)):INDEX($B$5:$B$32,MATCH(F87,$B$5:$B$32)+1),F87))*256/360 -> 17.06666667 | H87: 14.93333333 | I87: 1173.533333 | J87: 1174 | L87: 82 | M87: =(1/(L87*256))*Setup_Settings!$E$5*60000000 -> 2858.231707 | N87: =(TREND(INDEX($V$5:$V$32,MATCH(F87,$U$5:$U$32)):INDEX($V$5:$V$32,MATCH(F87,$U$5:$U$32)+1),INDEX($U$5:$U$32,MATCH(F87,$U$5:$U$32)):INDEX($U$5:$U$32,MATCH(F87,$U$5:$U$32)+1),F87))*256/360 -> 19.2 | O87: 12.8 | P87: 998.6 | Q87: 999
E88: 83 | F88: =(1/(E88*256))*Setup_Settings!$E$5*60000000 -> 2823.795181 | G88: =(TREND(INDEX($C$5:$C$32,MATCH(F88,$B$5:$B$32)):INDEX($C$5:$C$32,MATCH(F88,$B$5:$B$32)+1),INDEX($B$5:$B$32,MATCH(F88,$B$5:$B$32)):INDEX($B$5:$B$32,MATCH(F88,$B$5:$B$32)+1),F88))*256/360 -> 17.06666667 | H88: 14.93333333 | I88: 1188.466667 | J88: 1188 | L88: 83 | M88: =(1/(L88*256))*Setup_Settings!$E$5*60000000 -> 2823.795181 | N88: =(TREND(INDEX($V$5:$V$32,MATCH(F88,$U$5:$U$32)):INDEX($V$5:$V$32,MATCH(F88,$U$5:$U$32)+1),INDEX($U$5:$U$32,MATCH(F88,$U$5:$U$32)):INDEX($U$5:$U$32,MATCH(F88,$U$5:$U$32)+1),F88))*256/360 -> 19.2 | O88: 12.8 | P88: 1011.4 | Q88: 1011
E89: 84 | F89: =(1/(E89*256))*Setup_Settings!$E$5*60000000 -> 2790.178571 | G89: =(TREND(INDEX($C$5:$C$32,MATCH(F89,$B$5:$B$32)):INDEX($C$5:$C$32,MATCH(F89,$B$5:$B$32)+1),INDEX($B$5:$B$32,MATCH(F89,$B$5:$B$32)):INDEX($B$5:$B$32,MATCH(F89,$B$5:$B$32)+1),F89))*256/360 -> 17.06666667 | H89: 14.93333333 | I89: 1203.4 | J89: 1203 | L89: 84 | M89: =(1/(L89*256))*Setup_Settings!$E$5*60000000 -> 2790.178571 | N89: =(TREND(INDEX($V$5:$V$32,MATCH(F89,$U$5:$U$32)):INDEX($V$5:$V$32,MATCH(F89,$U$5:$U$32)+1),INDEX($U$5:$U$32,MATCH(F89,$U$5:$U$32)):INDEX($U$5:$U$32,MATCH(F89,$U$5:$U$32)+1),F89))*256/360 -> 19.2 | O89: 12.8 | P89: 1024.2 | Q89: 1024
E90: 85 | F90: =(1/(E90*256))*Setup_Settings!$E$5*60000000 -> 2757.352941 | G90: =(TREND(INDEX($C$5:$C$32,MATCH(F90,$B$5:$B$32)):INDEX($C$5:$C$32,MATCH(F90,$B$5:$B$32)+1),INDEX($B$5:$B$32,MATCH(F90,$B$5:$B$32)):INDEX($B$5:$B$32,MATCH(F90,$B$5:$B$32)+1),F90))*256/360 -> 17.06666667 | H90: 14.93333333 | I90: 1218.333333 | J90: 1218 | L90: 85 | M90: =(1/(L90*256))*Setup_Settings!$E$5*60000000 -> 2757.352941 | N90: =(TREND(INDEX($V$5:$V$32,MATCH(F90,$U$5:$U$32)):INDEX($V$5:$V$32,MATCH(F90,$U$5:$U$32)+1),INDEX($U$5:$U$32,MATCH(F90,$U$5:$U$32)):INDEX($U$5:$U$32,MATCH(F90,$U$5:$U$32)+1),F90))*256/360 -> 19.2 | O90: 12.8 | P90: 1037 | Q90: 1037
E91: 86 | F91: =(1/(E91*256))*Setup_Settings!$E$5*60000000 -> 2725.290698 | G91: =(TREND(INDEX($C$5:$C$32,MATCH(F91,$B$5:$B$32)):INDEX($C$5:$C$32,MATCH(F91,$B$5:$B$32)+1),INDEX($B$5:$B$32,MATCH(F91,$B$5:$B$32)):INDEX($B$5:$B$32,MATCH(F91,$B$5:$B$32)+1),F91))*256/360 -> 17.06666667 | H91: 14.93333333 | I91: 1233.266667 | J91: 1233 | L91: 86 | M91: =(1/(L91*256))*Setup_Settings!$E$5*60000000 -> 2725.290698 | N91: =(TREND(INDEX($V$5:$V$32,MATCH(F91,$U$5:$U$32)):INDEX($V$5:$V$32,MATCH(F91,$U$5:$U$32)+1),INDEX($U$5:$U$32,MATCH(F91,$U$5:$U$32)):INDEX($U$5:$U$32,MATCH(F91,$U$5:$U$32)+1),F91))*256/360 -> 19.2 | O91: 12.8 | P91: =(L91*O91)-$F$2 -> 1049.8 | Q91: 1050
E92: 87 | F92: =(1/(E92*256))*Setup_Settings!$E$5*60000000 -> 2693.965517 | G92: =(TREND(INDEX($C$5:$C$32,MATCH(F92,$B$5:$B$32)):INDEX($C$5:$C$32,MATCH(F92,$B$5:$B$32)+1),INDEX($B$5:$B$32,MATCH(F92,$B$5:$B$32)):INDEX($B$5:$B$32,MATCH(F92,$B$5:$B$32)+1),F92))*256/360 -> 17.06666667 | H92: 14.93333333 | I92: 1248.2 | J92: 1248 | L92: 87 | M92: =(1/(L92*256))*Setup_Settings!$E$5*60000000 -> 2693.965517 | N92: =(TREND(INDEX($V$5:$V$32,MATCH(F92,$U$5:$U$32)):INDEX($V$5:$V$32,MATCH(F92,$U$5:$U$32)+1),INDEX($U$5:$U$32,MATCH(F92,$U$5:$U$32)):INDEX($U$5:$U$32,MATCH(F92,$U$5:$U$32)+1),F92))*256/360 -> 19.2 | O92: 12.8 | P92: 1062.6 | Q92: 1063
E93: 88 | F93: =(1/(E93*256))*Setup_Settings!$E$5*60000000 -> 2663.352273 | G93: =(TREND(INDEX($C$5:$C$32,MATCH(F93,$B$5:$B$32)):INDEX($C$5:$C$32,MATCH(F93,$B$5:$B$32)+1),INDEX($B$5:$B$32,MATCH(F93,$B$5:$B$32)):INDEX($B$5:$B$32,MATCH(F93,$B$5:$B$32)+1),F93))*256/360 -> 17.06666667 | H93: 14.93333333 | I93: 1263.133333 | J93: 1263 | L93: 88 | M93: =(1/(L93*256))*Setup_Settings!$E$5*60000000 -> 2663.352273 | N93: =(TREND(INDEX($V$5:$V$32,MATCH(F93,$U$5:$U$32)):INDEX($V$5:$V$32,MATCH(F93,$U$5:$U$32)+1),INDEX($U$5:$U$32,MATCH(F93,$U$5:$U$32)):INDEX($U$5:$U$32,MATCH(F93,$U$5:$U$32)+1),F93))*256/360 -> 19.2 | O93: 12.8 | P93: 1075.4 | Q93: 1075
E94: 89 | F94: =(1/(E94*256))*Setup_Settings!$E$5*60000000 -> 2633.426966 | G94: =(TREND(INDEX($C$5:$C$32,MATCH(F94,$B$5:$B$32)):INDEX($C$5:$C$32,MATCH(F94,$B$5:$B$32)+1),INDEX($B$5:$B$32,MATCH(F94,$B$5:$B$32)):INDEX($B$5:$B$32,MATCH(F94,$B$5:$B$32)+1),F94))*256/360 -> 17.06666667 | H94: 14.93333333 | I94: 1278.066667 | J94: 1278 | L94: 89 | M94: =(1/(L94*256))*Setup_Settings!$E$5*60000000 -> 2633.426966 | N94: =(TREND(INDEX($V$5:$V$32,MATCH(F94,$U$5:$U$32)):INDEX($V$5:$V$32,MATCH(F94,$U$5:$U$32)+1),INDEX($U$5:$U$32,MATCH(F94,$U$5:$U$32)):INDEX($U$5:$U$32,MATCH(F94,$U$5:$U$32)+1),F94))*256/360 -> 19.2 | O94: 12.8 | P94: 1088.2 | Q94: 1088
E95: 90 | F95: =(1/(E95*256))*Setup_Settings!$E$5*60000000 -> 2604.166667 | G95: =(TREND(INDEX($C$5:$C$32,MATCH(F95,$B$5:$B$32)):INDEX($C$5:$C$32,MATCH(F95,$B$5:$B$32)+1),INDEX($B$5:$B$32,MATCH(F95,$B$5:$B$32)):INDEX($B$5:$B$32,MATCH(F95,$B$5:$B$32)+1),F95))*256/360 -> 17.06666667 | H95: 14.93333333 | I95: 1293 | J95: 1293 | L95: 90 | M95: =(1/(L95*256))*Setup_Settings!$E$5*60000000 -> 2604.166667 | N95: =(TREND(INDEX($V$5:$V$32,MATCH(F95,$U$5:$U$32)):INDEX($V$5:$V$32,MATCH(F95,$U$5:$U$32)+1),INDEX($U$5:$U$32,MATCH(F95,$U$5:$U$32)):INDEX($U$5:$U$32,MATCH(F95,$U$5:$U$32)+1),F95))*256/360 -> 19.2 | O95: 12.8 | P95: 1101 | Q95: 1101
E96: 91 | F96: =(1/(E96*256))*Setup_Settings!$E$5*60000000 -> 2575.549451 | G96: =(TREND(INDEX($C$5:$C$32,MATCH(F96,$B$5:$B$32)):INDEX($C$5:$C$32,MATCH(F96,$B$5:$B$32)+1),INDEX($B$5:$B$32,MATCH(F96,$B$5:$B$32)):INDEX($B$5:$B$32,MATCH(F96,$B$5:$B$32)+1),F96))*256/360 -> 17.06666667 | H96: 14.93333333 | I96: 1307.933333 | J96: 1308 | L96: 91 | M96: =(1/(L96*256))*Setup_Settings!$E$5*60000000 -> 2575.549451 | N96: =(TREND(INDEX($V$5:$V$32,MATCH(F96,$U$5:$U$32)):INDEX($V$5:$V$32,MATCH(F96,$U$5:$U$32)+1),INDEX($U$5:$U$32,MATCH(F96,$U$5:$U$32)):INDEX($U$5:$U$32,MATCH(F96,$U$5:$U$32)+1),F96))*256/360 -> 19.2 | O96: 12.8 | P96: 1113.8 | Q96: 1114
E97: 92 | F97: =(1/(E97*256))*Setup_Settings!$E$5*60000000 -> 2547.554348 | G97: =(TREND(INDEX($C$5:$C$32,MATCH(F97,$B$5:$B$32)):INDEX($C$5:$C$32,MATCH(F97,$B$5:$B$32)+1),INDEX($B$5:$B$32,MATCH(F97,$B$5:$B$32)):INDEX($B$5:$B$32,MATCH(F97,$B$5:$B$32)+1),F97))*256/360 -> 17.06666667 | H97: 14.93333333 | I97: 1322.866667 | J97: 1323 | L97: 92 | M97: =(1/(L97*256))*Setup_Settings!$E$5*60000000 -> 2547.554348 | N97: =(TREND(INDEX($V$5:$V$32,MATCH(F97,$U$5:$U$32)):INDEX($V$5:$V$32,MATCH(F97,$U$5:$U$32)+1),INDEX($U$5:$U$32,MATCH(F97,$U$5:$U$32)):INDEX($U$5:$U$32,MATCH(F97,$U$5:$U$32)+1),F97))*256/360 -> 19.2 | O97: 12.8 | P97: 1126.6 | Q97: 1127
E98: 93 | F98: =(1/(E98*256))*Setup_Settings!$E$5*60000000 -> 2520.16129 | G98: =(TREND(INDEX($C$5:$C$32,MATCH(F98,$B$5:$B$32)):INDEX($C$5:$C$32,MATCH(F98,$B$5:$B$32)+1),INDEX($B$5:$B$32,MATCH(F98,$B$5:$B$32)):INDEX($B$5:$B$32,MATCH(F98,$B$5:$B$32)+1),F98))*256/360 -> 17.06666667 | H98: 14.93333333 | I98: 1337.8 | J98: 1338 | L98: 93 | M98: =(1/(L98*256))*Setup_Settings!$E$5*60000000 -> 2520.16129 | N98: =(TREND(INDEX($V$5:$V$32,MATCH(F98,$U$5:$U$32)):INDEX($V$5:$V$32,MATCH(F98,$U$5:$U$32)+1),INDEX($U$5:$U$32,MATCH(F98,$U$5:$U$32)):INDEX($U$5:$U$32,MATCH(F98,$U$5:$U$32)+1),F98))*256/360 -> 19.2 | O98: 12.8 | P98: 1139.4 | Q98: 1139
E99: 94 | F99: =(1/(E99*256))*Setup_Settings!$E$5*60000000 -> 2493.351064 | G99: =(TREND(INDEX($C$5:$C$32,MATCH(F99,$B$5:$B$32)):INDEX($C$5:$C$32,MATCH(F99,$B$5:$B$32)+1),INDEX($B$5:$B$32,MATCH(F99,$B$5:$B$32)):INDEX($B$5:$B$32,MATCH(F99,$B$5:$B$32)+1),F99))*256/360 -> 17.06666667 | H99: 14.93333333 | I99: 1352.733333 | J99: 1353 | L99: 94 | M99: =(1/(L99*256))*Setup_Settings!$E$5*60000000 -> 2493.351064 | N99: =(TREND(INDEX($V$5:$V$32,MATCH(F99,$U$5:$U$32)):INDEX($V$5:$V$32,MATCH(F99,$U$5:$U$32)+1),INDEX($U$5:$U$32,MATCH(F99,$U$5:$U$32)):INDEX($U$5:$U$32,MATCH(F99,$U$5:$U$32)+1),F99))*256/360 -> 19.2 | O99: 12.8 | P99: 1152.2 | Q99: 1152
E100: 95 | F100: =(1/(E100*256))*Setup_Settings!$E$5*60000000 -> 2467.105263 | G100: =(TREND(INDEX($C$5:$C$32,MATCH(F100,$B$5:$B$32)):INDEX($C$5:$C$32,MATCH(F100,$B$5:$B$32)+1),INDEX($B$5:$B$32,MATCH(F100,$B$5:$B$32)):INDEX($B$5:$B$32,MATCH(F100,$B$5:$B$32)+1),F100))*256/360 -> 17.06666667 | H100: 14.93333333 | I100: 1367.666667 | J100: 1368 | L100: 95 | M100: =(1/(L100*256))*Setup_Settings!$E$5*60000000 -> 2467.105263 | N100: =(TREND(INDEX($V$5:$V$32,MATCH(F100,$U$5:$U$32)):INDEX($V$5:$V$32,MATCH(F100,$U$5:$U$32)+1),INDEX($U$5:$U$32,MATCH(F100,$U$5:$U$32)):INDEX($U$5:$U$32,MATCH(F100,$U$5:$U$32)+1),F100))*256/360 -> 19.2 | O100: 12.8 | P100: 1165 | Q100: 1165
E101: 96 | F101: =(1/(E101*256))*Setup_Settings!$E$5*60000000 -> 2441.40625 | G101: =(TREND(INDEX($C$5:$C$32,MATCH(F101,$B$5:$B$32)):INDEX($C$5:$C$32,MATCH(F101,$B$5:$B$32)+1),INDEX($B$5:$B$32,MATCH(F101,$B$5:$B$32)):INDEX($B$5:$B$32,MATCH(F101,$B$5:$B$32)+1),F101))*256/360 -> 17.06666667 | H101: 14.93333333 | I101: 1382.6 | J101: 1383 | L101: 96 | M101: =(1/(L101*256))*Setup_Settings!$E$5*60000000 -> 2441.40625 | N101: =(TREND(INDEX($V$5:$V$32,MATCH(F101,$U$5:$U$32)):INDEX($V$5:$V$32,MATCH(F101,$U$5:$U$32)+1),INDEX($U$5:$U$32,MATCH(F101,$U$5:$U$32)):INDEX($U$5:$U$32,MATCH(F101,$U$5:$U$32)+1),F101))*256/360 -> 19.2 | O101: 12.8 | P101: 1177.8 | Q101: 1178
E102: 97 | F102: =(1/(E102*256))*Setup_Settings!$E$5*60000000 -> 2416.237113 | G102: =(TREND(INDEX($C$5:$C$32,MATCH(F102,$B$5:$B$32)):INDEX($C$5:$C$32,MATCH(F102,$B$5:$B$32)+1),INDEX($B$5:$B$32,MATCH(F102,$B$5:$B$32)):INDEX($B$5:$B$32,MATCH(F102,$B$5:$B$32)+1),F102))*256/360 -> 17.06666667 | H102: 14.93333333 | I102: 1397.533333 | J102: 1398 | L102: 97 | M102: =(1/(L102*256))*Setup_Settings!$E$5*60000000 -> 2416.237113 | N102: =(TREND(INDEX($V$5:$V$32,MATCH(F102,$U$5:$U$32)):INDEX($V$5:$V$32,MATCH(F102,$U$5:$U$32)+1),INDEX($U$5:$U$32,MATCH(F102,$U$5:$U$32)):INDEX($U$5:$U$32,MATCH(F102,$U$5:$U$32)+1),F102))*256/360 -> 19.2 | O102: 12.8 | P102: 1190.6 | Q102: 1191
E103: 98 | F103: =(1/(E103*256))*Setup_Settings!$E$5*60000000 -> 2391.581633 | G103: =(TREND(INDEX($C$5:$C$32,MATCH(F103,$B$5:$B$32)):INDEX($C$5:$C$32,MATCH(F103,$B$5:$B$32)+1),INDEX($B$5:$B$32,MATCH(F103,$B$5:$B$32)):INDEX($B$5:$B$32,MATCH(F103,$B$5:$B$32)+1),F103))*256/360 -> 17.06666667 | H103: 14.93333333 | I103: 1412.466667 | J103: 1412 | L103: 98 | M103: =(1/(L103*256))*Setup_Settings!$E$5*60000000 -> 2391.581633 | N103: =(TREND(INDEX($V$5:$V$32,MATCH(F103,$U$5:$U$32)):INDEX($V$5:$V$32,MATCH(F103,$U$5:$U$32)+1),INDEX($U$5:$U$32,MATCH(F103,$U$5:$U$32)):INDEX($U$5:$U$32,MATCH(F103,$U$5:$U$32)+1),F103))*256/360 -> 19.2 | O103: 12.8 | P103: 1203.4 | Q103: 1203
E104: 99 | F104: =(1/(E104*256))*Setup_Settings!$E$5*60000000 -> 2367.424242 | G104: =(TREND(INDEX($C$5:$C$32,MATCH(F104,$B$5:$B$32)):INDEX($C$5:$C$32,MATCH(F104,$B$5:$B$32)+1),INDEX($B$5:$B$32,MATCH(F104,$B$5:$B$32)):INDEX($B$5:$B$32,MATCH(F104,$B$5:$B$32)+1),F104))*256/360 -> 17.06666667 | H104: 14.93333333 | I104: 1427.4 | J104: 1427 | L104: 99 | M104: =(1/(L104*256))*Setup_Settings!$E$5*60000000 -> 2367.424242 | N104: =(TREND(INDEX($V$5:$V$32,MATCH(F104,$U$5:$U$32)):INDEX($V$5:$V$32,MATCH(F104,$U$5:$U$32)+1),INDEX($U$5:$U$32,MATCH(F104,$U$5:$U$32)):INDEX($U$5:$U$32,MATCH(F104,$U$5:$U$32)+1),F104))*256/360 -> 19.2 | O104: 12.8 | P104: 1216.2 | Q104: 1216
E105: 100 | F105: =(1/(E105*256))*Setup_Settings!$E$5*60000000 -> 2343.75 | G105: =(TREND(INDEX($C$5:$C$32,MATCH(F105,$B$5:$B$32)):INDEX($C$5:$C$32,MATCH(F105,$B$5:$B$32)+1),INDEX($B$5:$B$32,MATCH(F105,$B$5:$B$32)):INDEX($B$5:$B$32,MATCH(F105,$B$5:$B$32)+1),F105))*256/360 -> 17.06666667 | H105: 14.93333333 | I105: 1442.333333 | J105: 1442 | L105: 100 | M105: =(1/(L105*256))*Setup_Settings!$E$5*60000000 -> 2343.75 | N105: =(TREND(INDEX($V$5:$V$32,MATCH(F105,$U$5:$U$32)):INDEX($V$5:$V$32,MATCH(F105,$U$5:$U$32)+1),INDEX($U$5:$U$32,MATCH(F105,$U$5:$U$32)):INDEX($U$5:$U$32,MATCH(F105,$U$5:$U$32)+1),F105))*256/360 -> 19.2 | O105: 12.8 | P105: 1229 | Q105: 1229
E106: 101 | F106: =(1/(E106*256))*Setup_Settings!$E$5*60000000 -> 2320.544554 | G106: =(TREND(INDEX($C$5:$C$32,MATCH(F106,$B$5:$B$32)):INDEX($C$5:$C$32,MATCH(F106,$B$5:$B$32)+1),INDEX($B$5:$B$32,MATCH(F106,$B$5:$B$32)):INDEX($B$5:$B$32,MATCH(F106,$B$5:$B$32)+1),F106))*256/360 -> 17.06666667 | H106: 14.93333333 | I106: 1457.266667 | J106: 1457 | L106: 101 | M106: =(1/(L106*256))*Setup_Settings!$E$5*60000000 -> 2320.544554 | N106: =(TREND(INDEX($V$5:$V$32,MATCH(F106,$U$5:$U$32)):INDEX($V$5:$V$32,MATCH(F106,$U$5:$U$32)+1),INDEX($U$5:$U$32,MATCH(F106,$U$5:$U$32)):INDEX($U$5:$U$32,MATCH(F106,$U$5:$U$32)+1),F106))*256/360 -> 19.2 | O106: 12.8 | P106: 1241.8 | Q106: 1242
E107: 102 | F107: =(1/(E107*256))*Setup_Settings!$E$5*60000000 -> 2297.794118 | G107: =(TREND(INDEX($C$5:$C$32,MATCH(F107,$B$5:$B$32)):INDEX($C$5:$C$32,MATCH(F107,$B$5:$B$32)+1),INDEX($B$5:$B$32,MATCH(F107,$B$5:$B$32)):INDEX($B$5:$B$32,MATCH(F107,$B$5:$B$32)+1),F107))*256/360 -> 17.06666667 | H107: 14.93333333 | I107: 1472.2 | J107: 1472 | L107: 102 | M107: =(1/(L107*256))*Setup_Settings!$E$5*60000000 -> 2297.794118 | N107: =(TREND(INDEX($V$5:$V$32,MATCH(F107,$U$5:$U$32)):INDEX($V$5:$V$32,MATCH(F107,$U$5:$U$32)+1),INDEX($U$5:$U$32,MATCH(F107,$U$5:$U$32)):INDEX($U$5:$U$32,MATCH(F107,$U$5:$U$32)+1),F107))*256/360 -> 19.2 | O107: 12.8 | P107: 1254.6 | Q107: 1255
E108: 103 | F108: =(1/(E108*256))*Setup_Settings!$E$5*60000000 -> 2275.485437 | G108: =(TREND(INDEX($C$5:$C$32,MATCH(F108,$B$5:$B$32)):INDEX($C$5:$C$32,MATCH(F108,$B$5:$B$32)+1),INDEX($B$5:$B$32,MATCH(F108,$B$5:$B$32)):INDEX($B$5:$B$32,MATCH(F108,$B$5:$B$32)+1),F108))*256/360 -> 17.06666667 | H108: 14.93333333 | I108: 1487.133333 | J108: 1487 | L108: 103 | M108: =(1/(L108*256))*Setup_Settings!$E$5*60000000 -> 2275.485437 | N108: =(TREND(INDEX($V$5:$V$32,MATCH(F108,$U$5:$U$32)):INDEX($V$5:$V$32,MATCH(F108,$U$5:$U$32)+1),INDEX($U$5:$U$32,MATCH(F108,$U$5:$U$32)):INDEX($U$5:$U$32,MATCH(F108,$U$5:$U$32)+1),F108))*256/360 -> 19.2 | O108: 12.8 | P108: 1267.4 | Q108: 1267
E109: 104 | F109: =(1/(E109*256))*Setup_Settings!$E$5*60000000 -> 2253.605769 | G109: =(TREND(INDEX($C$5:$C$32,MATCH(F109,$B$5:$B$32)):INDEX($C$5:$C$32,MATCH(F109,$B$5:$B$32)+1),INDEX($B$5:$B$32,MATCH(F109,$B$5:$B$32)):INDEX($B$5:$B$32,MATCH(F109,$B$5:$B$32)+1),F109))*256/360 -> 17.06666667 | H109: 14.93333333 | I109: 1502.066667 | J109: 1502 | L109: 104 | M109: =(1/(L109*256))*Setup_Settings!$E$5*60000000 -> 2253.605769 | N109: =(TREND(INDEX($V$5:$V$32,MATCH(F109,$U$5:$U$32)):INDEX($V$5:$V$32,MATCH(F109,$U$5:$U$32)+1),INDEX($U$5:$U$32,MATCH(F109,$U$5:$U$32)):INDEX($U$5:$U$32,MATCH(F109,$U$5:$U$32)+1),F109))*256/360 -> 19.2 | O109: 12.8 | P109: 1280.2 | Q109: 1280
E110: 105 | F110: =(1/(E110*256))*Setup_Settings!$E$5*60000000 -> 2232.142857 | G110: =(TREND(INDEX($C$5:$C$32,MATCH(F110,$B$5:$B$32)):INDEX($C$5:$C$32,MATCH(F110,$B$5:$B$32)+1),INDEX($B$5:$B$32,MATCH(F110,$B$5:$B$32)):INDEX($B$5:$B$32,MATCH(F110,$B$5:$B$32)+1),F110))*256/360 -> 17.06666667 | H110: 14.93333333 | I110: 1517 | J110: 1517 | L110: 105 | M110: =(1/(L110*256))*Setup_Settings!$E$5*60000000 -> 2232.142857 | N110: =(TREND(INDEX($V$5:$V$32,MATCH(F110,$U$5:$U$32)):INDEX($V$5:$V$32,MATCH(F110,$U$5:$U$32)+1),INDEX($U$5:$U$32,MATCH(F110,$U$5:$U$32)):INDEX($U$5:$U$32,MATCH(F110,$U$5:$U$32)+1),F110))*256/360 -> 19.2 | O110: 12.8 | P110: 1293 | Q110: 1293
E111: 106 | F111: =(1/(E111*256))*Setup_Settings!$E$5*60000000 -> 2211.084906 | G111: =(TREND(INDEX($C$5:$C$32,MATCH(F111,$B$5:$B$32)):INDEX($C$5:$C$32,MATCH(F111,$B$5:$B$32)+1),INDEX($B$5:$B$32,MATCH(F111,$B$5:$B$32)):INDEX($B$5:$B$32,MATCH(F111,$B$5:$B$32)+1),F111))*256/360 -> 17.06666667 | H111: 14.93333333 | I111: 1531.933333 | J111: 1532 | L111: 106 | M111: =(1/(L111*256))*Setup_Settings!$E$5*60000000 -> 2211.084906 | N111: =(TREND(INDEX($V$5:$V$32,MATCH(F111,$U$5:$U$32)):INDEX($V$5:$V$32,MATCH(F111,$U$5:$U$32)+1),INDEX($U$5:$U$32,MATCH(F111,$U$5:$U$32)):INDEX($U$5:$U$32,MATCH(F111,$U$5:$U$32)+1),F111))*256/360 -> 19.2 | O111: 12.8 | P111: 1305.8 | Q111: 1306
E112: 107 | F112: =(1/(E112*256))*Setup_Settings!$E$5*60000000 -> 2190.420561 | G112: =(TREND(INDEX($C$5:$C$32,MATCH(F112,$B$5:$B$32)):INDEX($C$5:$C$32,MATCH(F112,$B$5:$B$32)+1),INDEX($B$5:$B$32,MATCH(F112,$B$5:$B$32)):INDEX($B$5:$B$32,MATCH(F112,$B$5:$B$32)+1),F112))*256/360 -> 17.06666667 | H112: 14.93333333 | I112: 1546.866667 | J112: 1547 | L112: 107 | M112: =(1/(L112*256))*Setup_Settings!$E$5*60000000 -> 2190.420561 | N112: =(TREND(INDEX($V$5:$V$32,MATCH(F112,$U$5:$U$32)):INDEX($V$5:$V$32,MATCH(F112,$U$5:$U$32)+1),INDEX($U$5:$U$32,MATCH(F112,$U$5:$U$32)):INDEX($U$5:$U$32,MATCH(F112,$U$5:$U$32)+1),F112))*256/360 -> 19.2 | O112: 12.8 | P112: 1318.6 | Q112: 1319
E113: 108 | F113: =(1/(E113*256))*Setup_Settings!$E$5*60000000 -> 2170.138889 | G113: =(TREND(INDEX($C$5:$C$32,MATCH(F113,$B$5:$B$32)):INDEX($C$5:$C$32,MATCH(F113,$B$5:$B$32)+1),INDEX($B$5:$B$32,MATCH(F113,$B$5:$B$32)):INDEX($B$5:$B$32,MATCH(F113,$B$5:$B$32)+1),F113))*256/360 -> 17.06666667 | H113: 14.93333333 | I113: 1561.8 | J113: 1562 | L113: 108 | M113: =(1/(L113*256))*Setup_Settings!$E$5*60000000 -> 2170.138889 | N113: =(TREND(INDEX($V$5:$V$32,MATCH(F113,$U$5:$U$32)):INDEX($V$5:$V$32,MATCH(F113,$U$5:$U$32)+1),INDEX($U$5:$U$32,MATCH(F113,$U$5:$U$32)):INDEX($U$5:$U$32,MATCH(F113,$U$5:$U$32)+1),F113))*256/360 -> 19.2 | O113: 12.8 | P113: 1331.4 | Q113: 1331
E114: 109 | F114: =(1/(E114*256))*Setup_Settings!$E$5*60000000 -> 2150.229358 | G114: =(TREND(INDEX($C$5:$C$32,MATCH(F114,$B$5:$B$32)):INDEX($C$5:$C$32,MATCH(F114,$B$5:$B$32)+1),INDEX($B$5:$B$32,MATCH(F114,$B$5:$B$32)):INDEX($B$5:$B$32,MATCH(F114,$B$5:$B$32)+1),F114))*256/360 -> 17.06666667 | H114: 14.93333333 | I114: 1576.733333 | J114: 1577 | L114: 109 | M114: =(1/(L114*256))*Setup_Settings!$E$5*60000000 -> 2150.229358 | N114: =(TREND(INDEX($V$5:$V$32,MATCH(F114,$U$5:$U$32)):INDEX($V$5:$V$32,MATCH(F114,$U$5:$U$32)+1),INDEX($U$5:$U$32,MATCH(F114,$U$5:$U$32)):INDEX($U$5:$U$32,MATCH(F114,$U$5:$U$32)+1),F114))*256/360 -> 19.2 | O114: 12.8 | P114: 1344.2 | Q114: 1344
E115: 110 | F115: =(1/(E115*256))*Setup_Settings!$E$5*60000000 -> 2130.681818 | G115: =(TREND(INDEX($C$5:$C$32,MATCH(F115,$B$5:$B$32)):INDEX($C$5:$C$32,MATCH(F115,$B$5:$B$32)+1),INDEX($B$5:$B$32,MATCH(F115,$B$5:$B$32)):INDEX($B$5:$B$32,MATCH(F115,$B$5:$B$32)+1),F115))*256/360 -> 17.06666667 | H115: 14.93333333 | I115: 1591.666667 | J115: 1592 | L115: 110 | M115: =(1/(L115*256))*Setup_Settings!$E$5*60000000 -> 2130.681818 | N115: =(TREND(INDEX($V$5:$V$32,MATCH(F115,$U$5:$U$32)):INDEX($V$5:$V$32,MATCH(F115,$U$5:$U$32)+1),INDEX($U$5:$U$32,MATCH(F115,$U$5:$U$32)):INDEX($U$5:$U$32,MATCH(F115,$U$5:$U$32)+1),F115))*256/360 -> 19.2 | O115: 12.8 | P115: 1357 | Q115: 1357
E116: 111 | F116: =(1/(E116*256))*Setup_Settings!$E$5*60000000 -> 2111.486486 | G116: =(TREND(INDEX($C$5:$C$32,MATCH(F116,$B$5:$B$32)):INDEX($C$5:$C$32,MATCH(F116,$B$5:$B$32)+1),INDEX($B$5:$B$32,MATCH(F116,$B$5:$B$32)):INDEX($B$5:$B$32,MATCH(F116,$B$5:$B$32)+1),F116))*256/360 -> 17.06666667 | H116: 14.93333333 | I116: 1606.6 | J116: 1607 | L116: 111 | M116: =(1/(L116*256))*Setup_Settings!$E$5*60000000 -> 2111.486486 | N116: =(TREND(INDEX($V$5:$V$32,MATCH(F116,$U$5:$U$32)):INDEX($V$5:$V$32,MATCH(F116,$U$5:$U$32)+1),INDEX($U$5:$U$32,MATCH(F116,$U$5:$U$32)):INDEX($U$5:$U$32,MATCH(F116,$U$5:$U$32)+1),F116))*256/360 -> 19.2 | O116: 12.8 | P116: 1369.8 | Q116: 1370
E117: 112 | F117: =(1/(E117*256))*Setup_Settings!$E$5*60000000 -> 2092.633929 | G117: =(TREND(INDEX($C$5:$C$32,MATCH(F117,$B$5:$B$32)):INDEX($C$5:$C$32,MATCH(F117,$B$5:$B$32)+1),INDEX($B$5:$B$32,MATCH(F117,$B$5:$B$32)):INDEX($B$5:$B$32,MATCH(F117,$B$5:$B$32)+1),F117))*256/360 -> 17.06666667 | H117: 14.93333333 | I117: 1621.533333 | J117: 1622 | L117: 112 | M117: =(1/(L117*256))*Setup_Settings!$E$5*60000000 -> 2092.633929 | N117: =(TREND(INDEX($V$5:$V$32,MATCH(F117,$U$5:$U$32)):INDEX($V$5:$V$32,MATCH(F117,$U$5:$U$32)+1),INDEX($U$5:$U$32,MATCH(F117,$U$5:$U$32)):INDEX($U$5:$U$32,MATCH(F117,$U$5:$U$32)+1),F117))*256/360 -> 19.2 | O117: 12.8 | P117: 1382.6 | Q117: 1383
E118: 113 | F118: =(1/(E118*256))*Setup_Settings!$E$5*60000000 -> 2074.115044 | G118: =(TREND(INDEX($C$5:$C$32,MATCH(F118,$B$5:$B$32)):INDEX($C$5:$C$32,MATCH(F118,$B$5:$B$32)+1),INDEX($B$5:$B$32,MATCH(F118,$B$5:$B$32)):INDEX($B$5:$B$32,MATCH(F118,$B$5:$B$32)+1),F118))*256/360 -> 17.06666667 | H118: 14.93333333 | I118: 1636.466667 | J118: 1636 | L118: 113 | M118: =(1/(L118*256))*Setup_Settings!$E$5*60000000 -> 2074.115044 | N118: =(TREND(INDEX($V$5:$V$32,MATCH(F118,$U$5:$U$32)):INDEX($V$5:$V$32,MATCH(F118,$U$5:$U$32)+1),INDEX($U$5:$U$32,MATCH(F118,$U$5:$U$32)):INDEX($U$5:$U$32,MATCH(F118,$U$5:$U$32)+1),F118))*256/360 -> 19.2 | O118: 12.8 | P118: 1395.4 | Q118: 1395
E119: 114 | F119: =(1/(E119*256))*Setup_Settings!$E$5*60000000 -> 2055.921053 | G119: =(TREND(INDEX($C$5:$C$32,MATCH(F119,$B$5:$B$32)):INDEX($C$5:$C$32,MATCH(F119,$B$5:$B$32)+1),INDEX($B$5:$B$32,MATCH(F119,$B$5:$B$32)):INDEX($B$5:$B$32,MATCH(F119,$B$5:$B$32)+1),F119))*256/360 -> 17.06666667 | H119: 14.93333333 | I119: 1651.4 | J119: 1651 | L119: 114 | M119: =(1/(L119*256))*Setup_Settings!$E$5*60000000 -> 2055.921053 | N119: =(TREND(INDEX($V$5:$V$32,MATCH(F119,$U$5:$U$32)):INDEX($V$5:$V$32,MATCH(F119,$U$5:$U$32)+1),INDEX($U$5:$U$32,MATCH(F119,$U$5:$U$32)):INDEX($U$5:$U$32,MATCH(F119,$U$5:$U$32)+1),F119))*256/360 -> 19.2 | O119: 12.8 | P119: 1408.2 | Q119: 1408
E120: 115 | F120: =(1/(E120*256))*Setup_Settings!$E$5*60000000 -> 2038.043478 | G120: =(TREND(INDEX($C$5:$C$32,MATCH(F120,$B$5:$B$32)):INDEX($C$5:$C$32,MATCH(F120,$B$5:$B$32)+1),INDEX($B$5:$B$32,MATCH(F120,$B$5:$B$32)):INDEX($B$5:$B$32,MATCH(F120,$B$5:$B$32)+1),F120))*256/360 -> 17.06666667 | H120: 14.93333333 | I120: 1666.333333 | J120: 1666 | L120: 115 | M120: =(1/(L120*256))*Setup_Settings!$E$5*60000000 -> 2038.043478 | N120: =(TREND(INDEX($V$5:$V$32,MATCH(F120,$U$5:$U$32)):INDEX($V$5:$V$32,MATCH(F120,$U$5:$U$32)+1),INDEX($U$5:$U$32,MATCH(F120,$U$5:$U$32)):INDEX($U$5:$U$32,MATCH(F120,$U$5:$U$32)+1),F120))*256/360 -> 19.2 | O120: 12.8 | P120: 1421 | Q120: 1421
E121: 116 | F121: =(1/(E121*256))*Setup_Settings!$E$5*60000000 -> 2020.474138 | G121: =(TREND(INDEX($C$5:$C$32,MATCH(F121,$B$5:$B$32)):INDEX($C$5:$C$32,MATCH(F121,$B$5:$B$32)+1),INDEX($B$5:$B$32,MATCH(F121,$B$5:$B$32)):INDEX($B$5:$B$32,MATCH(F121,$B$5:$B$32)+1),F121))*256/360 -> 17.06666667 | H121: 14.93333333 | I121: 1681.266667 | J121: 1681 | L121: 116 | M121: =(1/(L121*256))*Setup_Settings!$E$5*60000000 -> 2020.474138 | N121: =(TREND(INDEX($V$5:$V$32,MATCH(F121,$U$5:$U$32)):INDEX($V$5:$V$32,MATCH(F121,$U$5:$U$32)+1),INDEX($U$5:$U$32,MATCH(F121,$U$5:$U$32)):INDEX($U$5:$U$32,MATCH(F121,$U$5:$U$32)+1),F121))*256/360 -> 19.2 | O121: 12.8 | P121: 1433.8 | Q121: 1434
E122: 117 | F122: =(1/(E122*256))*Setup_Settings!$E$5*60000000 -> 2003.205128 | G122: =(TREND(INDEX($C$5:$C$32,MATCH(F122,$B$5:$B$32)):INDEX($C$5:$C$32,MATCH(F122,$B$5:$B$32)+1),INDEX($B$5:$B$32,MATCH(F122,$B$5:$B$32)):INDEX($B$5:$B$32,MATCH(F122,$B$5:$B$32)+1),F122))*256/360 -> 17.06666667 | H122: 14.93333333 | I122: 1696.2 | J122: 1696 | L122: 117 | M122: =(1/(L122*256))*Setup_Settings!$E$5*60000000 -> 2003.205128 | N122: =(TREND(INDEX($V$5:$V$32,MATCH(F122,$U$5:$U$32)):INDEX($V$5:$V$32,MATCH(F122,$U$5:$U$32)+1),INDEX($U$5:$U$32,MATCH(F122,$U$5:$U$32)):INDEX($U$5:$U$32,MATCH(F122,$U$5:$U$32)+1),F122))*256/360 -> 19.2 | O122: 12.8 | P122: 1446.6 | Q122: 1447
E123: 118 | F123: =(1/(E123*256))*Setup_Settings!$E$5*60000000 -> 1986.228814 | G123: =(TREND(INDEX($C$5:$C$32,MATCH(F123,$B$5:$B$32)):INDEX($C$5:$C$32,MATCH(F123,$B$5:$B$32)+1),INDEX($B$5:$B$32,MATCH(F123,$B$5:$B$32)):INDEX($B$5:$B$32,MATCH(F123,$B$5:$B$32)+1),F123))*256/360 -> 17.06666667 | H123: 14.93333333 | I123: 1711.133333 | J123: 1711 | L123: 118 | M123: =(1/(L123*256))*Setup_Settings!$E$5*60000000 -> 1986.228814 | N123: =(TREND(INDEX($V$5:$V$32,MATCH(F123,$U$5:$U$32)):INDEX($V$5:$V$32,MATCH(F123,$U$5:$U$32)+1),INDEX($U$5:$U$32,MATCH(F123,$U$5:$U$32)):INDEX($U$5:$U$32,MATCH(F123,$U$5:$U$32)+1),F123))*256/360 -> 19.2 | O123: 12.8 | P123: 1459.4 | Q123: 1459
E124: 119 | F124: =(1/(E124*256))*Setup_Settings!$E$5*60000000 -> 1969.537815 | G124: =(TREND(INDEX($C$5:$C$32,MATCH(F124,$B$5:$B$32)):INDEX($C$5:$C$32,MATCH(F124,$B$5:$B$32)+1),INDEX($B$5:$B$32,MATCH(F124,$B$5:$B$32)):INDEX($B$5:$B$32,MATCH(F124,$B$5:$B$32)+1),F124))*256/360 -> 17.06666667 | H124: 14.93333333 | I124: 1726.066667 | J124: 1726 | L124: 119 | M124: =(1/(L124*256))*Setup_Settings!$E$5*60000000 -> 1969.537815 | N124: =(TREND(INDEX($V$5:$V$32,MATCH(F124,$U$5:$U$32)):INDEX($V$5:$V$32,MATCH(F124,$U$5:$U$32)+1),INDEX($U$5:$U$32,MATCH(F124,$U$5:$U$32)):INDEX($U$5:$U$32,MATCH(F124,$U$5:$U$32)+1),F124))*256/360 -> 19.2 | O124: 12.8 | P124: 1472.2 | Q124: 1472
E125: 120 | F125: =(1/(E125*256))*Setup_Settings!$E$5*60000000 -> 1953.125 | G125: =(TREND(INDEX($C$5:$C$32,MATCH(F125,$B$5:$B$32)):INDEX($C$5:$C$32,MATCH(F125,$B$5:$B$32)+1),INDEX($B$5:$B$32,MATCH(F125,$B$5:$B$32)):INDEX($B$5:$B$32,MATCH(F125,$B$5:$B$32)+1),F125))*256/360 -> 17.06666667 | H125: 14.93333333 | I125: 1741 | J125: 1741 | L125: 120 | M125: =(1/(L125*256))*Setup_Settings!$E$5*60000000 -> 1953.125 | N125: =(TREND(INDEX($V$5:$V$32,MATCH(F125,$U$5:$U$32)):INDEX($V$5:$V$32,MATCH(F125,$U$5:$U$32)+1),INDEX($U$5:$U$32,MATCH(F125,$U$5:$U$32)):INDEX($U$5:$U$32,MATCH(F125,$U$5:$U$32)+1),F125))*256/360 -> 19.2 | O125: 12.8 | P125: 1485 | Q125: 1485
E126: 121 | F126: =(1/(E126*256))*Setup_Settings!$E$5*60000000 -> 1936.983471 | G126: =(TREND(INDEX($C$5:$C$32,MATCH(F126,$B$5:$B$32)):INDEX($C$5:$C$32,MATCH(F126,$B$5:$B$32)+1),INDEX($B$5:$B$32,MATCH(F126,$B$5:$B$32)):INDEX($B$5:$B$32,MATCH(F126,$B$5:$B$32)+1),F126))*256/360 -> 17.06666667 | H126: 14.93333333 | I126: 1755.933333 | J126: 1756 | L126: 121 | M126: =(1/(L126*256))*Setup_Settings!$E$5*60000000 -> 1936.983471 | N126: =(TREND(INDEX($V$5:$V$32,MATCH(F126,$U$5:$U$32)):INDEX($V$5:$V$32,MATCH(F126,$U$5:$U$32)+1),INDEX($U$5:$U$32,MATCH(F126,$U$5:$U$32)):INDEX($U$5:$U$32,MATCH(F126,$U$5:$U$32)+1),F126))*256/360 -> 19.2 | O126: 12.8 | P126: 1497.8 | Q126: 1498
E127: 122 | F127: =(1/(E127*256))*Setup_Settings!$E$5*60000000 -> 1921.106557 | G127: =(TREND(INDEX($C$5:$C$32,MATCH(F127,$B$5:$B$32)):INDEX($C$5:$C$32,MATCH(F127,$B$5:$B$32)+1),INDEX($B$5:$B$32,MATCH(F127,$B$5:$B$32)):INDEX($B$5:$B$32,MATCH(F127,$B$5:$B$32)+1),F127))*256/360 -> 17.06666667 | H127: 14.93333333 | I127: 1770.866667 | J127: 1771 | L127: 122 | M127: =(1/(L127*256))*Setup_Settings!$E$5*60000000 -> 1921.106557 | N127: =(TREND(INDEX($V$5:$V$32,MATCH(F127,$U$5:$U$32)):INDEX($V$5:$V$32,MATCH(F127,$U$5:$U$32)+1),INDEX($U$5:$U$32,MATCH(F127,$U$5:$U$32)):INDEX($U$5:$U$32,MATCH(F127,$U$5:$U$32)+1),F127))*256/360 -> 19.2 | O127: 12.8 | P127: 1510.6 | Q127: 1511
E128: 123 | F128: =(1/(E128*256))*Setup_Settings!$E$5*60000000 -> 1905.487805 | G128: =(TREND(INDEX($C$5:$C$32,MATCH(F128,$B$5:$B$32)):INDEX($C$5:$C$32,MATCH(F128,$B$5:$B$32)+1),INDEX($B$5:$B$32,MATCH(F128,$B$5:$B$32)):INDEX($B$5:$B$32,MATCH(F128,$B$5:$B$32)+1),F128))*256/360 -> 17.06666667 | H128: 14.93333333 | I128: 1785.8 | J128: 1786 | L128: 123 | M128: =(1/(L128*256))*Setup_Settings!$E$5*60000000 -> 1905.487805 | N128: =(TREND(INDEX($V$5:$V$32,MATCH(F128,$U$5:$U$32)):INDEX($V$5:$V$32,MATCH(F128,$U$5:$U$32)+1),INDEX($U$5:$U$32,MATCH(F128,$U$5:$U$32)):INDEX($U$5:$U$32,MATCH(F128,$U$5:$U$32)+1),F128))*256/360 -> 19.2 | O128: 12.8 | P128: 1523.4 | Q128: 1523
E129: 124 | F129: =(1/(E129*256))*Setup_Settings!$E$5*60000000 -> 1890.120968 | G129: =(TREND(INDEX($C$5:$C$32,MATCH(F129,$B$5:$B$32)):INDEX($C$5:$C$32,MATCH(F129,$B$5:$B$32)+1),INDEX($B$5:$B$32,MATCH(F129,$B$5:$B$32)):INDEX($B$5:$B$32,MATCH(F129,$B$5:$B$32)+1),F129))*256/360 -> 17.06666667 | H129: 14.93333333 | I129: 1800.733333 | J129: 1801 | L129: 124 | M129: =(1/(L129*256))*Setup_Settings!$E$5*60000000 -> 1890.120968 | N129: =(TREND(INDEX($V$5:$V$32,MATCH(F129,$U$5:$U$32)):INDEX($V$5:$V$32,MATCH(F129,$U$5:$U$32)+1),INDEX($U$5:$U$32,MATCH(F129,$U$5:$U$32)):INDEX($U$5:$U$32,MATCH(F129,$U$5:$U$32)+1),F129))*256/360 -> 19.2 | O129: 12.8 | P129: 1536.2 | Q129: 1536
E130: 125 | F130: =(1/(E130*256))*Setup_Settings!$E$5*60000000 -> 1875 | G130: =(TREND(INDEX($C$5:$C$32,MATCH(F130,$B$5:$B$32)):INDEX($C$5:$C$32,MATCH(F130,$B$5:$B$32)+1),INDEX($B$5:$B$32,MATCH(F130,$B$5:$B$32)):INDEX($B$5:$B$32,MATCH(F130,$B$5:$B$32)+1),F130))*256/360 -> 17.06666667 | H130: 14.93333333 | I130: 1815.666667 | J130: 1816 | L130: 125 | M130: =(1/(L130*256))*Setup_Settings!$E$5*60000000 -> 1875 | N130: =(TREND(INDEX($V$5:$V$32,MATCH(F130,$U$5:$U$32)):INDEX($V$5:$V$32,MATCH(F130,$U$5:$U$32)+1),INDEX($U$5:$U$32,MATCH(F130,$U$5:$U$32)):INDEX($U$5:$U$32,MATCH(F130,$U$5:$U$32)+1),F130))*256/360 -> 19.2 | O130: 12.8 | P130: 1549 | Q130: 1549
E131: 126 | F131: =(1/(E131*256))*Setup_Settings!$E$5*60000000 -> 1860.119048 | G131: =(TREND(INDEX($C$5:$C$32,MATCH(F131,$B$5:$B$32)):INDEX($C$5:$C$32,MATCH(F131,$B$5:$B$32)+1),INDEX($B$5:$B$32,MATCH(F131,$B$5:$B$32)):INDEX($B$5:$B$32,MATCH(F131,$B$5:$B$32)+1),F131))*256/360 -> 17.06666667 | H131: 14.93333333 | I131: 1830.6 | J131: 1831 | L131: 126 | M131: =(1/(L131*256))*Setup_Settings!$E$5*60000000 -> 1860.119048 | N131: =(TREND(INDEX($V$5:$V$32,MATCH(F131,$U$5:$U$32)):INDEX($V$5:$V$32,MATCH(F131,$U$5:$U$32)+1),INDEX($U$5:$U$32,MATCH(F131,$U$5:$U$32)):INDEX($U$5:$U$32,MATCH(F131,$U$5:$U$32)+1),F131))*256/360 -> 19.2 | O131: 12.8 | P131: 1561.8 | Q131: 1562
E132: 127 | F132: =(1/(E132*256))*Setup_Settings!$E$5*60000000 -> 1845.472441 | G132: =(TREND(INDEX($C$5:$C$32,MATCH(F132,$B$5:$B$32)):INDEX($C$5:$C$32,MATCH(F132,$B$5:$B$32)+1),INDEX($B$5:$B$32,MATCH(F132,$B$5:$B$32)):INDEX($B$5:$B$32,MATCH(F132,$B$5:$B$32)+1),F132))*256/360 -> 17.06666667 | H132: 14.93333333 | I132: 1845.533333 | J132: 1846 | L132: 127 | M132: =(1/(L132*256))*Setup_Settings!$E$5*60000000 -> 1845.472441 | N132: =(TREND(INDEX($V$5:$V$32,MATCH(F132,$U$5:$U$32)):INDEX($V$5:$V$32,MATCH(F132,$U$5:$U$32)+1),INDEX($U$5:$U$32,MATCH(F132,$U$5:$U$32)):INDEX($U$5:$U$32,MATCH(F132,$U$5:$U$32)+1),F132))*256/360 -> 19.2 | O132: 12.8 | P132: 1574.6 | Q132: 1575
E133: 128 | F133: =(1/(E133*256))*Setup_Settings!$E$5*60000000 -> 1831.054688 | G133: =(TREND(INDEX($C$5:$C$32,MATCH(F133,$B$5:$B$32)):INDEX($C$5:$C$32,MATCH(F133,$B$5:$B$32)+1),INDEX($B$5:$B$32,MATCH(F133,$B$5:$B$32)):INDEX($B$5:$B$32,MATCH(F133,$B$5:$B$32)+1),F133))*256/360 -> 17.06666667 | H133: 14.93333333 | I133: 1860.466667 | J133: 1860 | L133: 128 | M133: =(1/(L133*256))*Setup_Settings!$E$5*60000000 -> 1831.054688 | N133: =(TREND(INDEX($V$5:$V$32,MATCH(F133,$U$5:$U$32)):INDEX($V$5:$V$32,MATCH(F133,$U$5:$U$32)+1),INDEX($U$5:$U$32,MATCH(F133,$U$5:$U$32)):INDEX($U$5:$U$32,MATCH(F133,$U$5:$U$32)+1),F133))*256/360 -> 19.2 | O133: 12.8 | P133: 1587.4 | Q133: 1587
E134: 129 | F134: =(1/(E134*256))*Setup_Settings!$E$5*60000000 -> 1816.860465 | G134: =(TREND(INDEX($C$5:$C$32,MATCH(F134,$B$5:$B$32)):INDEX($C$5:$C$32,MATCH(F134,$B$5:$B$32)+1),INDEX($B$5:$B$32,MATCH(F134,$B$5:$B$32)):INDEX($B$5:$B$32,MATCH(F134,$B$5:$B$32)+1),F134))*256/360 -> 17.06666667 | H134: 14.93333333 | I134: 1875.4 | J134: 1875 | L134: 129 | M134: =(1/(L134*256))*Setup_Settings!$E$5*60000000 -> 1816.860465 | N134: =(TREND(INDEX($V$5:$V$32,MATCH(F134,$U$5:$U$32)):INDEX($V$5:$V$32,MATCH(F134,$U$5:$U$32)+1),INDEX($U$5:$U$32,MATCH(F134,$U$5:$U$32)):INDEX($U$5:$U$32,MATCH(F134,$U$5:$U$32)+1),F134))*256/360 -> 19.2 | O134: 12.8 | P134: 1600.2 | Q134: 1600
E135: 130 | F135: =(1/(E135*256))*Setup_Settings!$E$5*60000000 -> 1802.884615 | G135: =(TREND(INDEX($C$5:$C$32,MATCH(F135,$B$5:$B$32)):INDEX($C$5:$C$32,MATCH(F135,$B$5:$B$32)+1),INDEX($B$5:$B$32,MATCH(F135,$B$5:$B$32)):INDEX($B$5:$B$32,MATCH(F135,$B$5:$B$32)+1),F135))*256/360 -> 17.06666667 | H135: 14.93333333 | I135: 1890.333333 | J135: 1890 | L135: 130 | M135: =(1/(L135*256))*Setup_Settings!$E$5*60000000 -> 1802.884615 | N135: =(TREND(INDEX($V$5:$V$32,MATCH(F135,$U$5:$U$32)):INDEX($V$5:$V$32,MATCH(F135,$U$5:$U$32)+1),INDEX($U$5:$U$32,MATCH(F135,$U$5:$U$32)):INDEX($U$5:$U$32,MATCH(F135,$U$5:$U$32)+1),F135))*256/360 -> 19.2 | O135: 12.8 | P135: 1613 | Q135: 1613
E136: 131 | F136: =(1/(E136*256))*Setup_Settings!$E$5*60000000 -> 1789.122137 | G136: =(TREND(INDEX($C$5:$C$32,MATCH(F136,$B$5:$B$32)):INDEX($C$5:$C$32,MATCH(F136,$B$5:$B$32)+1),INDEX($B$5:$B$32,MATCH(F136,$B$5:$B$32)):INDEX($B$5:$B$32,MATCH(F136,$B$5:$B$32)+1),F136))*256/360 -> 17.06666667 | H136: 14.93333333 | I136: 1905.266667 | J136: 1905 | L136: 131 | M136: =(1/(L136*256))*Setup_Settings!$E$5*60000000 -> 1789.122137 | N136: =(TREND(INDEX($V$5:$V$32,MATCH(F136,$U$5:$U$32)):INDEX($V$5:$V$32,MATCH(F136,$U$5:$U$32)+1),INDEX($U$5:$U$32,MATCH(F136,$U$5:$U$32)):INDEX($U$5:$U$32,MATCH(F136,$U$5:$U$32)+1),F136))*256/360 -> 19.2 | O136: 12.8 | P136: 1625.8 | Q136: 1626
E137: 132 | F137: =(1/(E137*256))*Setup_Settings!$E$5*60000000 -> 1775.568182 | G137: =(TREND(INDEX($C$5:$C$32,MATCH(F137,$B$5:$B$32)):INDEX($C$5:$C$32,MATCH(F137,$B$5:$B$32)+1),INDEX($B$5:$B$32,MATCH(F137,$B$5:$B$32)):INDEX($B$5:$B$32,MATCH(F137,$B$5:$B$32)+1),F137))*256/360 -> 17.06666667 | H137: 14.93333333 | I137: 1920.2 | J137: 1920 | L137: 132 | M137: =(1/(L137*256))*Setup_Settings!$E$5*60000000 -> 1775.568182 | N137: =(TREND(INDEX($V$5:$V$32,MATCH(F137,$U$5:$U$32)):INDEX($V$5:$V$32,MATCH(F137,$U$5:$U$32)+1),INDEX($U$5:$U$32,MATCH(F137,$U$5:$U$32)):INDEX($U$5:$U$32,MATCH(F137,$U$5:$U$32)+1),F137))*256/360 -> 19.2 | O137: 12.8 | P137: 1638.6 | Q137: 1639
E138: 133 | F138: =(1/(E138*256))*Setup_Settings!$E$5*60000000 -> 1762.218045 | G138: =(TREND(INDEX($C$5:$C$32,MATCH(F138,$B$5:$B$32)):INDEX($C$5:$C$32,MATCH(F138,$B$5:$B$32)+1),INDEX($B$5:$B$32,MATCH(F138,$B$5:$B$32)):INDEX($B$5:$B$32,MATCH(F138,$B$5:$B$32)+1),F138))*256/360 -> 17.06666667 | H138: 14.93333333 | I138: 1935.133333 | J138: 1935 | L138: 133 | M138: =(1/(L138*256))*Setup_Settings!$E$5*60000000 -> 1762.218045 | N138: =(TREND(INDEX($V$5:$V$32,MATCH(F138,$U$5:$U$32)):INDEX($V$5:$V$32,MATCH(F138,$U$5:$U$32)+1),INDEX($U$5:$U$32,MATCH(F138,$U$5:$U$32)):INDEX($U$5:$U$32,MATCH(F138,$U$5:$U$32)+1),F138))*256/360 -> 19.2 | O138: 12.8 | P138: 1651.4 | Q138: 1651
E139: 134 | F139: =(1/(E139*256))*Setup_Settings!$E$5*60000000 -> 1749.067164 | G139: =(TREND(INDEX($C$5:$C$32,MATCH(F139,$B$5:$B$32)):INDEX($C$5:$C$32,MATCH(F139,$B$5:$B$32)+1),INDEX($B$5:$B$32,MATCH(F139,$B$5:$B$32)):INDEX($B$5:$B$32,MATCH(F139,$B$5:$B$32)+1),F139))*256/360 -> 17.06666667 | H139: 14.93333333 | I139: 1950.066667 | J139: 1950 | L139: 134 | M139: =(1/(L139*256))*Setup_Settings!$E$5*60000000 -> 1749.067164 | N139: =(TREND(INDEX($V$5:$V$32,MATCH(F139,$U$5:$U$32)):INDEX($V$5:$V$32,MATCH(F139,$U$5:$U$32)+1),INDEX($U$5:$U$32,MATCH(F139,$U$5:$U$32)):INDEX($U$5:$U$32,MATCH(F139,$U$5:$U$32)+1),F139))*256/360 -> 19.2 | O139: 12.8 | P139: 1664.2 | Q139: 1664
E140: 135 | F140: =(1/(E140*256))*Setup_Settings!$E$5*60000000 -> 1736.111111 | G140: =(TREND(INDEX($C$5:$C$32,MATCH(F140,$B$5:$B$32)):INDEX($C$5:$C$32,MATCH(F140,$B$5:$B$32)+1),INDEX($B$5:$B$32,MATCH(F140,$B$5:$B$32)):INDEX($B$5:$B$32,MATCH(F140,$B$5:$B$32)+1),F140))*256/360 -> 17.06666667 | H140: 14.93333333 | I140: 1965 | J140: 1965 | L140: 135 | M140: =(1/(L140*256))*Setup_Settings!$E$5*60000000 -> 1736.111111 | N140: =(TREND(INDEX($V$5:$V$32,MATCH(F140,$U$5:$U$32)):INDEX($V$5:$V$32,MATCH(F140,$U$5:$U$32)+1),INDEX($U$5:$U$32,MATCH(F140,$U$5:$U$32)):INDEX($U$5:$U$32,MATCH(F140,$U$5:$U$32)+1),F140))*256/360 -> 19.2 | O140: 12.8 | P140: 1677 | Q140: 1677
E141: 136 | F141: =(1/(E141*256))*Setup_Settings!$E$5*60000000 -> 1723.345588 | G141: =(TREND(INDEX($C$5:$C$32,MATCH(F141,$B$5:$B$32)):INDEX($C$5:$C$32,MATCH(F141,$B$5:$B$32)+1),INDEX($B$5:$B$32,MATCH(F141,$B$5:$B$32)):INDEX($B$5:$B$32,MATCH(F141,$B$5:$B$32)+1),F141))*256/360 -> 17.06666667 | H141: 14.93333333 | I141: 1979.933333 | J141: 1980 | L141: 136 | M141: =(1/(L141*256))*Setup_Settings!$E$5*60000000 -> 1723.345588 | N141: =(TREND(INDEX($V$5:$V$32,MATCH(F141,$U$5:$U$32)):INDEX($V$5:$V$32,MATCH(F141,$U$5:$U$32)+1),INDEX($U$5:$U$32,MATCH(F141,$U$5:$U$32)):INDEX($U$5:$U$32,MATCH(F141,$U$5:$U$32)+1),F141))*256/360 -> 19.2 | O141: 12.8 | P141: 1689.8 | Q141: 1690
E142: 137 | F142: =(1/(E142*256))*Setup_Settings!$E$5*60000000 -> 1710.766423 | G142: =(TREND(INDEX($C$5:$C$32,MATCH(F142,$B$5:$B$32)):INDEX($C$5:$C$32,MATCH(F142,$B$5:$B$32)+1),INDEX($B$5:$B$32,MATCH(F142,$B$5:$B$32)):INDEX($B$5:$B$32,MATCH(F142,$B$5:$B$32)+1),F142))*256/360 -> 17.06666667 | H142: 14.93333333 | I142: 1994.866667 | J142: 1995 | L142: 137 | M142: =(1/(L142*256))*Setup_Settings!$E$5*60000000 -> 1710.766423 | N142: =(TREND(INDEX($V$5:$V$32,MATCH(F142,$U$5:$U$32)):INDEX($V$5:$V$32,MATCH(F142,$U$5:$U$32)+1),INDEX($U$5:$U$32,MATCH(F142,$U$5:$U$32)):INDEX($U$5:$U$32,MATCH(F142,$U$5:$U$32)+1),F142))*256/360 -> 19.2 | O142: 12.8 | P142: 1702.6 | Q142: 1703
E143: 138 | F143: =(1/(E143*256))*Setup_Settings!$E$5*60000000 -> 1698.369565 | G143: =(TREND(INDEX($C$5:$C$32,MATCH(F143,$B$5:$B$32)):INDEX($C$5:$C$32,MATCH(F143,$B$5:$B$32)+1),INDEX($B$5:$B$32,MATCH(F143,$B$5:$B$32)):INDEX($B$5:$B$32,MATCH(F143,$B$5:$B$32)+1),F143))*256/360 -> 17.06666667 | H143: 14.93333333 | I143: 2009.8 | J143: 2010 | L143: 138 | M143: =(1/(L143*256))*Setup_Settings!$E$5*60000000 -> 1698.369565 | N143: =(TREND(INDEX($V$5:$V$32,MATCH(F143,$U$5:$U$32)):INDEX($V$5:$V$32,MATCH(F143,$U$5:$U$32)+1),INDEX($U$5:$U$32,MATCH(F143,$U$5:$U$32)):INDEX($U$5:$U$32,MATCH(F143,$U$5:$U$32)+1),F143))*256/360 -> 19.2 | O143: 12.8 | P143: 1715.4 | Q143: 1715
E144: 139 | F144: =(1/(E144*256))*Setup_Settings!$E$5*60000000 -> 1686.151079 | G144: =(TREND(INDEX($C$5:$C$32,MATCH(F144,$B$5:$B$32)):INDEX($C$5:$C$32,MATCH(F144,$B$5:$B$32)+1),INDEX($B$5:$B$32,MATCH(F144,$B$5:$B$32)):INDEX($B$5:$B$32,MATCH(F144,$B$5:$B$32)+1),F144))*256/360 -> 17.06666667 | H144: 14.93333333 | I144: 2024.733333 | J144: 2025 | L144: 139 | M144: =(1/(L144*256))*Setup_Settings!$E$5*60000000 -> 1686.151079 | N144: =(TREND(INDEX($V$5:$V$32,MATCH(F144,$U$5:$U$32)):INDEX($V$5:$V$32,MATCH(F144,$U$5:$U$32)+1),INDEX($U$5:$U$32,MATCH(F144,$U$5:$U$32)):INDEX($U$5:$U$32,MATCH(F144,$U$5:$U$32)+1),F144))*256/360 -> 19.2 | O144: 12.8 | P144: 1728.2 | Q144: 1728
E145: 140 | F145: =(1/(E145*256))*Setup_Settings!$E$5*60000000 -> 1674.107143 | G145: =(TREND(INDEX($C$5:$C$32,MATCH(F145,$B$5:$B$32)):INDEX($C$5:$C$32,MATCH(F145,$B$5:$B$32)+1),INDEX($B$5:$B$32,MATCH(F145,$B$5:$B$32)):INDEX($B$5:$B$32,MATCH(F145,$B$5:$B$32)+1),F145))*256/360 -> 17.06666667 | H145: 14.93333333 | I145: 2039.666667 | J145: 2040 | L145: 140 | M145: =(1/(L145*256))*Setup_Settings!$E$5*60000000 -> 1674.107143 | N145: =(TREND(INDEX($V$5:$V$32,MATCH(F145,$U$5:$U$32)):INDEX($V$5:$V$32,MATCH(F145,$U$5:$U$32)+1),INDEX($U$5:$U$32,MATCH(F145,$U$5:$U$32)):INDEX($U$5:$U$32,MATCH(F145,$U$5:$U$32)+1),F145))*256/360 -> 19.2 | O145: 12.8 | P145: 1741 | Q145: 1741
E146: 141 | F146: =(1/(E146*256))*Setup_Settings!$E$5*60000000 -> 1662.234043 | G146: =(TREND(INDEX($C$5:$C$32,MATCH(F146,$B$5:$B$32)):INDEX($C$5:$C$32,MATCH(F146,$B$5:$B$32)+1),INDEX($B$5:$B$32,MATCH(F146,$B$5:$B$32)):INDEX($B$5:$B$32,MATCH(F146,$B$5:$B$32)+1),F146))*256/360 -> 17.06666667 | H146: 14.93333333 | I146: 2054.6 | J146: 2055 | L146: 141 | M146: =(1/(L146*256))*Setup_Settings!$E$5*60000000 -> 1662.234043 | N146: =(TREND(INDEX($V$5:$V$32,MATCH(F146,$U$5:$U$32)):INDEX($V$5:$V$32,MATCH(F146,$U$5:$U$32)+1),INDEX($U$5:$U$32,MATCH(F146,$U$5:$U$32)):INDEX($U$5:$U$32,MATCH(F146,$U$5:$U$32)+1),F146))*256/360 -> 19.2 | O146: 12.8 | P146: 1753.8 | Q146: 1754
E147: 142 | F147: =(1/(E147*256))*Setup_Settings!$E$5*60000000 -> 1650.528169 | G147: =(TREND(INDEX($C$5:$C$32,MATCH(F147,$B$5:$B$32)):INDEX($C$5:$C$32,MATCH(F147,$B$5:$B$32)+1),INDEX($B$5:$B$32,MATCH(F147,$B$5:$B$32)):INDEX($B$5:$B$32,MATCH(F147,$B$5:$B$32)+1),F147))*256/360 -> 17.06666667 | H147: 14.93333333 | I147: 2069.533333 | J147: 2070 | L147: 142 | M147: =(1/(L147*256))*Setup_Settings!$E$5*60000000 -> 1650.528169 | N147: =(TREND(INDEX($V$5:$V$32,MATCH(F147,$U$5:$U$32)):INDEX($V$5:$V$32,MATCH(F147,$U$5:$U$32)+1),INDEX($U$5:$U$32,MATCH(F147,$U$5:$U$32)):INDEX($U$5:$U$32,MATCH(F147,$U$5:$U$32)+1),F147))*256/360 -> 19.2 | O147: 12.8 | P147: 1766.6 | Q147: 1767
E148: 143 | F148: =(1/(E148*256))*Setup_Settings!$E$5*60000000 -> 1638.986014 | G148: =(TREND(INDEX($C$5:$C$32,MATCH(F148,$B$5:$B$32)):INDEX($C$5:$C$32,MATCH(F148,$B$5:$B$32)+1),INDEX($B$5:$B$32,MATCH(F148,$B$5:$B$32)):INDEX($B$5:$B$32,MATCH(F148,$B$5:$B$32)+1),F148))*256/360 -> 17.06666667 | H148: 14.93333333 | I148: 2084.466667 | J148: 2084 | L148: 143 | M148: =(1/(L148*256))*Setup_Settings!$E$5*60000000 -> 1638.986014 | N148: =(TREND(INDEX($V$5:$V$32,MATCH(F148,$U$5:$U$32)):INDEX($V$5:$V$32,MATCH(F148,$U$5:$U$32)+1),INDEX($U$5:$U$32,MATCH(F148,$U$5:$U$32)):INDEX($U$5:$U$32,MATCH(F148,$U$5:$U$32)+1),F148))*256/360 -> 19.2 | O148: 12.8 | P148: 1779.4 | Q148: 1779
E149: 144 | F149: =(1/(E149*256))*Setup_Settings!$E$5*60000000 -> 1627.604167 | G149: =(TREND(INDEX($C$5:$C$32,MATCH(F149,$B$5:$B$32)):INDEX($C$5:$C$32,MATCH(F149,$B$5:$B$32)+1),INDEX($B$5:$B$32,MATCH(F149,$B$5:$B$32)):INDEX($B$5:$B$32,MATCH(F149,$B$5:$B$32)+1),F149))*256/360 -> 17.06666667 | H149: 14.93333333 | I149: =(E149*H149)-$F$2 -> 2099.4 | J149: 2099 | L149: 144 | M149: =(1/(L149*256))*Setup_Settings!$E$5*60000000 -> 1627.604167 | N149: =(TREND(INDEX($V$5:$V$32,MATCH(F149,$U$5:$U$32)):INDEX($V$5:$V$32,MATCH(F149,$U$5:$U$32)+1),INDEX($U$5:$U$32,MATCH(F149,$U$5:$U$32)):INDEX($U$5:$U$32,MATCH(F149,$U$5:$U$32)+1),F149))*256/360 -> 19.2 | O149: =$L$3-N149 -> 12.8 | P149: 1792.2 | Q149: 1792
E150: 145 | F150: =(1/(E150*256))*Setup_Settings!$E$5*60000000 -> 1616.37931 | G150: =(TREND(INDEX($C$5:$C$32,MATCH(F150,$B$5:$B$32)):INDEX($C$5:$C$32,MATCH(F150,$B$5:$B$32)+1),INDEX($B$5:$B$32,MATCH(F150,$B$5:$B$32)):INDEX($B$5:$B$32,MATCH(F150,$B$5:$B$32)+1),F150))*256/360 -> 17.06666667 | H150: =$E$3-G150 -> 14.93333333 | I150: 2114.333333 | J150: =IF((ROUND(E150*H150,0)-$F$2)>0,(ROUND(E150*H150,0)-$F$2),1) -> 2114 | L150: 145 | M150: =(1/(L150*256))*Setup_Settings!$E$5*60000000 -> 1616.37931 | N150: =(TREND(INDEX($V$5:$V$32,MATCH(F150,$U$5:$U$32)):INDEX($V$5:$V$32,MATCH(F150,$U$5:$U$32)+1),INDEX($U$5:$U$32,MATCH(F150,$U$5:$U$32)):INDEX($U$5:$U$32,MATCH(F150,$U$5:$U$32)+1),F150))*256/360 -> 19.2 | O150: 12.8 | P150: 1805 | Q150: =IF((ROUND(L150*O150,0)-$F$2)>1,(ROUND(L150*O150,0)-$M$2),1) -> 1805
E151: 146 | F151: =(1/(E151*256))*Setup_Settings!$E$5*60000000 -> 1605.308219 | G151: =(TREND(INDEX($C$5:$C$32,MATCH(F151,$B$5:$B$32)):INDEX($C$5:$C$32,MATCH(F151,$B$5:$B$32)+1),INDEX($B$5:$B$32,MATCH(F151,$B$5:$B$32)):INDEX($B$5:$B$32,MATCH(F151,$B$5:$B$32)+1),F151))*256/360 -> 17.06666667 | H151: 14.93333333 | I151: 2129.266667 | J151: 2129 | L151: 146 | M151: =(1/(L151*256))*Setup_Settings!$E$5*60000000 -> 1605.308219 | N151: =(TREND(INDEX($V$5:$V$32,MATCH(F151,$U$5:$U$32)):INDEX($V$5:$V$32,MATCH(F151,$U$5:$U$32)+1),INDEX($U$5:$U$32,MATCH(F151,$U$5:$U$32)):INDEX($U$5:$U$32,MATCH(F151,$U$5:$U$32)+1),F151))*256/360 -> 19.2 | O151: 12.8 | P151: 1817.8 | Q151: 1818
E152: 147 | F152: =(1/(E152*256))*Setup_Settings!$E$5*60000000 -> 1594.387755 | G152: =(TREND(INDEX($C$5:$C$32,MATCH(F152,$B$5:$B$32)):INDEX($C$5:$C$32,MATCH(F152,$B$5:$B$32)+1),INDEX($B$5:$B$32,MATCH(F152,$B$5:$B$32)):INDEX($B$5:$B$32,MATCH(F152,$B$5:$B$32)+1),F152))*256/360 -> 17.06666667 | H152: 14.93333333 | I152: 2144.2 | J152: 2144 | L152: 147 | M152: =(1/(L152*256))*Setup_Settings!$E$5*60000000 -> 1594.387755 | N152: =(TREND(INDEX($V$5:$V$32,MATCH(F152,$U$5:$U$32)):INDEX($V$5:$V$32,MATCH(F152,$U$5:$U$32)+1),INDEX($U$5:$U$32,MATCH(F152,$U$5:$U$32)):INDEX($U$5:$U$32,MATCH(F152,$U$5:$U$32)+1),F152))*256/360 -> 19.2 | O152: 12.8 | P152: 1830.6 | Q152: 1831
E153: 148 | F153: =(1/(E153*256))*Setup_Settings!$E$5*60000000 -> 1583.614865 | G153: =(TREND(INDEX($C$5:$C$32,MATCH(F153,$B$5:$B$32)):INDEX($C$5:$C$32,MATCH(F153,$B$5:$B$32)+1),INDEX($B$5:$B$32,MATCH(F153,$B$5:$B$32)):INDEX($B$5:$B$32,MATCH(F153,$B$5:$B$32)+1),F153))*256/360 -> 17.06666667 | H153: 14.93333333 | I153: 2159.133333 | J153: 2159 | L153: 148 | M153: =(1/(L153*256))*Setup_Settings!$E$5*60000000 -> 1583.614865 | N153: =(TREND(INDEX($V$5:$V$32,MATCH(F153,$U$5:$U$32)):INDEX($V$5:$V$32,MATCH(F153,$U$5:$U$32)+1),INDEX($U$5:$U$32,MATCH(F153,$U$5:$U$32)):INDEX($U$5:$U$32,MATCH(F153,$U$5:$U$32)+1),F153))*256/360 -> 19.2 | O153: 12.8 | P153: 1843.4 | Q153: 1843
E154: 149 | F154: =(1/(E154*256))*Setup_Settings!$E$5*60000000 -> 1572.986577 | G154: =(TREND(INDEX($C$5:$C$32,MATCH(F154,$B$5:$B$32)):INDEX($C$5:$C$32,MATCH(F154,$B$5:$B$32)+1),INDEX($B$5:$B$32,MATCH(F154,$B$5:$B$32)):INDEX($B$5:$B$32,MATCH(F154,$B$5:$B$32)+1),F154))*256/360 -> 17.06666667 | H154: 14.93333333 | I154: 2174.066667 | J154: 2174 | L154: 149 | M154: =(1/(L154*256))*Setup_Settings!$E$5*60000000 -> 1572.986577 | N154: =(TREND(INDEX($V$5:$V$32,MATCH(F154,$U$5:$U$32)):INDEX($V$5:$V$32,MATCH(F154,$U$5:$U$32)+1),INDEX($U$5:$U$32,MATCH(F154,$U$5:$U$32)):INDEX($U$5:$U$32,MATCH(F154,$U$5:$U$32)+1),F154))*256/360 -> 19.2 | O154: 12.8 | P154: 1856.2 | Q154: 1856
E155: 150 | F155: =(1/(E155*256))*Setup_Settings!$E$5*60000000 -> 1562.5 | G155: =(TREND(INDEX($C$5:$C$32,MATCH(F155,$B$5:$B$32)):INDEX($C$5:$C$32,MATCH(F155,$B$5:$B$32)+1),INDEX($B$5:$B$32,MATCH(F155,$B$5:$B$32)):INDEX($B$5:$B$32,MATCH(F155,$B$5:$B$32)+1),F155))*256/360 -> 17.06666667 | H155: 14.93333333 | I155: 2189 | J155: 2189 | L155: 150 | M155: =(1/(L155*256))*Setup_Settings!$E$5*60000000 -> 1562.5 | N155: =(TREND(INDEX($V$5:$V$32,MATCH(F155,$U$5:$U$32)):INDEX($V$5:$V$32,MATCH(F155,$U$5:$U$32)+1),INDEX($U$5:$U$32,MATCH(F155,$U$5:$U$32)):INDEX($U$5:$U$32,MATCH(F155,$U$5:$U$32)+1),F155))*256/360 -> 19.2 | O155: 12.8 | P155: =(L155*O155)-$F$2 -> 1869 | Q155: 1869
E156: 151 | F156: =(1/(E156*256))*Setup_Settings!$E$5*60000000 -> 1552.152318 | G156: =(TREND(INDEX($C$5:$C$32,MATCH(F156,$B$5:$B$32)):INDEX($C$5:$C$32,MATCH(F156,$B$5:$B$32)+1),INDEX($B$5:$B$32,MATCH(F156,$B$5:$B$32)):INDEX($B$5:$B$32,MATCH(F156,$B$5:$B$32)+1),F156))*256/360 -> 17.06666667 | H156: 14.93333333 | I156: 2203.933333 | J156: 2204 | L156: 151 | M156: =(1/(L156*256))*Setup_Settings!$E$5*60000000 -> 1552.152318 | N156: =(TREND(INDEX($V$5:$V$32,MATCH(F156,$U$5:$U$32)):INDEX($V$5:$V$32,MATCH(F156,$U$5:$U$32)+1),INDEX($U$5:$U$32,MATCH(F156,$U$5:$U$32)):INDEX($U$5:$U$32,MATCH(F156,$U$5:$U$32)+1),F156))*256/360 -> 19.2 | O156: 12.8 | P156: 1881.8 | Q156: 1882
E157: 152 | F157: =(1/(E157*256))*Setup_Settings!$E$5*60000000 -> 1541.940789 | G157: =(TREND(INDEX($C$5:$C$32,MATCH(F157,$B$5:$B$32)):INDEX($C$5:$C$32,MATCH(F157,$B$5:$B$32)+1),INDEX($B$5:$B$32,MATCH(F157,$B$5:$B$32)):INDEX($B$5:$B$32,MATCH(F157,$B$5:$B$32)+1),F157))*256/360 -> 17.06666667 | H157: 14.93333333 | I157: 2218.866667 | J157: 2219 | L157: 152 | M157: =(1/(L157*256))*Setup_Settings!$E$5*60000000 -> 1541.940789 | N157: =(TREND(INDEX($V$5:$V$32,MATCH(F157,$U$5:$U$32)):INDEX($V$5:$V$32,MATCH(F157,$U$5:$U$32)+1),INDEX($U$5:$U$32,MATCH(F157,$U$5:$U$32)):INDEX($U$5:$U$32,MATCH(F157,$U$5:$U$32)+1),F157))*256/360 -> 19.2 | O157: 12.8 | P157: 1894.6 | Q157: 1895
E158: 153 | F158: =(1/(E158*256))*Setup_Settings!$E$5*60000000 -> 1531.862745 | G158: =(TREND(INDEX($C$5:$C$32,MATCH(F158,$B$5:$B$32)):INDEX($C$5:$C$32,MATCH(F158,$B$5:$B$32)+1),INDEX($B$5:$B$32,MATCH(F158,$B$5:$B$32)):INDEX($B$5:$B$32,MATCH(F158,$B$5:$B$32)+1),F158))*256/360 -> 17.06666667 | H158: 14.93333333 | I158: 2233.8 | J158: 2234 | L158: 153 | M158: =(1/(L158*256))*Setup_Settings!$E$5*60000000 -> 1531.862745 | N158: =(TREND(INDEX($V$5:$V$32,MATCH(F158,$U$5:$U$32)):INDEX($V$5:$V$32,MATCH(F158,$U$5:$U$32)+1),INDEX($U$5:$U$32,MATCH(F158,$U$5:$U$32)):INDEX($U$5:$U$32,MATCH(F158,$U$5:$U$32)+1),F158))*256/360 -> 19.2 | O158: 12.8 | P158: 1907.4 | Q158: 1907
E159: 154 | F159: =(1/(E159*256))*Setup_Settings!$E$5*60000000 -> 1521.915584 | G159: =(TREND(INDEX($C$5:$C$32,MATCH(F159,$B$5:$B$32)):INDEX($C$5:$C$32,MATCH(F159,$B$5:$B$32)+1),INDEX($B$5:$B$32,MATCH(F159,$B$5:$B$32)):INDEX($B$5:$B$32,MATCH(F159,$B$5:$B$32)+1),F159))*256/360 -> 17.06666667 | H159: 14.93333333 | I159: 2248.733333 | J159: 2249 | L159: 154 | M159: =(1/(L159*256))*Setup_Settings!$E$5*60000000 -> 1521.915584 | N159: =(TREND(INDEX($V$5:$V$32,MATCH(F159,$U$5:$U$32)):INDEX($V$5:$V$32,MATCH(F159,$U$5:$U$32)+1),INDEX($U$5:$U$32,MATCH(F159,$U$5:$U$32)):INDEX($U$5:$U$32,MATCH(F159,$U$5:$U$32)+1),F159))*256/360 -> 19.2 | O159: 12.8 | P159: 1920.2 | Q159: 1920
E160: 155 | F160: =(1/(E160*256))*Setup_Settings!$E$5*60000000 -> 1512.096774 | G160: =(TREND(INDEX($C$5:$C$32,MATCH(F160,$B$5:$B$32)):INDEX($C$5:$C$32,MATCH(F160,$B$5:$B$32)+1),INDEX($B$5:$B$32,MATCH(F160,$B$5:$B$32)):INDEX($B$5:$B$32,MATCH(F160,$B$5:$B$32)+1),F160))*256/360 -> 17.06666667 | H160: 14.93333333 | I160: 2263.666667 | J160: 2264 | L160: 155 | M160: =(1/(L160*256))*Setup_Settings!$E$5*60000000 -> 1512.096774 | N160: =(TREND(INDEX($V$5:$V$32,MATCH(F160,$U$5:$U$32)):INDEX($V$5:$V$32,MATCH(F160,$U$5:$U$32)+1),INDEX($U$5:$U$32,MATCH(F160,$U$5:$U$32)):INDEX($U$5:$U$32,MATCH(F160,$U$5:$U$32)+1),F160))*256/360 -> 19.2 | O160: 12.8 | P160: 1933 | Q160: 1933
E161: 156 | F161: =(1/(E161*256))*Setup_Settings!$E$5*60000000 -> 1502.403846 | G161: =(TREND(INDEX($C$5:$C$32,MATCH(F161,$B$5:$B$32)):INDEX($C$5:$C$32,MATCH(F161,$B$5:$B$32)+1),INDEX($B$5:$B$32,MATCH(F161,$B$5:$B$32)):INDEX($B$5:$B$32,MATCH(F161,$B$5:$B$32)+1),F161))*256/360 -> 17.06666667 | H161: 14.93333333 | I161: 2278.6 | J161: 2279 | L161: 156 | M161: =(1/(L161*256))*Setup_Settings!$E$5*60000000 -> 1502.403846 | N161: =(TREND(INDEX($V$5:$V$32,MATCH(F161,$U$5:$U$32)):INDEX($V$5:$V$32,MATCH(F161,$U$5:$U$32)+1),INDEX($U$5:$U$32,MATCH(F161,$U$5:$U$32)):INDEX($U$5:$U$32,MATCH(F161,$U$5:$U$32)+1),F161))*256/360 -> 19.2 | O161: 12.8 | P161: 1945.8 | Q161: 1946
E162: 157 | F162: =(1/(E162*256))*Setup_Settings!$E$5*60000000 -> 1492.834395 | G162: =(TREND(INDEX($C$5:$C$32,MATCH(F162,$B$5:$B$32)):INDEX($C$5:$C$32,MATCH(F162,$B$5:$B$32)+1),INDEX($B$5:$B$32,MATCH(F162,$B$5:$B$32)):INDEX($B$5:$B$32,MATCH(F162,$B$5:$B$32)+1),F162))*256/360 -> 17.06666667 | H162: 14.93333333 | I162: 2293.533333 | J162: 2294 | L162: 157 | M162: =(1/(L162*256))*Setup_Settings!$E$5*60000000 -> 1492.834395 | N162: =(TREND(INDEX($V$5:$V$32,MATCH(F162,$U$5:$U$32)):INDEX($V$5:$V$32,MATCH(F162,$U$5:$U$32)+1),INDEX($U$5:$U$32,MATCH(F162,$U$5:$U$32)):INDEX($U$5:$U$32,MATCH(F162,$U$5:$U$32)+1),F162))*256/360 -> 19.2 | O162: 12.8 | P162: 1958.6 | Q162: 1959
E163: 158 | F163: =(1/(E163*256))*Setup_Settings!$E$5*60000000 -> 1483.386076 | G163: =(TREND(INDEX($C$5:$C$32,MATCH(F163,$B$5:$B$32)):INDEX($C$5:$C$32,MATCH(F163,$B$5:$B$32)+1),INDEX($B$5:$B$32,MATCH(F163,$B$5:$B$32)):INDEX($B$5:$B$32,MATCH(F163,$B$5:$B$32)+1),F163))*256/360 -> 17.06666667 | H163: 14.93333333 | I163: 2308.466667 | J163: 2308 | L163: 158 | M163: =(1/(L163*256))*Setup_Settings!$E$5*60000000 -> 1483.386076 | N163: =(TREND(INDEX($V$5:$V$32,MATCH(F163,$U$5:$U$32)):INDEX($V$5:$V$32,MATCH(F163,$U$5:$U$32)+1),INDEX($U$5:$U$32,MATCH(F163,$U$5:$U$32)):INDEX($U$5:$U$32,MATCH(F163,$U$5:$U$32)+1),F163))*256/360 -> 19.2 | O163: 12.8 | P163: 1971.4 | Q163: 1971
E164: 159 | F164: =(1/(E164*256))*Setup_Settings!$E$5*60000000 -> 1474.056604 | G164: =(TREND(INDEX($C$5:$C$32,MATCH(F164,$B$5:$B$32)):INDEX($C$5:$C$32,MATCH(F164,$B$5:$B$32)+1),INDEX($B$5:$B$32,MATCH(F164,$B$5:$B$32)):INDEX($B$5:$B$32,MATCH(F164,$B$5:$B$32)+1),F164))*256/360 -> 17.06666667 | H164: 14.93333333 | I164: 2323.4 | J164: 2323 | L164: 159 | M164: =(1/(L164*256))*Setup_Settings!$E$5*60000000 -> 1474.056604 | N164: =(TREND(INDEX($V$5:$V$32,MATCH(F164,$U$5:$U$32)):INDEX($V$5:$V$32,MATCH(F164,$U$5:$U$32)+1),INDEX($U$5:$U$32,MATCH(F164,$U$5:$U$32)):INDEX($U$5:$U$32,MATCH(F164,$U$5:$U$32)+1),F164))*256/360 -> 19.2 | O164: 12.8 | P164: 1984.2 | Q164: 1984
E165: 160 | F165: =(1/(E165*256))*Setup_Settings!$E$5*60000000 -> 1464.84375 | G165: =(TREND(INDEX($C$5:$C$32,MATCH(F165,$B$5:$B$32)):INDEX($C$5:$C$32,MATCH(F165,$B$5:$B$32)+1),INDEX($B$5:$B$32,MATCH(F165,$B$5:$B$32)):INDEX($B$5:$B$32,MATCH(F165,$B$5:$B$32)+1),F165))*256/360 -> 17.06666667 | H165: 14.93333333 | I165: 2338.333333 | J165: 2338 | L165: 160 | M165: =(1/(L165*256))*Setup_Settings!$E$5*60000000 -> 1464.84375 | N165: =(TREND(INDEX($V$5:$V$32,MATCH(F165,$U$5:$U$32)):INDEX($V$5:$V$32,MATCH(F165,$U$5:$U$32)+1),INDEX($U$5:$U$32,MATCH(F165,$U$5:$U$32)):INDEX($U$5:$U$32,MATCH(F165,$U$5:$U$32)+1),F165))*256/360 -> 19.2 | O165: 12.8 | P165: 1997 | Q165: 1997
E166: 161 | F166: =(1/(E166*256))*Setup_Settings!$E$5*60000000 -> 1455.745342 | G166: =(TREND(INDEX($C$5:$C$32,MATCH(F166,$B$5:$B$32)):INDEX($C$5:$C$32,MATCH(F166,$B$5:$B$32)+1),INDEX($B$5:$B$32,MATCH(F166,$B$5:$B$32)):INDEX($B$5:$B$32,MATCH(F166,$B$5:$B$32)+1),F166))*256/360 -> 17.06666667 | H166: 14.93333333 | I166: 2353.266667 | J166: 2353 | L166: 161 | M166: =(1/(L166*256))*Setup_Settings!$E$5*60000000 -> 1455.745342 | N166: =(TREND(INDEX($V$5:$V$32,MATCH(F166,$U$5:$U$32)):INDEX($V$5:$V$32,MATCH(F166,$U$5:$U$32)+1),INDEX($U$5:$U$32,MATCH(F166,$U$5:$U$32)):INDEX($U$5:$U$32,MATCH(F166,$U$5:$U$32)+1),F166))*256/360 -> 19.2 | O166: 12.8 | P166: 2009.8 | Q166: 2010
E167: 162 | F167: =(1/(E167*256))*Setup_Settings!$E$5*60000000 -> 1446.759259 | G167: =(TREND(INDEX($C$5:$C$32,MATCH(F167,$B$5:$B$32)):INDEX($C$5:$C$32,MATCH(F167,$B$5:$B$32)+1),INDEX($B$5:$B$32,MATCH(F167,$B$5:$B$32)):INDEX($B$5:$B$32,MATCH(F167,$B$5:$B$32)+1),F167))*256/360 -> 17.06666667 | H167: 14.93333333 | I167: 2368.2 | J167: 2368 | L167: 162 | M167: =(1/(L167*256))*Setup_Settings!$E$5*60000000 -> 1446.759259 | N167: =(TREND(INDEX($V$5:$V$32,MATCH(F167,$U$5:$U$32)):INDEX($V$5:$V$32,MATCH(F167,$U$5:$U$32)+1),INDEX($U$5:$U$32,MATCH(F167,$U$5:$U$32)):INDEX($U$5:$U$32,MATCH(F167,$U$5:$U$32)+1),F167))*256/360 -> 19.2 | O167: 12.8 | P167: 2022.6 | Q167: 2023
E168: 163 | F168: =(1/(E168*256))*Setup_Settings!$E$5*60000000 -> 1437.883436 | G168: =(TREND(INDEX($C$5:$C$32,MATCH(F168,$B$5:$B$32)):INDEX($C$5:$C$32,MATCH(F168,$B$5:$B$32)+1),INDEX($B$5:$B$32,MATCH(F168,$B$5:$B$32)):INDEX($B$5:$B$32,MATCH(F168,$B$5:$B$32)+1),F168))*256/360 -> 17.06666667 | H168: 14.93333333 | I168: 2383.133333 | J168: 2383 | L168: 163 | M168: =(1/(L168*256))*Setup_Settings!$E$5*60000000 -> 1437.883436 | N168: =(TREND(INDEX($V$5:$V$32,MATCH(F168,$U$5:$U$32)):INDEX($V$5:$V$32,MATCH(F168,$U$5:$U$32)+1),INDEX($U$5:$U$32,MATCH(F168,$U$5:$U$32)):INDEX($U$5:$U$32,MATCH(F168,$U$5:$U$32)+1),F168))*256/360 -> 19.2 | O168: 12.8 | P168: 2035.4 | Q168: 2035
E169: 164 | F169: =(1/(E169*256))*Setup_Settings!$E$5*60000000 -> 1429.115854 | G169: =(TREND(INDEX($C$5:$C$32,MATCH(F169,$B$5:$B$32)):INDEX($C$5:$C$32,MATCH(F169,$B$5:$B$32)+1),INDEX($B$5:$B$32,MATCH(F169,$B$5:$B$32)):INDEX($B$5:$B$32,MATCH(F169,$B$5:$B$32)+1),F169))*256/360 -> 17.06666667 | H169: 14.93333333 | I169: 2398.066667 | J169: 2398 | L169: 164 | M169: =(1/(L169*256))*Setup_Settings!$E$5*60000000 -> 1429.115854 | N169: =(TREND(INDEX($V$5:$V$32,MATCH(F169,$U$5:$U$32)):INDEX($V$5:$V$32,MATCH(F169,$U$5:$U$32)+1),INDEX($U$5:$U$32,MATCH(F169,$U$5:$U$32)):INDEX($U$5:$U$32,MATCH(F169,$U$5:$U$32)+1),F169))*256/360 -> 19.2 | O169: 12.8 | P169: 2048.2 | Q169: 2048
E170: 165 | F170: =(1/(E170*256))*Setup_Settings!$E$5*60000000 -> 1420.454545 | G170: =(TREND(INDEX($C$5:$C$32,MATCH(F170,$B$5:$B$32)):INDEX($C$5:$C$32,MATCH(F170,$B$5:$B$32)+1),INDEX($B$5:$B$32,MATCH(F170,$B$5:$B$32)):INDEX($B$5:$B$32,MATCH(F170,$B$5:$B$32)+1),F170))*256/360 -> 17.06666667 | H170: 14.93333333 | I170: 2413 | J170: 2413 | L170: 165 | M170: =(1/(L170*256))*Setup_Settings!$E$5*60000000 -> 1420.454545 | N170: =(TREND(INDEX($V$5:$V$32,MATCH(F170,$U$5:$U$32)):INDEX($V$5:$V$32,MATCH(F170,$U$5:$U$32)+1),INDEX($U$5:$U$32,MATCH(F170,$U$5:$U$32)):INDEX($U$5:$U$32,MATCH(F170,$U$5:$U$32)+1),F170))*256/360 -> 19.2 | O170: 12.8 | P170: 2061 | Q170: 2061
E171: 166 | F171: =(1/(E171*256))*Setup_Settings!$E$5*60000000 -> 1411.89759 | G171: =(TREND(INDEX($C$5:$C$32,MATCH(F171,$B$5:$B$32)):INDEX($C$5:$C$32,MATCH(F171,$B$5:$B$32)+1),INDEX($B$5:$B$32,MATCH(F171,$B$5:$B$32)):INDEX($B$5:$B$32,MATCH(F171,$B$5:$B$32)+1),F171))*256/360 -> 17.06666667 | H171: 14.93333333 | I171: 2427.933333 | J171: 2428 | L171: 166 | M171: =(1/(L171*256))*Setup_Settings!$E$5*60000000 -> 1411.89759 | N171: =(TREND(INDEX($V$5:$V$32,MATCH(F171,$U$5:$U$32)):INDEX($V$5:$V$32,MATCH(F171,$U$5:$U$32)+1),INDEX($U$5:$U$32,MATCH(F171,$U$5:$U$32)):INDEX($U$5:$U$32,MATCH(F171,$U$5:$U$32)+1),F171))*256/360 -> 19.2 | O171: 12.8 | P171: 2073.8 | Q171: 2074
E172: 167 | F172: =(1/(E172*256))*Setup_Settings!$E$5*60000000 -> 1403.443114 | G172: =(TREND(INDEX($C$5:$C$32,MATCH(F172,$B$5:$B$32)):INDEX($C$5:$C$32,MATCH(F172,$B$5:$B$32)+1),INDEX($B$5:$B$32,MATCH(F172,$B$5:$B$32)):INDEX($B$5:$B$32,MATCH(F172,$B$5:$B$32)+1),F172))*256/360 -> 17.06666667 | H172: 14.93333333 | I172: 2442.866667 | J172: 2443 | L172: 167 | M172: =(1/(L172*256))*Setup_Settings!$E$5*60000000 -> 1403.443114 | N172: =(TREND(INDEX($V$5:$V$32,MATCH(F172,$U$5:$U$32)):INDEX($V$5:$V$32,MATCH(F172,$U$5:$U$32)+1),INDEX($U$5:$U$32,MATCH(F172,$U$5:$U$32)):INDEX($U$5:$U$32,MATCH(F172,$U$5:$U$32)+1),F172))*256/360 -> 19.2 | O172: 12.8 | P172: 2086.6 | Q172: 2087
E173: 168 | F173: =(1/(E173*256))*Setup_Settings!$E$5*60000000 -> 1395.089286 | G173: =(TREND(INDEX($C$5:$C$32,MATCH(F173,$B$5:$B$32)):INDEX($C$5:$C$32,MATCH(F173,$B$5:$B$32)+1),INDEX($B$5:$B$32,MATCH(F173,$B$5:$B$32)):INDEX($B$5:$B$32,MATCH(F173,$B$5:$B$32)+1),F173))*256/360 -> 17.06666667 | H173: 14.93333333 | I173: 2457.8 | J173: 2458 | L173: 168 | M173: =(1/(L173*256))*Setup_Settings!$E$5*60000000 -> 1395.089286 | N173: =(TREND(INDEX($V$5:$V$32,MATCH(F173,$U$5:$U$32)):INDEX($V$5:$V$32,MATCH(F173,$U$5:$U$32)+1),INDEX($U$5:$U$32,MATCH(F173,$U$5:$U$32)):INDEX($U$5:$U$32,MATCH(F173,$U$5:$U$32)+1),F173))*256/360 -> 19.2 | O173: 12.8 | P173: 2099.4 | Q173: 2099
E174: 169 | F174: =(1/(E174*256))*Setup_Settings!$E$5*60000000 -> 1386.83432 | G174: =(TREND(INDEX($C$5:$C$32,MATCH(F174,$B$5:$B$32)):INDEX($C$5:$C$32,MATCH(F174,$B$5:$B$32)+1),INDEX($B$5:$B$32,MATCH(F174,$B$5:$B$32)):INDEX($B$5:$B$32,MATCH(F174,$B$5:$B$32)+1),F174))*256/360 -> 17.06666667 | H174: 14.93333333 | I174: 2472.733333 | J174: 2473 | L174: 169 | M174: =(1/(L174*256))*Setup_Settings!$E$5*60000000 -> 1386.83432 | N174: =(TREND(INDEX($V$5:$V$32,MATCH(F174,$U$5:$U$32)):INDEX($V$5:$V$32,MATCH(F174,$U$5:$U$32)+1),INDEX($U$5:$U$32,MATCH(F174,$U$5:$U$32)):INDEX($U$5:$U$32,MATCH(F174,$U$5:$U$32)+1),F174))*256/360 -> 19.2 | O174: 12.8 | P174: 2112.2 | Q174: 2112
E175: 170 | F175: =(1/(E175*256))*Setup_Settings!$E$5*60000000 -> 1378.676471 | G175: =(TREND(INDEX($C$5:$C$32,MATCH(F175,$B$5:$B$32)):INDEX($C$5:$C$32,MATCH(F175,$B$5:$B$32)+1),INDEX($B$5:$B$32,MATCH(F175,$B$5:$B$32)):INDEX($B$5:$B$32,MATCH(F175,$B$5:$B$32)+1),F175))*256/360 -> 17.06666667 | H175: 14.93333333 | I175: 2487.666667 | J175: 2488 | L175: 170 | M175: =(1/(L175*256))*Setup_Settings!$E$5*60000000 -> 1378.676471 | N175: =(TREND(INDEX($V$5:$V$32,MATCH(F175,$U$5:$U$32)):INDEX($V$5:$V$32,MATCH(F175,$U$5:$U$32)+1),INDEX($U$5:$U$32,MATCH(F175,$U$5:$U$32)):INDEX($U$5:$U$32,MATCH(F175,$U$5:$U$32)+1),F175))*256/360 -> 19.2 | O175: 12.8 | P175: 2125 | Q175: 2125
E176: 171 | F176: =(1/(E176*256))*Setup_Settings!$E$5*60000000 -> 1370.614035 | G176: =(TREND(INDEX($C$5:$C$32,MATCH(F176,$B$5:$B$32)):INDEX($C$5:$C$32,MATCH(F176,$B$5:$B$32)+1),INDEX($B$5:$B$32,MATCH(F176,$B$5:$B$32)):INDEX($B$5:$B$32,MATCH(F176,$B$5:$B$32)+1),F176))*256/360 -> 17.06666667 | H176: 14.93333333 | I176: 2502.6 | J176: 2503 | L176: 171 | M176: =(1/(L176*256))*Setup_Settings!$E$5*60000000 -> 1370.614035 | N176: =(TREND(INDEX($V$5:$V$32,MATCH(F176,$U$5:$U$32)):INDEX($V$5:$V$32,MATCH(F176,$U$5:$U$32)+1),INDEX($U$5:$U$32,MATCH(F176,$U$5:$U$32)):INDEX($U$5:$U$32,MATCH(F176,$U$5:$U$32)+1),F176))*256/360 -> 19.2 | O176: 12.8 | P176: 2137.8 | Q176: 2138
E177: 172 | F177: =(1/(E177*256))*Setup_Settings!$E$5*60000000 -> 1362.645349 | G177: =(TREND(INDEX($C$5:$C$32,MATCH(F177,$B$5:$B$32)):INDEX($C$5:$C$32,MATCH(F177,$B$5:$B$32)+1),INDEX($B$5:$B$32,MATCH(F177,$B$5:$B$32)):INDEX($B$5:$B$32,MATCH(F177,$B$5:$B$32)+1),F177))*256/360 -> 17.06666667 | H177: 14.93333333 | I177: 2517.533333 | J177: 2518 | L177: 172 | M177: =(1/(L177*256))*Setup_Settings!$E$5*60000000 -> 1362.645349 | N177: =(TREND(INDEX($V$5:$V$32,MATCH(F177,$U$5:$U$32)):INDEX($V$5:$V$32,MATCH(F177,$U$5:$U$32)+1),INDEX($U$5:$U$32,MATCH(F177,$U$5:$U$32)):INDEX($U$5:$U$32,MATCH(F177,$U$5:$U$32)+1),F177))*256/360 -> 19.2 | O177: 12.8 | P177: 2150.6 | Q177: 2151
E178: 173 | F178: =(1/(E178*256))*Setup_Settings!$E$5*60000000 -> 1354.768786 | G178: =(TREND(INDEX($C$5:$C$32,MATCH(F178,$B$5:$B$32)):INDEX($C$5:$C$32,MATCH(F178,$B$5:$B$32)+1),INDEX($B$5:$B$32,MATCH(F178,$B$5:$B$32)):INDEX($B$5:$B$32,MATCH(F178,$B$5:$B$32)+1),F178))*256/360 -> 17.06666667 | H178: 14.93333333 | I178: 2532.466667 | J178: 2532 | L178: 173 | M178: =(1/(L178*256))*Setup_Settings!$E$5*60000000 -> 1354.768786 | N178: =(TREND(INDEX($V$5:$V$32,MATCH(F178,$U$5:$U$32)):INDEX($V$5:$V$32,MATCH(F178,$U$5:$U$32)+1),INDEX($U$5:$U$32,MATCH(F178,$U$5:$U$32)):INDEX($U$5:$U$32,MATCH(F178,$U$5:$U$32)+1),F178))*256/360 -> 19.2 | O178: 12.8 | P178: 2163.4 | Q178: 2163
E179: 174 | F179: =(1/(E179*256))*Setup_Settings!$E$5*60000000 -> 1346.982759 | G179: =(TREND(INDEX($C$5:$C$32,MATCH(F179,$B$5:$B$32)):INDEX($C$5:$C$32,MATCH(F179,$B$5:$B$32)+1),INDEX($B$5:$B$32,MATCH(F179,$B$5:$B$32)):INDEX($B$5:$B$32,MATCH(F179,$B$5:$B$32)+1),F179))*256/360 -> 17.06666667 | H179: 14.93333333 | I179: 2547.4 | J179: 2547 | L179: 174 | M179: =(1/(L179*256))*Setup_Settings!$E$5*60000000 -> 1346.982759 | N179: =(TREND(INDEX($V$5:$V$32,MATCH(F179,$U$5:$U$32)):INDEX($V$5:$V$32,MATCH(F179,$U$5:$U$32)+1),INDEX($U$5:$U$32,MATCH(F179,$U$5:$U$32)):INDEX($U$5:$U$32,MATCH(F179,$U$5:$U$32)+1),F179))*256/360 -> 19.2 | O179: 12.8 | P179: 2176.2 | Q179: 2176
E180: 175 | F180: =(1/(E180*256))*Setup_Settings!$E$5*60000000 -> 1339.285714 | G180: =(TREND(INDEX($C$5:$C$32,MATCH(F180,$B$5:$B$32)):INDEX($C$5:$C$32,MATCH(F180,$B$5:$B$32)+1),INDEX($B$5:$B$32,MATCH(F180,$B$5:$B$32)):INDEX($B$5:$B$32,MATCH(F180,$B$5:$B$32)+1),F180))*256/360 -> 17.06666667 | H180: 14.93333333 | I180: 2562.333333 | J180: 2562 | L180: 175 | M180: =(1/(L180*256))*Setup_Settings!$E$5*60000000 -> 1339.285714 | N180: =(TREND(INDEX($V$5:$V$32,MATCH(F180,$U$5:$U$32)):INDEX($V$5:$V$32,MATCH(F180,$U$5:$U$32)+1),INDEX($U$5:$U$32,MATCH(F180,$U$5:$U$32)):INDEX($U$5:$U$32,MATCH(F180,$U$5:$U$32)+1),F180))*256/360 -> 19.2 | O180: 12.8 | P180: 2189 | Q180: 2189
E181: 176 | F181: =(1/(E181*256))*Setup_Settings!$E$5*60000000 -> 1331.676136 | G181: =(TREND(INDEX($C$5:$C$32,MATCH(F181,$B$5:$B$32)):INDEX($C$5:$C$32,MATCH(F181,$B$5:$B$32)+1),INDEX($B$5:$B$32,MATCH(F181,$B$5:$B$32)):INDEX($B$5:$B$32,MATCH(F181,$B$5:$B$32)+1),F181))*256/360 -> 17.06666667 | H181: 14.93333333 | I181: 2577.266667 | J181: 2577 | L181: 176 | M181: =(1/(L181*256))*Setup_Settings!$E$5*60000000 -> 1331.676136 | N181: =(TREND(INDEX($V$5:$V$32,MATCH(F181,$U$5:$U$32)):INDEX($V$5:$V$32,MATCH(F181,$U$5:$U$32)+1),INDEX($U$5:$U$32,MATCH(F181,$U$5:$U$32)):INDEX($U$5:$U$32,MATCH(F181,$U$5:$U$32)+1),F181))*256/360 -> 19.2 | O181: 12.8 | P181: 2201.8 | Q181: 2202
E182: 177 | F182: =(1/(E182*256))*Setup_Settings!$E$5*60000000 -> 1324.152542 | G182: =(TREND(INDEX($C$5:$C$32,MATCH(F182,$B$5:$B$32)):INDEX($C$5:$C$32,MATCH(F182,$B$5:$B$32)+1),INDEX($B$5:$B$32,MATCH(F182,$B$5:$B$32)):INDEX($B$5:$B$32,MATCH(F182,$B$5:$B$32)+1),F182))*256/360 -> 17.06666667 | H182: 14.93333333 | I182: 2592.2 | J182: 2592 | L182: 177 | M182: =(1/(L182*256))*Setup_Settings!$E$5*60000000 -> 1324.152542 | N182: =(TREND(INDEX($V$5:$V$32,MATCH(F182,$U$5:$U$32)):INDEX($V$5:$V$32,MATCH(F182,$U$5:$U$32)+1),INDEX($U$5:$U$32,MATCH(F182,$U$5:$U$32)):INDEX($U$5:$U$32,MATCH(F182,$U$5:$U$32)+1),F182))*256/360 -> 19.2 | O182: 12.8 | P182: 2214.6 | Q182: 2215
E183: 178 | F183: =(1/(E183*256))*Setup_Settings!$E$5*60000000 -> 1316.713483 | G183: =(TREND(INDEX($C$5:$C$32,MATCH(F183,$B$5:$B$32)):INDEX($C$5:$C$32,MATCH(F183,$B$5:$B$32)+1),INDEX($B$5:$B$32,MATCH(F183,$B$5:$B$32)):INDEX($B$5:$B$32,MATCH(F183,$B$5:$B$32)+1),F183))*256/360 -> 17.06666667 | H183: 14.93333333 | I183: 2607.133333 | J183: 2607 | L183: 178 | M183: =(1/(L183*256))*Setup_Settings!$E$5*60000000 -> 1316.713483 | N183: =(TREND(INDEX($V$5:$V$32,MATCH(F183,$U$5:$U$32)):INDEX($V$5:$V$32,MATCH(F183,$U$5:$U$32)+1),INDEX($U$5:$U$32,MATCH(F183,$U$5:$U$32)):INDEX($U$5:$U$32,MATCH(F183,$U$5:$U$32)+1),F183))*256/360 -> 19.2 | O183: 12.8 | P183: 2227.4 | Q183: 2227
E184: 179 | F184: =(1/(E184*256))*Setup_Settings!$E$5*60000000 -> 1309.357542 | G184: =(TREND(INDEX($C$5:$C$32,MATCH(F184,$B$5:$B$32)):INDEX($C$5:$C$32,MATCH(F184,$B$5:$B$32)+1),INDEX($B$5:$B$32,MATCH(F184,$B$5:$B$32)):INDEX($B$5:$B$32,MATCH(F184,$B$5:$B$32)+1),F184))*256/360 -> 17.06666667 | H184: 14.93333333 | I184: 2622.066667 | J184: 2622 | L184: 179 | M184: =(1/(L184*256))*Setup_Settings!$E$5*60000000 -> 1309.357542 | N184: =(TREND(INDEX($V$5:$V$32,MATCH(F184,$U$5:$U$32)):INDEX($V$5:$V$32,MATCH(F184,$U$5:$U$32)+1),INDEX($U$5:$U$32,MATCH(F184,$U$5:$U$32)):INDEX($U$5:$U$32,MATCH(F184,$U$5:$U$32)+1),F184))*256/360 -> 19.2 | O184: 12.8 | P184: 2240.2 | Q184: 2240
E185: 180 | F185: =(1/(E185*256))*Setup_Settings!$E$5*60000000 -> 1302.083333 | G185: =(TREND(INDEX($C$5:$C$32,MATCH(F185,$B$5:$B$32)):INDEX($C$5:$C$32,MATCH(F185,$B$5:$B$32)+1),INDEX($B$5:$B$32,MATCH(F185,$B$5:$B$32)):INDEX($B$5:$B$32,MATCH(F185,$B$5:$B$32)+1),F185))*256/360 -> 17.06666667 | H185: 14.93333333 | I185: 2637 | J185: 2637 | L185: 180 | M185: =(1/(L185*256))*Setup_Settings!$E$5*60000000 -> 1302.083333 | N185: =(TREND(INDEX($V$5:$V$32,MATCH(F185,$U$5:$U$32)):INDEX($V$5:$V$32,MATCH(F185,$U$5:$U$32)+1),INDEX($U$5:$U$32,MATCH(F185,$U$5:$U$32)):INDEX($U$5:$U$32,MATCH(F185,$U$5:$U$32)+1),F185))*256/360 -> 19.2 | O185: 12.8 | P185: 2253 | Q185: 2253
E186: 181 | F186: =(1/(E186*256))*Setup_Settings!$E$5*60000000 -> 1294.889503 | G186: =(TREND(INDEX($C$5:$C$32,MATCH(F186,$B$5:$B$32)):INDEX($C$5:$C$32,MATCH(F186,$B$5:$B$32)+1),INDEX($B$5:$B$32,MATCH(F186,$B$5:$B$32)):INDEX($B$5:$B$32,MATCH(F186,$B$5:$B$32)+1),F186))*256/360 -> 17.06666667 | H186: 14.93333333 | I186: 2651.933333 | J186: 2652 | L186: 181 | M186: =(1/(L186*256))*Setup_Settings!$E$5*60000000 -> 1294.889503 | N186: =(TREND(INDEX($V$5:$V$32,MATCH(F186,$U$5:$U$32)):INDEX($V$5:$V$32,MATCH(F186,$U$5:$U$32)+1),INDEX($U$5:$U$32,MATCH(F186,$U$5:$U$32)):INDEX($U$5:$U$32,MATCH(F186,$U$5:$U$32)+1),F186))*256/360 -> 19.2 | O186: 12.8 | P186: 2265.8 | Q186: 2266
E187: 182 | F187: =(1/(E187*256))*Setup_Settings!$E$5*60000000 -> 1287.774725 | G187: =(TREND(INDEX($C$5:$C$32,MATCH(F187,$B$5:$B$32)):INDEX($C$5:$C$32,MATCH(F187,$B$5:$B$32)+1),INDEX($B$5:$B$32,MATCH(F187,$B$5:$B$32)):INDEX($B$5:$B$32,MATCH(F187,$B$5:$B$32)+1),F187))*256/360 -> 17.06666667 | H187: 14.93333333 | I187: 2666.866667 | J187: 2667 | L187: 182 | M187: =(1/(L187*256))*Setup_Settings!$E$5*60000000 -> 1287.774725 | N187: =(TREND(INDEX($V$5:$V$32,MATCH(F187,$U$5:$U$32)):INDEX($V$5:$V$32,MATCH(F187,$U$5:$U$32)+1),INDEX($U$5:$U$32,MATCH(F187,$U$5:$U$32)):INDEX($U$5:$U$32,MATCH(F187,$U$5:$U$32)+1),F187))*256/360 -> 19.2 | O187: 12.8 | P187: 2278.6 | Q187: 2279
E188: 183 | F188: =(1/(E188*256))*Setup_Settings!$E$5*60000000 -> 1280.737705 | G188: =(TREND(INDEX($C$5:$C$32,MATCH(F188,$B$5:$B$32)):INDEX($C$5:$C$32,MATCH(F188,$B$5:$B$32)+1),INDEX($B$5:$B$32,MATCH(F188,$B$5:$B$32)):INDEX($B$5:$B$32,MATCH(F188,$B$5:$B$32)+1),F188))*256/360 -> 17.06666667 | H188: 14.93333333 | I188: 2681.8 | J188: 2682 | L188: 183 | M188: =(1/(L188*256))*Setup_Settings!$E$5*60000000 -> 1280.737705 | N188: =(TREND(INDEX($V$5:$V$32,MATCH(F188,$U$5:$U$32)):INDEX($V$5:$V$32,MATCH(F188,$U$5:$U$32)+1),INDEX($U$5:$U$32,MATCH(F188,$U$5:$U$32)):INDEX($U$5:$U$32,MATCH(F188,$U$5:$U$32)+1),F188))*256/360 -> 19.2 | O188: 12.8 | P188: 2291.4 | Q188: 2291
E189: 184 | F189: =(1/(E189*256))*Setup_Settings!$E$5*60000000 -> 1273.777174 | G189: =(TREND(INDEX($C$5:$C$32,MATCH(F189,$B$5:$B$32)):INDEX($C$5:$C$32,MATCH(F189,$B$5:$B$32)+1),INDEX($B$5:$B$32,MATCH(F189,$B$5:$B$32)):INDEX($B$5:$B$32,MATCH(F189,$B$5:$B$32)+1),F189))*256/360 -> 17.06666667 | H189: 14.93333333 | I189: 2696.733333 | J189: 2697 | L189: 184 | M189: =(1/(L189*256))*Setup_Settings!$E$5*60000000 -> 1273.777174 | N189: =(TREND(INDEX($V$5:$V$32,MATCH(F189,$U$5:$U$32)):INDEX($V$5:$V$32,MATCH(F189,$U$5:$U$32)+1),INDEX($U$5:$U$32,MATCH(F189,$U$5:$U$32)):INDEX($U$5:$U$32,MATCH(F189,$U$5:$U$32)+1),F189))*256/360 -> 19.2 | O189: 12.8 | P189: 2304.2 | Q189: 2304
E190: 185 | F190: =(1/(E190*256))*Setup_Settings!$E$5*60000000 -> 1266.891892 | G190: =(TREND(INDEX($C$5:$C$32,MATCH(F190,$B$5:$B$32)):INDEX($C$5:$C$32,MATCH(F190,$B$5:$B$32)+1),INDEX($B$5:$B$32,MATCH(F190,$B$5:$B$32)):INDEX($B$5:$B$32,MATCH(F190,$B$5:$B$32)+1),F190))*256/360 -> 17.06666667 | H190: 14.93333333 | I190: 2711.666667 | J190: 2712 | L190: 185 | M190: =(1/(L190*256))*Setup_Settings!$E$5*60000000 -> 1266.891892 | N190: =(TREND(INDEX($V$5:$V$32,MATCH(F190,$U$5:$U$32)):INDEX($V$5:$V$32,MATCH(F190,$U$5:$U$32)+1),INDEX($U$5:$U$32,MATCH(F190,$U$5:$U$32)):INDEX($U$5:$U$32,MATCH(F190,$U$5:$U$32)+1),F190))*256/360 -> 19.2 | O190: 12.8 | P190: 2317 | Q190: 2317
E191: 186 | F191: =(1/(E191*256))*Setup_Settings!$E$5*60000000 -> 1260.080645 | G191: =(TREND(INDEX($C$5:$C$32,MATCH(F191,$B$5:$B$32)):INDEX($C$5:$C$32,MATCH(F191,$B$5:$B$32)+1),INDEX($B$5:$B$32,MATCH(F191,$B$5:$B$32)):INDEX($B$5:$B$32,MATCH(F191,$B$5:$B$32)+1),F191))*256/360 -> 17.06666667 | H191: 14.93333333 | I191: 2726.6 | J191: 2727 | L191: 186 | M191: =(1/(L191*256))*Setup_Settings!$E$5*60000000 -> 1260.080645 | N191: =(TREND(INDEX($V$5:$V$32,MATCH(F191,$U$5:$U$32)):INDEX($V$5:$V$32,MATCH(F191,$U$5:$U$32)+1),INDEX($U$5:$U$32,MATCH(F191,$U$5:$U$32)):INDEX($U$5:$U$32,MATCH(F191,$U$5:$U$32)+1),F191))*256/360 -> 19.2 | O191: 12.8 | P191: 2329.8 | Q191: 2330
E192: 187 | F192: =(1/(E192*256))*Setup_Settings!$E$5*60000000 -> 1253.342246 | G192: =(TREND(INDEX($C$5:$C$32,MATCH(F192,$B$5:$B$32)):INDEX($C$5:$C$32,MATCH(F192,$B$5:$B$32)+1),INDEX($B$5:$B$32,MATCH(F192,$B$5:$B$32)):INDEX($B$5:$B$32,MATCH(F192,$B$5:$B$32)+1),F192))*256/360 -> 17.06666667 | H192: 14.93333333 | I192: 2741.533333 | J192: 2742 | L192: 187 | M192: =(1/(L192*256))*Setup_Settings!$E$5*60000000 -> 1253.342246 | N192: =(TREND(INDEX($V$5:$V$32,MATCH(F192,$U$5:$U$32)):INDEX($V$5:$V$32,MATCH(F192,$U$5:$U$32)+1),INDEX($U$5:$U$32,MATCH(F192,$U$5:$U$32)):INDEX($U$5:$U$32,MATCH(F192,$U$5:$U$32)+1),F192))*256/360 -> 19.2 | O192: 12.8 | P192: 2342.6 | Q192: 2343
E193: 188 | F193: =(1/(E193*256))*Setup_Settings!$E$5*60000000 -> 1246.675532 | G193: =(TREND(INDEX($C$5:$C$32,MATCH(F193,$B$5:$B$32)):INDEX($C$5:$C$32,MATCH(F193,$B$5:$B$32)+1),INDEX($B$5:$B$32,MATCH(F193,$B$5:$B$32)):INDEX($B$5:$B$32,MATCH(F193,$B$5:$B$32)+1),F193))*256/360 -> 17.06666667 | H193: 14.93333333 | I193: 2756.466667 | J193: 2756 | L193: 188 | M193: =(1/(L193*256))*Setup_Settings!$E$5*60000000 -> 1246.675532 | N193: =(TREND(INDEX($V$5:$V$32,MATCH(F193,$U$5:$U$32)):INDEX($V$5:$V$32,MATCH(F193,$U$5:$U$32)+1),INDEX($U$5:$U$32,MATCH(F193,$U$5:$U$32)):INDEX($U$5:$U$32,MATCH(F193,$U$5:$U$32)+1),F193))*256/360 -> 19.2 | O193: 12.8 | P193: 2355.4 | Q193: 2355
E194: 189 | F194: =(1/(E194*256))*Setup_Settings!$E$5*60000000 -> 1240.079365 | G194: =(TREND(INDEX($C$5:$C$32,MATCH(F194,$B$5:$B$32)):INDEX($C$5:$C$32,MATCH(F194,$B$5:$B$32)+1),INDEX($B$5:$B$32,MATCH(F194,$B$5:$B$32)):INDEX($B$5:$B$32,MATCH(F194,$B$5:$B$32)+1),F194))*256/360 -> 17.06666667 | H194: 14.93333333 | I194: 2771.4 | J194: 2771 | L194: 189 | M194: =(1/(L194*256))*Setup_Settings!$E$5*60000000 -> 1240.079365 | N194: =(TREND(INDEX($V$5:$V$32,MATCH(F194,$U$5:$U$32)):INDEX($V$5:$V$32,MATCH(F194,$U$5:$U$32)+1),INDEX($U$5:$U$32,MATCH(F194,$U$5:$U$32)):INDEX($U$5:$U$32,MATCH(F194,$U$5:$U$32)+1),F194))*256/360 -> 19.2 | O194: 12.8 | P194: 2368.2 | Q194: 2368
E195: 190 | F195: =(1/(E195*256))*Setup_Settings!$E$5*60000000 -> 1233.552632 | G195: =(TREND(INDEX($C$5:$C$32,MATCH(F195,$B$5:$B$32)):INDEX($C$5:$C$32,MATCH(F195,$B$5:$B$32)+1),INDEX($B$5:$B$32,MATCH(F195,$B$5:$B$32)):INDEX($B$5:$B$32,MATCH(F195,$B$5:$B$32)+1),F195))*256/360 -> 17.06666667 | H195: 14.93333333 | I195: 2786.333333 | J195: 2786 | L195: 190 | M195: =(1/(L195*256))*Setup_Settings!$E$5*60000000 -> 1233.552632 | N195: =(TREND(INDEX($V$5:$V$32,MATCH(F195,$U$5:$U$32)):INDEX($V$5:$V$32,MATCH(F195,$U$5:$U$32)+1),INDEX($U$5:$U$32,MATCH(F195,$U$5:$U$32)):INDEX($U$5:$U$32,MATCH(F195,$U$5:$U$32)+1),F195))*256/360 -> 19.2 | O195: 12.8 | P195: 2381 | Q195: 2381
E196: 191 | F196: =(1/(E196*256))*Setup_Settings!$E$5*60000000 -> 1227.094241 | G196: =(TREND(INDEX($C$5:$C$32,MATCH(F196,$B$5:$B$32)):INDEX($C$5:$C$32,MATCH(F196,$B$5:$B$32)+1),INDEX($B$5:$B$32,MATCH(F196,$B$5:$B$32)):INDEX($B$5:$B$32,MATCH(F196,$B$5:$B$32)+1),F196))*256/360 -> 17.06666667 | H196: 14.93333333 | I196: 2801.266667 | J196: 2801 | L196: 191 | M196: =(1/(L196*256))*Setup_Settings!$E$5*60000000 -> 1227.094241 | N196: =(TREND(INDEX($V$5:$V$32,MATCH(F196,$U$5:$U$32)):INDEX($V$5:$V$32,MATCH(F196,$U$5:$U$32)+1),INDEX($U$5:$U$32,MATCH(F196,$U$5:$U$32)):INDEX($U$5:$U$32,MATCH(F196,$U$5:$U$32)+1),F196))*256/360 -> 19.2 | O196: 12.8 | P196: 2393.8 | Q196: 2394
E197: 192 | F197: =(1/(E197*256))*Setup_Settings!$E$5*60000000 -> 1220.703125 | G197: =(TREND(INDEX($C$5:$C$32,MATCH(F197,$B$5:$B$32)):INDEX($C$5:$C$32,MATCH(F197,$B$5:$B$32)+1),INDEX($B$5:$B$32,MATCH(F197,$B$5:$B$32)):INDEX($B$5:$B$32,MATCH(F197,$B$5:$B$32)+1),F197))*256/360 -> 17.06666667 | H197: 14.93333333 | I197: 2816.2 | J197: 2816 | L197: 192 | M197: =(1/(L197*256))*Setup_Settings!$E$5*60000000 -> 1220.703125 | N197: =(TREND(INDEX($V$5:$V$32,MATCH(F197,$U$5:$U$32)):INDEX($V$5:$V$32,MATCH(F197,$U$5:$U$32)+1),INDEX($U$5:$U$32,MATCH(F197,$U$5:$U$32)):INDEX($U$5:$U$32,MATCH(F197,$U$5:$U$32)+1),F197))*256/360 -> 19.2 | O197: 12.8 | P197: 2406.6 | Q197: 2407
E198: 193 | F198: =(1/(E198*256))*Setup_Settings!$E$5*60000000 -> 1214.378238 | G198: =(TREND(INDEX($C$5:$C$32,MATCH(F198,$B$5:$B$32)):INDEX($C$5:$C$32,MATCH(F198,$B$5:$B$32)+1),INDEX($B$5:$B$32,MATCH(F198,$B$5:$B$32)):INDEX($B$5:$B$32,MATCH(F198,$B$5:$B$32)+1),F198))*256/360 -> 17.06666667 | H198: 14.93333333 | I198: 2831.133333 | J198: 2831 | L198: 193 | M198: =(1/(L198*256))*Setup_Settings!$E$5*60000000 -> 1214.378238 | N198: =(TREND(INDEX($V$5:$V$32,MATCH(F198,$U$5:$U$32)):INDEX($V$5:$V$32,MATCH(F198,$U$5:$U$32)+1),INDEX($U$5:$U$32,MATCH(F198,$U$5:$U$32)):INDEX($U$5:$U$32,MATCH(F198,$U$5:$U$32)+1),F198))*256/360 -> 19.2 | O198: 12.8 | P198: 2419.4 | Q198: 2419
E199: 194 | F199: =(1/(E199*256))*Setup_Settings!$E$5*60000000 -> 1208.118557 | G199: =(TREND(INDEX($C$5:$C$32,MATCH(F199,$B$5:$B$32)):INDEX($C$5:$C$32,MATCH(F199,$B$5:$B$32)+1),INDEX($B$5:$B$32,MATCH(F199,$B$5:$B$32)):INDEX($B$5:$B$32,MATCH(F199,$B$5:$B$32)+1),F199))*256/360 -> 17.06666667 | H199: 14.93333333 | I199: 2846.066667 | J199: 2846 | L199: 194 | M199: =(1/(L199*256))*Setup_Settings!$E$5*60000000 -> 1208.118557 | N199: =(TREND(INDEX($V$5:$V$32,MATCH(F199,$U$5:$U$32)):INDEX($V$5:$V$32,MATCH(F199,$U$5:$U$32)+1),INDEX($U$5:$U$32,MATCH(F199,$U$5:$U$32)):INDEX($U$5:$U$32,MATCH(F199,$U$5:$U$32)+1),F199))*256/360 -> 19.2 | O199: 12.8 | P199: 2432.2 | Q199: 2432
E200: 195 | F200: =(1/(E200*256))*Setup_Settings!$E$5*60000000 -> 1201.923077 | G200: =(TREND(INDEX($C$5:$C$32,MATCH(F200,$B$5:$B$32)):INDEX($C$5:$C$32,MATCH(F200,$B$5:$B$32)+1),INDEX($B$5:$B$32,MATCH(F200,$B$5:$B$32)):INDEX($B$5:$B$32,MATCH(F200,$B$5:$B$32)+1),F200))*256/360 -> 17.06666667 | H200: 14.93333333 | I200: 2861 | J200: 2861 | L200: 195 | M200: =(1/(L200*256))*Setup_Settings!$E$5*60000000 -> 1201.923077 | N200: =(TREND(INDEX($V$5:$V$32,MATCH(F200,$U$5:$U$32)):INDEX($V$5:$V$32,MATCH(F200,$U$5:$U$32)+1),INDEX($U$5:$U$32,MATCH(F200,$U$5:$U$32)):INDEX($U$5:$U$32,MATCH(F200,$U$5:$U$32)+1),F200))*256/360 -> 19.2 | O200: 12.8 | P200: 2445 | Q200: 2445
E201: 196 | F201: =(1/(E201*256))*Setup_Settings!$E$5*60000000 -> 1195.790816 | G201: =(TREND(INDEX($C$5:$C$32,MATCH(F201,$B$5:$B$32)):INDEX($C$5:$C$32,MATCH(F201,$B$5:$B$32)+1),INDEX($B$5:$B$32,MATCH(F201,$B$5:$B$32)):INDEX($B$5:$B$32,MATCH(F201,$B$5:$B$32)+1),F201))*256/360 -> 17.06666667 | H201: 14.93333333 | I201: 2875.933333 | J201: 2876 | L201: 196 | M201: =(1/(L201*256))*Setup_Settings!$E$5*60000000 -> 1195.790816 | N201: =(TREND(INDEX($V$5:$V$32,MATCH(F201,$U$5:$U$32)):INDEX($V$5:$V$32,MATCH(F201,$U$5:$U$32)+1),INDEX($U$5:$U$32,MATCH(F201,$U$5:$U$32)):INDEX($U$5:$U$32,MATCH(F201,$U$5:$U$32)+1),F201))*256/360 -> 19.2 | O201: 12.8 | P201: 2457.8 | Q201: 2458
... 60 more rows

Sheet 12F683_Code
A1: /*******************************************************************************
A2: * Filename: CDI-2012_12F683_v1.0.c *
A3: * Version: 1.0 Date: November 17, 2012 *
A4: * Author: Jake Stewart (jakestew@mail.com) *
A5: * Credits: John (gr8flyer55), Nyemi, jpanhalt, lovefool, COM, Gompy, *
A6: * Adrian, and Bluejets. *
A7: * Website: http://www.electrofunnel.com/CDI-2012/index.htm *
A8: * Copyright: 2012 Jake Stewart *
A9: ********************************************************************************
A10: * License: This code is free for personal and limited commercial use. You *
A11: * may use and modify it as you see fit as long as you do not sell the code, or *
A12: * any derivative work, or any product containing it without written permission.*
A13: * Contact jakestew@mail.com for affordable licensing. *
A14: ********************************************************************************
A15: * Processor: PIC12F683 Compiler: MPLAB XC8 v1.10 *
A16: * Additional Files: Excel spreadsheet for table generation. *
A17: ********************************************************************************
A18: * Description: CDI ignition control program *
A19: ********************************************************************************
A20: * Pin assignments... *
A21: * Pin 7(GP0) = Output for LED/tachometer, active high *
A22: * Pin 6(GP1) = Output to HV spark circuit board, active low *
A23: * Pin 5(GP2) = Sensor input, active low, falling edge = magnet approaching *
A24: * Pin 4(GP3) = Tied low on some timer boards, no function assigned *
A25: * Pin 3(GP4) = Kill Switch, internal pull-up, ground to stop spark output *
A26: * Pin 2(GP5) = Table Switch, internal pull-up, ground for Table2 *
A27: ********************************************************************************
A28: * Interrupts: *
A29: * GP2 - Sensor input signal edge, falling=activating, rising=deactivating *
A30: * TMR1 - Timer1, every 65.5 ms (if not cleared) *
A31: * CCP1IF - Timer1 period register (TMR1 matches delay time) *
A32: *******************************************************************************/
A34: #include <stdio.h> // Standard IO include
A35: #include <stdlib.h> // Standard library include
A36: #include <xc.h> // Auto include device specific headers and libraries
A37: #include <stdint.h> // Defines C99 standard data types like uint8_t, uint16_t
A38: #include <stdbool.h> // For true/false definition
A40: #define _XTAL_FREQ 8000000 // Oscillator/crystal Speed = 4mhz
A41: #define ICLK (_XTAL_FREQ/4) // Instruction clock = XTAL divided by four
A43: /* Device Config Register: CONFIG1 (see pic12f683.h)
A44: * IO on OSC pins,Watchdog Off,PowerUp Timer On,IO on MCLR,Code Protect Off,Data Protect Off,
A45: * Brown-out Reset Off,Clock Switch Off,Fail-Safe Clock Monitor Off */
A46: __CONFIG(FOSC_INTOSCIO & WDTE_OFF & PWRTE_ON & MCLRE_OFF & CP_OFF & CPD_OFF & BOREN_OFF & IESO_OFF & FCMEN_OFF);
A47: // CONFIG Register = 0b 000011000100 = 0x00C4
A49: /************************************************************************
A50: * Extra Settings: (adjust with care) *
A51: ************************************************************************/
A52: #define Trigger_Pulse_Time 300 // On time, in uS, that output is kept on (2 is the minimum IME)
A54: /***** Ignition Advance Table (256 point, 16-bit table) *****/
A55: static const uint16_t AdvanceTable1[256] = //@ 0x03F0 = // 0x03F0
A56: { /***** PASTE TABLE DATA ON THE LINE BELOW *****/
A57: =Table_Values!G3 -> 4203,45,25,48047,2,3,102,1,40,0,0,0,0,0,0,173,188,203,218,233,248,263,278,292,307,322,337,352,367,382,397,412,427,442,457,472,487,502,516,531,546,561,576,591,606,621,636,651,666,681,696,711,726,740,755,770,785,800,815,830,845,860,875,890,905,920,935,950,964,979,994,1009,1024,1039,1054,1069,1084,1099,1114,1129,1144,1159,1174,1188,1203,1218,1233,1248,1263,1278,1293,1308,1323,1338,1353,1368,1383,1398,1412,1427,1442,1457,1472,1487,1502,1517,1532,1547,1562,1577,1592,1607,1622,1636,1651,1666,1681,1696,1711,1726,1741,1756,1771,1786,1801,1816,1831,1846,1860,1875,1890,1905,1920,1935,1950,1965,1980,1995,2010,2025,2040,2055,2070,2084,2099,2114,2129,2144,2159,2174,2189,2204,2219,2234,2249,2264,2279,2294,2308,2323,2338,2353,2368,2383,2398,2413,2428,2443,2458,2473,2488,2503,2518,2532,2547,2562,2577,2592,2607,2622,2637,2652,2667,2682,2697,2712,2727,2742,2756,2771,2786,2801,2816,2831,2846,2861,2876,2891,2906,2921,2936,2951,2966,2980,2995,3010,3025,3040,3055,3070,3085,3100,3115,3130,3145,3160,3175,3190,3204,3219,3234,3249,3264,3279,3294,3309,3324,3339,3354,3369,3384,3399,3414,3428,3443,3471,3506,3540,3575,3610,3645,3680,3715,3750,3784,3819,3854,3889,3924,3959,3993,4028,4063,4098,4133,4168
A58: }; /***** PASTE TABLE DATA ON THE LINE ABOVE *****/
A60: /***** Ignition Advance Table 2 (256 point, 16-bit table) *****/
A61: static const uint16_t AdvanceTable2[256] = //@ 0x05F0 = // 0x05F0
A62: { /***** PASTE TABLE DATA ON THE LINE BELOW *****/
A63: =Table_Values!N3 -> 3749,50,25,53906,3,3,102,1,40,0,0,0,0,0,0,141,154,167,179,192,205,218,231,243,256,269,282,295,307,320,333,346,359,371,384,397,410,423,435,448,461,474,487,499,512,525,538,551,563,576,589,602,615,627,640,653,666,679,691,704,717,730,743,755,768,781,794,807,819,832,845,858,871,883,896,909,922,935,947,960,973,986,999,1011,1024,1037,1050,1063,1075,1088,1101,1114,1127,1139,1152,1165,1178,1191,1203,1216,1229,1242,1255,1267,1280,1293,1306,1319,1331,1344,1357,1370,1383,1395,1408,1421,1434,1447,1459,1472,1485,1498,1511,1523,1536,1549,1562,1575,1587,1600,1613,1626,1639,1651,1664,1677,1690,1703,1715,1728,1741,1754,1767,1779,1792,1805,1818,1831,1843,1856,1869,1882,1895,1907,1920,1933,1946,1959,1971,1984,1997,2010,2023,2035,2048,2061,2074,2087,2099,2112,2125,2138,2151,2163,2176,2189,2202,2215,2227,2240,2253,2266,2279,2291,2304,2317,2330,2343,2355,2368,2381,2394,2407,2419,2432,2445,2458,2471,2483,2496,2509,2522,2535,2547,2560,2573,2586,2599,2611,2624,2637,2650,2663,2675,2688,2701,2714,2727,2739,2752,2765,2778,2791,2803,2816,2829,2842,2855,2867,2880,2893,2906,2919,2931,2944,2972,3009,3046,3083,3120,3157,3194,3231,3268,3305,3342,3379,3416,3453,3490,3527,3564,3601,3638,3675,3712
A64: }; /***** PASTE TABLE DATA ON THE LINE ABOVE *****/
A66: /***** FUNCTION PROTOTYPES *****/
A67: static void Initalize(void); // PIC Initialization
A68: static void LoadSettings(void); // Loads user settings embedded in the tables
A69: static void CheckPins(void); // Check pins and debounce readings
A71: /***** GLOBAL VARIABLES *****/
A72: union {uint8_t ALL;struct{unsigned GP0:1;unsigned GP1:1;unsigned GP2:1;
A73: unsigned GP3:1;unsigned GP4:1;unsigned GP5:1;};} sGPIO; // Union/Struct for shadow copy of GPIO
A75: const uint16_t *TablePointer = AdvanceTable1; // Pointer to active ignition table
A76: volatile uint8_t Unhandled_Interrupt = 0; // Should never have any of these!
A77: volatile uint8_t MSD_Start_Spark = 0; // Number of sparks to fire on the first starting rev.
A78: volatile uint8_t Engine_Running = 0; // Is the engine running?
A79: volatile uint8_t TMR1_Overflow = 0; // Timer1 counter
A80: volatile uint8_t MSD_Low_Spark = 0; // Number of sparks to fire when in LowRPM mode (120-915 RPM)
A81: volatile uint8_t SensorDigiDeg = 0; // Sensor Digi-Degrees BTDC
A82: volatile uint8_t LowRPM_Delay = 0; // Low RPM Advance Digi-Degrees (3 RPS - 916 RPM)
A83: volatile uint8_t Max_MSD_Rev = 0; // Maximum RPM to use MSD at (value is in terms of CurrentRev + 1)
A84: volatile uint8_t CurrentRev = 0; // Timer for current revolution
A85: volatile uint16_t StartDelay = 0; // uS delay for start spark(s)
A86: volatile uint8_t Spark_Fire = 0; // Loaded with the number of sparks to fire
A87: volatile uint8_t MSD_Spark = 0; // Number of sparks per revolution when RPM is below Max_MSD_Rev
A88: volatile uint8_t MSD_Delay = 0; // uS in between trigger pulses for MSD (minimum 63 IME)
A89: volatile uint8_t LastRev = 0; // Previous revolution time
A90: volatile uint24_t LowCalc = 0; // Used as a temp var for calculating
A91: uint8_t KillSwitch = 0; // Kill Switch Debounce Variable
A92: uint8_t TableSwitch = 0; // Table Switch Debounce Variable
A93: uint8_t i = 0; // 8-bit counter variable
A95: void main(void) {
A96: TRISIO = 0b111100; // Trying to get GP1 on as fast as possible to prevent startup sparks.
A97: sGPIO.GP1 = 1; // GP1 should normally be on (high)
A98: GPIO = sGPIO.ALL; // Shadow GPIO -> GPIO
A99: Initalize(); // Call initialization function
A100: // __delay_ms(500); // Startup delay to let circuit stabilize
A101: LoadSettings(); // Load table 1 user settings
A102: Spark_Fire = MSD_Start_Spark; // Prime the spark counter for first firing
A103: PIE1bits.TMR1IE = 1; // Timer1 Interrupt Enable
A104: T1CONbits.TMR1ON = 1; // Start Timer1
A105: INTCONbits.GIE = 1; // Global Interrupt Enable
A107: while(1){ // Main loop, Run this loop forever
A108: CheckPins(); // Check our TableSelect and KillSwitch pins
A109: __delay_ms(10); // Delay here so main loop runs at around 10-20 ms (100-50 times/sec)
A110: }
A111: }
A113: /* ISR = Interrupt Service Routine, it is called when any enabled interrupt is generated. */
A114: static void interrupt isr(void){ /* All in one IF block to avoid runtime errors */
A115: #if 1 /* Determine which flag generated the interrupt and service it */
A116: if(PIR1bits.CCP1IF){ /******** TIMER1 COMPARE MATCH ********/
A117: for(;Spark_Fire != 0;--Spark_Fire){
A118: sGPIO.GP1 = 0; // Turn on HV output by turning GP1 off
A119: sGPIO.GP0 = 1; // Turn on LED/tach (GP0) bit in shadow
A120: GPIO = sGPIO.ALL; // Update GPIO
A121: __delay_us(Trigger_Pulse_Time); // Load Trigger_Pulse_Time (uS)
A122: sGPIO.GP1 = 1; // GP1 is normally on (on = off)
A123: sGPIO.GP0 = 0; // Turn off LED/tach (GP0) bit in shadow
A124: GPIO = sGPIO.ALL; // Update GPIO
A125: if(Spark_Fire != 0){
A126: for(i=0; i < MSD_Delay; i++){ // Delay for MSD_Delay value
A127: __delay_us(96); // About 4 uS overhead per loop
A128: }
A129: }
A130: }
A131: LastRev = CurrentRev; // Store previous rev. time value
A132: CCP1CONbits.CCP1M = 0; // Compare mode off, so we don't end up here again until the next spark
A133: PIE1bits.CCP1IE = 0; // Disable compare interrupt
A134: PIR1bits.CCP1IF = 0; // Clear compare interrupt flag
A135: INTCONbits.INTF = 0; // Clear sensor interrupt flag in case we have generated the flag from sensor noise
A136: INTCONbits.INTE = 1; // Enable interrupt for GP2 sensor input
A137: }
A138: /*****************************************************************************/
A139: else if(INTCONbits.INTF){ /******** GP2 SENSOR INPUT ********/
A140: if(GPIObits.GP2 == 0){
A141: T1CONbits.TMR1ON = 0; // Turn off Timer1
A142: CurrentRev = TMR1H + (TMR1L >> 7); // 8 high bits of Timer1 + the highest low bit (rounding method)
A143: TMR1 = 0; // Reset Timer1
A144: CCP1CONbits.CCP1M = 0b1010; // Set Timer1 CCP compare mode
A145: CCPR1 = *(TablePointer + CurrentRev); // Load delay table value
A146: if(CurrentRev > Max_MSD_Rev){Spark_Fire = MSD_Spark;} // Set the MSD sparks if revs are low enough
A147: else{Spark_Fire = 1;}
A148: if(TMR1_Overflow){ // If we overflowed we need to calc the delay time since it's not in the table
A149: LowCalc = CurrentRev + (TMR1_Overflow<<8); // Figure out total elapsed time
A150: CCPR1 = LowCalc * LowRPM_Delay; // Shift one more bit and multiply times our start advance setting
A151: TMR1_Overflow = 0; // Reset TMR1 overflow counter
A152: Spark_Fire = MSD_Low_Spark;
A153: CurrentRev = 255; // CurrentRev should be maxed instead of rolled over to a random number
A154: if(Engine_Running == 0){ // If our engine isn't running we won't have a valid rev time
A155: CCPR1 = StartDelay; // Use default starting figure
A156: Spark_Fire = MSD_Start_Spark;
A157: Engine_Running = 1; // Hopefully engine fired or at least hits the sensor again at above 3 RPS
A158: }
A159: }
A160: // Prepare for throwing spark and exit ISR
A161: INTCONbits.INTE = 0; // Disable GP2 sensor interrupt so we don't get false triggers from sensor noise.
A162: INTCONbits.INTF = 0; // Clear GP2 Interrupt Flag
A163: PIR1bits.CCP1IF = 0; // Clear compare interrupt flag
A164: PIE1bits.CCP1IE = 1; // Enable compare interrupt
A165: T1CONbits.TMR1ON =1; // Turn on Timer1
A166: }
A167: else {INTCONbits.INTF = 0;} // False interrupt from sensor noise, clear flag and continue
A168: }
A169: /*****************************************************************************/
A170: else if(PIR1bits.TMR1IF){ /******** TIMER1 OVERFLOW ********/
A171: CCP1CONbits.CCP1M = 0; // Compare mode off so we don't get compare matches now that our timer has rolled over
A172: if(TMR1_Overflow > 7){
A173: Engine_Running = 0; // Engine is not running (under ~2 RPS / ~120 RPM)
A174: }
A175: else{
A176: TMR1_Overflow++; // Increment overflow count (=uS*65536)
A177: }
A178: PIR1bits.TMR1IF = 0; // Clear interrupt flag
A179: }
A180: /*****************************************************************************/
A181: else { /******** UNHANDLED INTERRUPT ********/
A182: if(Unhandled_Interrupt < 255){Unhandled_Interrupt++;}
A183: }
A184: #endif
A185: }
A187: static void LoadSettings(void){ // Load user settings from current table
A188: SensorDigiDeg = *(TablePointer + 1);
A189: LowRPM_Delay = *(TablePointer + 2);
A190: StartDelay = *(TablePointer + 3);
A191: MSD_Start_Spark = *(TablePointer + 4);
A192: MSD_Low_Spark = *(TablePointer + 5);
A193: Max_MSD_Rev = *(TablePointer + 6);
A194: MSD_Spark = *(TablePointer + 7);
A195: MSD_Delay = *(TablePointer + 8);
A196: }
A198: static void CheckPins(void){
A199: if(GPIObits.GP4 == 0){ // If kill switch is on (grounded)
A200: if(KillSwitch < 10){ // Less than debounce value
A201: KillSwitch++; // Increment value
A202: if(KillSwitch == 10){ // Debounce value reached
A203: INTCONbits.GIE = 0; // Disable interrupts
A204: sGPIO.GP1 = 1; // Make sure HV trigger is off (turn GP1 on)
A205: GPIO = sGPIO.ALL; // Update GPIO
A206: }
A207: }
A208: }
A209: else if(KillSwitch > 0){ // Kill switch off (high)
A210: KillSwitch--; // Decrease counter
A211: if(KillSwitch == 0){INTCONbits.GIE = 1;} // If debounced back to 0, enable interrupts
A212: }
A213: if(GPIObits.GP5 == 0){ // If Table switch is on (grounded)
A214: if(TableSwitch < 10){ // Less than max value
... 34 more rows

Sheet 12F1840_Code
A1: /*******************************************************************************
A2: * Filename: CDI-2012_12F1840_v1.0.c *
A3: * Version: 1.0 Date: November 16, 2012 *
A4: * Author: Jake Stewart (jakestew@mail.com) *
A5: * Credits: John (gr8flyer55), Nyemi, jpanhalt, lovefool, COM, Gompy, *
A6: * Adrian, and Bluejets. *
A7: * Website: http://www.electrofunnel.com/CDI-2012/index.htm *
A8: * Copyright: 2012 Jake Stewart *
A9: ********************************************************************************
A10: * License: This code is free for personal and limited commercial use. You *
A11: * may use and modify it as you see fit as long as you do not sell the code, or *
A12: * any derivative work, or any product containing it without written permission.*
A13: * Contact jakestew@mail.com for affordable licensing. *
A14: ********************************************************************************
A15: * Processor: PIC12F1840 Compiler: MPLAB XC8 v1.10 *
A16: * Additional Files: Excel spreadsheet for table generation. *
A17: ********************************************************************************
A18: * Description: CDI ignition control program *
A19: ********************************************************************************
A20: * Pin assignments... *
A21: * Pin 7(GP0) = Output for LED/tachometer, active high *
A22: * Pin 6(GP1) = Output to HV spark circuit board, active low *
A23: * Pin 5(GP2) = Sensor input, active low, falling edge = magnet approaching *
A24: * Pin 4(GP3) = Tied low on some timer boards, no function assigned *
A25: * Pin 3(GP4) = Kill Switch, internal pull-up, ground to stop spark output *
A26: * Pin 2(GP5) = Table Switch, internal pull-up, ground for Table2 *
A27: ********************************************************************************
A28: * Interrupts: *
A29: * GP2 - Sensor input signal edge, falling=activating, rising=deactivating *
A30: * TMR1 - Timer1, every 65.5 ms (if not cleared) *
A31: * CCP1IF - Timer1 period register (TMR1 matches delay time) *
A32: *******************************************************************************/
A34: #include <stdio.h> // Standard IO include
A35: #include <stdlib.h> // Standard library include
A36: #include <xc.h> // Auto include device specific headers and libraries
A37: #include <stdint.h> // Defines C99 standard data types like uint8_t, uint16_t
A38: #include <stdbool.h> // For true/false definition
A40: #define _XTAL_FREQ 8000000 // Oscillator/crystal Speed = 4mhz
A41: #define ICLK (_XTAL_FREQ/4) // Instruction clock = XTAL divided by four
A43: /* Device Config Register: CONFIG1 (see pic12f1840.h)
A44: * FOSC_INTOSC = Internal Oscillator, I/O on crystal pin
A45: * WDTE_OFF = Watchdog timer off
A46: * PWRTE_OFF = Power-up Timer
A47: * MCLRE_OFF = MCLR Pin Function Select (Off=MCLR/VPP=digital input)
A48: * CP_OFF = Program memory code protection disabled
A49: * CPD_OFF = Data memory code protection disabled
A50: * BOREN_OFF = Brown-out Reset disabled
A51: * CLKOUTEN_OFF = CLKOUT function is disabled. I/O or osc on CLKOUT pin
A52: * IESO_OFF = Internal/External clock switchover disabled
A53: * FCMEN_OFF = Fail-Safe Clock Monitor
A54: */
A55: __CONFIG(FOSC_INTOSC & WDTE_OFF & PWRTE_OFF & MCLRE_OFF & CP_OFF & CPD_OFF & BOREN_OFF & CLKOUTEN_OFF & IESO_OFF & FCMEN_OFF);
A57: /* Device Config Register: CONFIG2 (see pic12f1840.h)
A58: * WRT_OFF = Flash Memory Self-Write Protection Off
A59: * VCOREV_OFF = VDDCORE Visibility - VDDCORE pin functionality is disabled
A60: * PLLEN_ON = 4x PLL enable
A61: * STVREN_ON = Stack Overflow/Underflow Reset Enable
A62: * BORV_LO = Brown-out Reset Voltage Selection (low trip point selected)(2.4V)
A63: * DEBUG_OFF = In-Circuit Debugger disabled, ICSPCLK & ICSPDAT are I/O pins
A64: * LVP_OFF = Low-Voltage Programming Mode off (must use high voltage)
A65: */
A66: __CONFIG(WRT_OFF & VCOREV_OFF & PLLEN_OFF & STVREN_OFF & BORV_LO & DEBUG_OFF & LVP_OFF);
A67: // CONFIG1 Register = 0bXXXXXX
A68: // CONFIG2 Register = 0bXXXXXX
A70: /************************************************************************
A71: * Extra Settings: (adjust with care) *
A72: ************************************************************************/
A73: #define Trigger_Pulse_Time 300 // On time, in uS, that output is kept on (2 is the minimum IME)
A75: /***** Ignition Advance Table (256 point, 16-bit table) *****/
A76: static const uint16_t AdvanceTable1[256] = //@ 0x03F0 = // 0x03F0
A77: { /***** PASTE TABLE DATA ON THE LINE BELOW *****/
A78: =Table_Values!G3 -> 4203,45,25,48047,2,3,102,1,40,0,0,0,0,0,0,173,188,203,218,233,248,263,278,292,307,322,337,352,367,382,397,412,427,442,457,472,487,502,516,531,546,561,576,591,606,621,636,651,666,681,696,711,726,740,755,770,785,800,815,830,845,860,875,890,905,920,935,950,964,979,994,1009,1024,1039,1054,1069,1084,1099,1114,1129,1144,1159,1174,1188,1203,1218,1233,1248,1263,1278,1293,1308,1323,1338,1353,1368,1383,1398,1412,1427,1442,1457,1472,1487,1502,1517,1532,1547,1562,1577,1592,1607,1622,1636,1651,1666,1681,1696,1711,1726,1741,1756,1771,1786,1801,1816,1831,1846,1860,1875,1890,1905,1920,1935,1950,1965,1980,1995,2010,2025,2040,2055,2070,2084,2099,2114,2129,2144,2159,2174,2189,2204,2219,2234,2249,2264,2279,2294,2308,2323,2338,2353,2368,2383,2398,2413,2428,2443,2458,2473,2488,2503,2518,2532,2547,2562,2577,2592,2607,2622,2637,2652,2667,2682,2697,2712,2727,2742,2756,2771,2786,2801,2816,2831,2846,2861,2876,2891,2906,2921,2936,2951,2966,2980,2995,3010,3025,3040,3055,3070,3085,3100,3115,3130,3145,3160,3175,3190,3204,3219,3234,3249,3264,3279,3294,3309,3324,3339,3354,3369,3384,3399,3414,3428,3443,3471,3506,3540,3575,3610,3645,3680,3715,3750,3784,3819,3854,3889,3924,3959,3993,4028,4063,4098,4133,4168
A79: }; /***** PASTE TABLE DATA ON THE LINE ABOVE *****/
A81: /***** Ignition Advance Table 2 (256 point, 16-bit table) *****/
A82: static const uint16_t AdvanceTable2[256] = //@ 0x05F0 = // 0x05F0
A83: { /***** PASTE TABLE DATA ON THE LINE BELOW *****/
A84: =Table_Values!N3 -> 3749,50,25,53906,3,3,102,1,40,0,0,0,0,0,0,141,154,167,179,192,205,218,231,243,256,269,282,295,307,320,333,346,359,371,384,397,410,423,435,448,461,474,487,499,512,525,538,551,563,576,589,602,615,627,640,653,666,679,691,704,717,730,743,755,768,781,794,807,819,832,845,858,871,883,896,909,922,935,947,960,973,986,999,1011,1024,1037,1050,1063,1075,1088,1101,1114,1127,1139,1152,1165,1178,1191,1203,1216,1229,1242,1255,1267,1280,1293,1306,1319,1331,1344,1357,1370,1383,1395,1408,1421,1434,1447,1459,1472,1485,1498,1511,1523,1536,1549,1562,1575,1587,1600,1613,1626,1639,1651,1664,1677,1690,1703,1715,1728,1741,1754,1767,1779,1792,1805,1818,1831,1843,1856,1869,1882,1895,1907,1920,1933,1946,1959,1971,1984,1997,2010,2023,2035,2048,2061,2074,2087,2099,2112,2125,2138,2151,2163,2176,2189,2202,2215,2227,2240,2253,2266,2279,2291,2304,2317,2330,2343,2355,2368,2381,2394,2407,2419,2432,2445,2458,2471,2483,2496,2509,2522,2535,2547,2560,2573,2586,2599,2611,2624,2637,2650,2663,2675,2688,2701,2714,2727,2739,2752,2765,2778,2791,2803,2816,2829,2842,2855,2867,2880,2893,2906,2919,2931,2944,2972,3009,3046,3083,3120,3157,3194,3231,3268,3305,3342,3379,3416,3453,3490,3527,3564,3601,3638,3675,3712
A85: }; /***** PASTE TABLE DATA ON THE LINE ABOVE *****/
A86: /***** End of User Settings *****/
A88: /***** FUNCTION PROTOTYPES *****/
A89: static void Initalize(void); // PIC Initialization
A90: static void LoadSettings(void); // Loads user settings embedded in the tables
A91: static void CheckPins(void); // Check pins and debounce readings
A93: /***** GLOBAL VARIABLES *****/
A94: extern volatile unsigned short CCPR1 @ 0x291; // Register: CCPR1 (Missing from pic12f1840.h)
A95: union {uint8_t ALL;struct{unsigned GP0:1;unsigned GP1:1;unsigned GP2:1;
A96: unsigned GP3:1;unsigned GP4:1;unsigned GP5:1;};} sGPIO; // Shadow copy of GPIO
A98: const uint16_t *TablePointer = AdvanceTable1; // Pointer to active ignition table
A99: volatile uint8_t Unhandled_Interrupt = 0; // Should never have any of these!
A100: volatile uint8_t MSD_Start_Spark = 0; // Number of sparks to fire on the first starting rev.
A101: volatile uint8_t Engine_Running = 0; // Is the engine running?
A102: volatile uint8_t TMR1_Overflow = 0; // Timer1 counter
A103: volatile uint8_t MSD_Low_Spark = 0; // Number of sparks to fire when in LowRPM mode (120-915 RPM)
A104: volatile uint8_t SensorDigiDeg = 0; // Sensor Digi-Degrees BTDC
A105: volatile uint8_t LowRPM_Delay = 0; // Low RPM Advance Digi-Degrees (3 RPS - 916 RPM)
A106: volatile uint8_t Max_MSD_Rev = 0; // Maximum RPM to use MSD at (value is in terms of CurrentRev + 1)
A107: volatile uint8_t CurrentRev = 0; // Timer for current revolution
A108: volatile uint16_t StartDelay = 0; // uS delay for start spark(s)
A109: volatile uint8_t Spark_Fire = 0; // Loaded with the number of sparks to fire
A110: volatile uint8_t MSD_Spark = 0; // Number of sparks per revolution when RPM is below Max_MSD_Rev
A111: volatile uint8_t MSD_Delay = 0; // uS in between trigger pulses for MSD (minimum 63 IME)
A112: volatile uint8_t LastRev = 0; // Previous revolution time
A113: volatile uint24_t LowCalc = 0; // Used as a temp var for calculating
A114: uint8_t KillSwitch = 0; // Kill Switch Debounce Variable
A115: uint8_t TableSwitch = 0; // Table Switch Debounce Variable
A116: uint8_t i = 0; // 8-bit counter variable
A118: void main(void) {
A119: TRISA = 0b111100; // Try to get GP1 on as fast as possible to prevent startup sparks.
A120: sGPIO.GP1 = 1; // GP1 should normally be on (high)
A121: PORTA = sGPIO.ALL; // Shadow GPIO -> GPIO
A122: Initalize(); // Call initialization function
A123: // __delay_ms(500); // Startup delay to let circuit stabilize
A124: LoadSettings(); // Load table 1 user settings
A125: Spark_Fire = MSD_Start_Spark; // Prime the spark counter for first firing
A126: PIE1bits.TMR1IE = 1; // Timer1 Interrupt Enable
A127: T1CONbits.TMR1ON = 1; // Start Timer1
A128: INTCONbits.GIE = 1; // Global Interrupt Enable
A130: while(1){ // Main loop, Run this loop forever
A131: CheckPins(); // Check our TableSelect and KillSwitch pins
A132: __delay_ms(10); // Delay here so main loop runs at around 10-20 ms (100-50 times/sec)
A133: }
A134: }
A136: /* ISR = Interrupt Service Routine, it is called when any enabled interrupt is generated. */
A137: static void interrupt isr(void){ /* All in one IF block to avoid runtime errors */
A138: #if 1 /* Determine which flag generated the interrupt and service it */
A140: if(PIR1bits.CCP1IF){ /******** TIMER1 COMPARE MATCH ********/
A141: for(;Spark_Fire != 0;--Spark_Fire){
A142: sGPIO.GP1 = 0; // Turn on HV output by turning GP1 off
A143: sGPIO.GP0 = 1; // Turn on LED/tach (GP0) bit in shadow
A144: PORTA = sGPIO.ALL; // Update GPIO
A145: __delay_us(Trigger_Pulse_Time); // Load Trigger_Pulse_Time (uS)
A146: sGPIO.GP1 = 1; // GP1 is normally on (on = off)
A147: sGPIO.GP0 = 0; // Turn off LED/tach (GP0) bit in shadow
A148: PORTA = sGPIO.ALL; // Update GPIO
A149: if(Spark_Fire != 0){
A150: for(i=0; i < MSD_Delay; i++){ // Delay for MSD_Delay value
A151: __delay_us(96); // About 4 uS overhead per loop
A152: }
A153: }
A154: }
A155: LastRev = CurrentRev; // Store previous rev speed value
A156: CCP1CONbits.CCP1M = 0; // Compare mode off, so we don't end up here again until the next spark
A157: PIE1bits.CCP1IE = 0; // Disable compare interrupt
A158: PIR1bits.CCP1IF = 0; // Clear compare interrupt flag
A159: INTCONbits.INTF = 0; // Clear sensor interrupt flag in case we have generated the flag from sensor noise
A160: INTCONbits.INTE = 1; // Enable interrupt for GP2 sensor input
A161: }
A162: /*****************************************************************************/
A163: else if(INTCONbits.INTF){ /******** GP2 SENSOR INPUT ********/
A164: if(PORTAbits.RA2 == 0){
A165: T1CONbits.TMR1ON = 0; // Turn off Timer1
A166: CurrentRev = TMR1H + (TMR1L >> 7); // 8 high bits of Timer1 + the highest low bit (rounding method)
A167: TMR1 = 0; // Reset Timer1
A168: CCP1CONbits.CCP1M = 0b1010; // Set Timer1 CCP compare mode
A169: CCPR1 = *(TablePointer + CurrentRev); // Load delay table value
A170: if(CurrentRev > Max_MSD_Rev){Spark_Fire = MSD_Spark;} // Set the MSD sparks if revs are low enough
A171: else{Spark_Fire = 1;}
A172: if(TMR1_Overflow){ // If we overflowed we need to calc the delay time since it's not in the table
A173: LowCalc = CurrentRev + (TMR1_Overflow<<8); // Figure out total elapsed time
A174: CCPR1 = LowCalc * LowRPM_Delay; // Shift one more bit and multiply times our start advance setting
A175: TMR1_Overflow = 0; // Reset TMR1 overflow counter
A176: Spark_Fire = MSD_Low_Spark;
A177: CurrentRev = 255; // CurrentRev should be maxed instead of rolled over to a random number
A178: if(Engine_Running == 0){ // If our engine isn't running we won't have a valid rev time
A179: CCPR1 = StartDelay; // Use default starting figure
A180: Spark_Fire = MSD_Start_Spark;
A181: Engine_Running = 1; // Hopefully engine fired or at least hits the sensor again at above 3 RPS
A182: }
A183: }
A184: // Prepare for throwing spark and exit ISR
A185: INTCONbits.INTE = 0; // Disable GP2 sensor interrupt so we don't get false triggers from sensor noise.
A186: INTCONbits.INTF = 0; // Clear GP2 Interrupt Flag
A187: PIR1bits.CCP1IF = 0; // Clear compare interrupt flag
A188: PIE1bits.CCP1IE = 1; // Enable compare interrupt
A189: T1CONbits.TMR1ON =1; // Turn on Timer1
A190: }
A191: else {INTCONbits.INTF = 0;} // False interrupt, clear flag and continue
A192: }
A193: /*****************************************************************************/
A194: else if(PIR1bits.TMR1IF){ /******** TIMER1 OVERFLOW ********/
A195: CCP1CONbits.CCP1M = 0; // Compare mode off so we don't get compare matches now that our timer has rolled over
A196: if(TMR1_Overflow > 7){
A197: Engine_Running = 0; // Engine is not running (under ~2 RPS / ~120 RPM)
A198: }
A199: else{
A200: TMR1_Overflow++; // Increment overflow count (=uS*65536)
A201: }
A202: PIR1bits.TMR1IF = 0; // Clear interrupt flag
A203: }
A204: /*****************************************************************************/
A205: else { /******** UNHANDLED INTERRUPT ********/
A206: if(Unhandled_Interrupt < 255){Unhandled_Interrupt++;}
A207: }
A208: #endif
A209: }
A211: static void LoadSettings(void){ // Load user settings from current table
A212: SensorDigiDeg = *(TablePointer + 1);
A213: LowRPM_Delay = *(TablePointer + 2);
A214: StartDelay = *(TablePointer + 3);
A215: MSD_Start_Spark = *(TablePointer + 4);
... 63 more rows

Sheet Compiler_Command_Lines
A1: For 12F683: | B1: "%PROGRAMFILES%\Microchip\xc8\v1.11\bin\xc8.exe" --chip=12F683 --mode=free --opt=+asm,-asmfile,-debug,+speed,-space -P 683.c
A2: For 12F1840: | B2: "%PROGRAMFILES%\Microchip\xc8\v1.11\bin\xc8.exe" --chip=12F1840 --mode=free --opt=+asm,-asmfile,-debug,+speed,-space -P 1840.c
A3: Cleanup: | B3: del *.as *.cof *.d *.hxl *.lst *.p1 *.pre *.sdb *.sym funclist *.obj *.rlf
